Workbook

Sheet User Guide
B2: User Guide for the Feeding Herd Calculator
B4: Purpose – to calculate the cost per kg d.weight of producing a finished pig and to show how the margin per pig sold might be maximised.
B5: Targeted user – suitable for Finishing ( > 30kg ) producers
B7: How to use the calculator.
B8: The calculator is in two sections. The left hand side is the pre-sale calculator from entry to sale. The right hand side involve events that occur post-farm gate.
B9: In both instances, the yellow boxes require data entry. The blue boxes are calculated outcomes.
B11: Operation.
B12: Left-hand side - Complete the yellow boxes for weaner costs, feed costs, sale weight and variable and fixed costs according to your herd production records. Wean to Finish producers will have to allocate a percentage of the total costs to the rearing phase, i.e. vet and med costs may be higher but labour lower. Alternatively, you could just allocate cost as a percentage of the days on unit, i.e. 24 weeks could be split 9 weeks rearing and 15 weeks finishing, which gives a 38% and 62% allocation of the total costs.
B13: i) There is an option of three diets. Enter the weight band for each of the stages for each diet change as appropriate. If only 1 or 2 diets are used, then add the same diet at the appropriate weight group. Amount of food used is calculated by the expected FCR for that weight of pig.
B14: ii) The default FCR for pigs post 30 kg to sale at 110 kg is 2.59, giving a feed intake of 207kg. The FCR can be adjusted in 1% increments until calculated feed used is reflected by the farm records.
B15: iii) The blue boxes show the actual price per kg d.wt received and net margin per pig. The net margin can be influenced, or maximised, by exploring a ‘What If’ scenario and adjusting the input figures on the right hand calculator.
B16: iv) In addition, the feed cost, presented in p/kg d.wt, for the last kg of liveweight growth, is highlighted. This is useful when deciding the economics of increasing the sale weight.
B18: Right-hand side – from the average performance over the last 3 to 4 months enter KO%, P2 and base price as pence per kg d.wt. Also your number of pigs in a load and cost per lorry.
B19: i) Carcase and P2 St Dev ( Standard Deviation) This figure describes the typical profile and range of values sent. If the average d.weight was 82 kg and there is a St Dev of 5kg from the average, then 65% of the pigs will be between 77 and 87kg. If this is increased to 2 St Dev, i.e 72 – 82 ave - 92kg, then 90% of the pigs will be within this range. Some abattoir returns will show the St.Dev. If not look at the range of d.wts sent, the number in that range (usually a few light weights and over weights) and then estimated the St Dev, i.e. ave weight 84kg. main range ( 90%) is from 77 - 84ave - 91 = 14 kg, then 2 St.dev = 7kg and 1 St.dev = 3.5 kg. This figure is used to produce the carcase plot and so calculate the expected return from a range of weights in a batch.
B20: ii) The ave weight and St.dev are used to produce the carcase plot of weights typical of your pigs. Below we have a plot from the average weight and x2 St.dev from the average. We now need to adjust this to reflect the range and typical shape. The plot is often skewed to the right as processors want heavier pigs.
B22: By changing the figures to reflect the max and min weights sent, we now have a more realistic plot. When doing any ‘What If’ scenarios with different weights and St.devs always check the plots to make sure they are a sensible shape.
B24: i) Contract specification – From your contract enter the specifications into the appropriate boxes.
B26: ii) Pigs in Q grade – some contracts have a requirement for a percentage of pigs to meet the contract spec and are paid a bonus or penalty accordingly. If this does not apply to your contract then set all to ‘0’
B27: iii) This calculator does not take into consideration any realisation penalties for over weights, or reduced base price for those over weights in the ‘penalty free’ range.
B29: i) What Ifs – various scenarios can now be tried to look at different sale weight ranges, weight of loads and number of pigs sent, contract spec and SD etc. Always check the carcase and P2 plots to make sure they reflect the range of weights and amount of back fat on pigs sent.
B31: This box shows how the batch performed against contract spec and also the red and green squares are a quick indicator of which parameter is causing the most penalties and reduced value of pig.
B33: And finally the box below takes into consideration the transport costs per pig. Sale weights have increased but so have the penalties for overweight’s and so you are able to realistically test what load size maximises the value of each pig. Remember those harsh penalties of overweights are not reflected in the calculator, but you will know how many to expect at a heavier average and their impact. You can decide whether to have an extra load of pigs or continue to ‘ fill the wagon’.
B36: Here a smaller, heavier and less variable load gives an extra £7 per pig.

Sheet Calculator
C2: Finishing Herd Calculator
C3: Purpose – to calculate the margin per finished pig
C4: Target user – suitable for all producers finishing pigs
C6: How to use the calculator
C7: The yellow boxes require your data
C8: The blue boxes are outcomes calculated from your data
C11: Grower 1 diet (£/t) | E11: 270 | H11: Cost of production (£/pig) | N11: Killing out (%) | O11: 75.65714286 | Q11: Number of pigs in batch | T11: 180
C13: Grower 2 diet (£/t) | E13: 230 | H13: Weaner costs (£) | J13: 52 | N13: Average Carcass Weight (kg) | O13: =E42*O11/100 -> 75.65714286 | Q13: Transport costs (£) | T13: 600
C15: Finisher diet (£/t) | E15: 215 | N15: Carcass Weight St Dev (kg) | O15: 3
Q16: Transport cost (£/pig) | T16: =T13/T11 -> 3.333333333
D18: Weight (kg) | N18: Average P2 (mm) | O18: 10.2 | Q18: Transport cost (p/kg) | T18: =(T13/'Carcass Grader'!M22)*100 -> 4.376923042
D19: Entry | E19: End
C20: Stage 1 | D20: 30 | E20: 55 | H20: Feeding Herd Only | N20: P2 St.dev (mm) | O20: 1.1 | Q20: Total batch dead wt (kg) | T20: ='Carcass Grader'!G4 -> 13708.26021
C22: Stage 2 | D22: =E20 -> 55 | E22: 80 | H22: Feed | Q22: Total batch value (£) | T22: ='Q Grader'!G22 -> 22481.54675
C24: Stage 3 | D24: =E22 -> 80 | E24: =E42 -> 100 | H24: Stage 1 feed | J24: =E28*(E11/1000) -> 13.01144167 | N24: Grade Price (p/kg) | O24: 160
H26: Stage 2 feed | J26: =E30*(E13/1000) -> 13.58173961 | N26: Contract Specification | O26: Carcass Weight | T26: Backfat depth
C28: Grower 1 (kg/pig) | E28: ='Growth Model Outputs'!K12 -> 48.1905247 | H28: Stage 3 feed | J28: =E32*(E15/1000) -> 11.01991143 | O28: (kg) | P28: (kg) | Q28: Boars | R28: Gilts | S28: (p/kg) | U28: (mm) | V28: (p/kg)
C30: Grower 2 (kg/pig) | E30: ='Growth Model Outputs'!K13 -> 59.0510418 | H30: Overall feed | J30: =SUM(J24:J28) -> 37.61309271 | O30: up to | P30: 60 | Q30: -25 | R30: -25 | T30: up to | U30: 8 | V30: 2
C32: Finisher (kg/pig) | E32: ='Growth Model Outputs'!K14 -> 51.25540199 | O32: =P30 -> 60 | P32: =P30+5 -> 65 | Q32: -15 | R32: -15 | U32: 9 | V32: 2
C34: Total feed (kg/pig) | E34: ='Growth Model Outputs'!K15 -> 158.4969685 | H34: Veterinary & Med | J34: 1.5 | O34: =O32+5 -> 65 | P34: =P32+5 -> 70 | Q34: -15 | R34: -15 | U34: 10 | V34: 2
H36: Transport & Marketing | J36: 2.73 | O36: =O34+5 -> 70 | P36: =P34+5 -> 75 | Q36: 0 | R36: 0 | U36: 11 | V36: 2
C38: FCR Overall | E38: ='Growth Model Outputs'!K19 -> 2.264242407 | H38: Electricity & Gas | J38: 1.04 | O38: =O36+5 -> 75 | P38: =P36+5 -> 80 | Q38: 0 | R38: 0 | U38: 12 | V38: 2
H40: Water | J40: 0.6 | O40: =O38+5 -> 80 | P40: =P38+5 -> 85 | Q40: 0 | R40: 0 | U40: 13 | V40: -10
C42: Slaughter weight (kg) | E42: 100 | H42: Straw & bedding | J42: 1.8 | O42: =O40+5 -> 85 | P42: =P40+5 -> 90 | Q42: 0 | R42: 0 | U42: 14 | V42: -15
H44: Other variable costs | J44: 2.15 | O44: =O42+5 -> 90 | P44: =P42+5 -> 95 | Q44: 0 | R44: 0 | U44: 15 | V44: -15
C46: Predicted P2 (mm) | E46: =2.83+(0.118*E42)-(0.00036*E42*E42) -> 11.03 | H46: Labour (including family) | J46: 3 | O46: =O44+5 -> 95 | P46: =P44+5 -> 100 | Q46: -3 | R46: 0 | U46: 16 | V46: -40
C48: Predicted carcass weight (kg) | E48: =-4.94+(0.158*Calculator!E46)+(0.792*E42) -> 76.00274 | H48: Building depreciation | J48: 1.2 | O48: =O46+5 -> 100 | P48: =P46+5 -> 105 | Q48: -9 | R48: -50 | U48: 17 | V48: -40
H50: Building repairs & maintenance | J50: 1.6 | O50: =O48+5 -> 105 | P50: =P48+5 -> 110 | Q50: -74 | R50: -74 | U50: 18 | V50: -40
C52: FCR Adjuster (%) | D52: ='Growth Model Outputs'!M27 -> -10 | H52: Equipment depreciation | J52: 3 | O52: =O50+5 -> 110 | P52: =P50+5 -> 115 | Q52: -76 | R52: -76 | U52: 19 | V52: -50
H54: Equipment repairs & maintenance | J54: 1 | O54: =O52+5 -> 115 | P54: =P52+5 -> 120 | Q54: -78 | R54: -78 | U54: 20 | V54: -50
H56: Other fixed costs | J56: 0.76 | O56: =O54+5 -> 120 | P56: =P54+5 -> 125 | Q56: -80 | R56: -80 | S56: more than | U56: =U54 -> 20 | V56: -50
H58: Total costs (£/pig) | J58: =SUM(J30:J56)+J13+T16 -> 113.326426 | O58: =O56+5 -> 125 | P58: =P56+5 -> 130 | Q58: -82 | R58: -82
H60: Total costs (p/kg Dead Weight) | J60: =(J58/O13)*100 -> 149.7894604 | O60: =O58+5 -> 130 | P60: =P58+5 -> 135 | Q60: -83 | R60: -83
C62: Enter figures in the yellow boxes Change FCR using the adjuster | O62: =O60+5 -> 135 | P62: =P60+5 -> 140 | Q62: -84 | R62: -84
H64: Average Sale value (£/pig) | J64: =T22/T11 -> 124.897482 | N64: more than | P64: =P62 -> 140 | Q64: -86 | R64: -86 | S64: Pigs in Q Grade (%) | V64: (p/kg)
H66: Average Sale value (p/kg Carcass) | J66: ='Q Grader'!G25 -> 164 | N66: Q Grade Requirements | S66: more than | U66: 85 | V66: 4
N68: Minimum dead weight (kg) | O68: 70 | Q68: Factor limiting total batch value | T68: 80 | U68: 85 | V68: 3
N70: Maximum dead weight (kg) | O70: 90 | T70: 75 | U70: 80 | V70: 2
C72: Feed cost of last kg Dead Weight gained (p/kg) | E72: ='Growth Model Outputs'!J44 -> 80.04045478 | H72: Net Margin | N72: Maximum P2 (mm) | O72: 12 | T72: 70 | U72: 75 | V72: 0
H74: (p/kg Dead Weight) | J74: =J66-J60 -> 14.21053959 | N74: % Pigs in Q Grade by Weight | O74: =('Carcass Grader'!G21)*100 -> 100 | Q74: Weight | T74: 65 | U74: 70 | V74: -3
H76: (£/pig) | J76: =J64-J58 -> 11.57105591 | N76: % Pigs in Q Grade by P2 | O76: =('P2 Grader'!F18)*100 -> 100 | Q76: Backfat | T76: 60 | U76: 65 | V76: -9
N78: Max wt for premium (kg) | O78: 90 | T78: up to | U78: 60 | V78: -11

Sheet Carcass Plot
C3: How to use:
C4: Adjust the values in the yellow boxes to change the distribution
C5: If alpha is bigger than beta there will be a tail to the left
C7: Average Carcass Weight (kg) | D7: =Calculator!O13 -> 75.65714286
C9: Standard Deviation (kg) | D9: =Calculator!O15 -> 3
C11: Minimum Value (kg) | D11: 70
C13: Maximum Value (kg) | D13: 90
C15: Alpha | D15: ='Carcass Dist'!B2 -> 2.267244315
C17: Beta | D17: ='Carcass Dist'!B3 -> 5.748265889
C19: Mean | D19: =D7 -> 75.65714286
C21: Median | D21: ='Carcass Dist'!C5 -> 75.2
C23: Mode | D23: ='Carcass Dist'!C6 -> 74.4

Sheet P2 Plot
C3: How to use:
C4: Adjust the values in the yellow boxes to change the distribution
C5: If alpha is bigger than beta there will be a tail to the left
C7: Average P2 (mm) | D7: =Calculator!O18 -> 10.2
C9: Standard Deviation (mm) | D9: =Calculator!O20 -> 1.1
C11: Minimum Value (mm) | D11: 5
C13: Maximum Value (mm) | D13: 12
C15: Alpha | D15: ='P2 Dist'!$B$2 -> 5.003541913
C17: Beta | D17: ='P2 Dist'!$B$3 -> 1.731995277
C19: Mean | D19: =D7 -> 10.2
C21: Median | D21: ='P2 Dist'!C5 -> 10.32
C23: Mode | D23: ='P2 Dist'!C6 -> 10.95

Sheet Carcass Grader (hidden)
A1: Ave Cwt (kg) | B1: % pigs | C1: Number of pigs | D1: Total DWt (kg) | I1: =Calculator!O28 -> (kg) | J1: =Calculator!P28 -> (kg) | M1: Total DWt (kg) | N1: %Dwt Dist | O1: =Calculator!Q28 -> Boars | P1: =Calculator!R28 -> Gilts | Q1: Boars | R1: Gilts | S1: Total Value (£)
A2: =I3 -> 60 | B2: =IFERROR(_xlfn.BETA.DIST(A2,'Carcass Dist'!$B$2,'Carcass Dist'!$B$3,1,'Carcass Dist'!$C$10,'Carcass Dist'!$C$11),0) -> 0 | C2: =IF(A2="","",B2*$G$2) -> 0 | D2: =IF(B2="",0,C2*A2) -> 0 | F2: Batch Size | G2: =Calculator!T11 -> 180 | I2: LB | J2: UB | O2: =Calculator!S30 -> 0 | Q2: (Adjusted grade price p/kg)
A3: =A2+1 -> 61 | B3: =IFERROR(_xlfn.BETA.DIST(A3,'Carcass Dist'!$B$2,'Carcass Dist'!$B$3,1,'Carcass Dist'!$C$10,'Carcass Dist'!$C$11)-_xlfn.BETA.DIST(A2,'Carcass Dist'!$B$2,'Carcass Dist'!$B$3,1,'Carcass Dist'!$C$10,'Carcass Dist'!$C$11),0) -> 0 | C3: =B3*$G$2 -> 0 | D3: 0 | F3: Grade Price (p/kg) | G3: =Calculator!O24 -> 160 | I3: =MIN('Carcass Dist'!C10,J3) -> 60 | J3: =Calculator!P30 -> 60 | M3: =SUM(IF(I3-0.0001<$A$2:$A$282,1,0)*IF($A$2:$A$282<J3,1,0)*$D$2:$D$282) -> 0 | N3: =(M3/$M$22)*100 -> 0 | O3: =Calculator!Q30 -> -25 | P3: =Calculator!R30 -> -25 | Q3: =$G$3+O3 -> 135 | R3: =$G$3+P3 -> 135 | S3: =((M3*Q3*0.5)+(M3*R3*0.5))/100 -> 0
A4: =A3+1 -> 62 | B4: =IFERROR(_xlfn.BETA.DIST(A4,'Carcass Dist'!$B$2,'Carcass Dist'!$B$3,1,'Carcass Dist'!$C$10,'Carcass Dist'!$C$11)-_xlfn.BETA.DIST(A3,'Carcass Dist'!$B$2,'Carcass Dist'!$B$3,1,'Carcass Dist'!$C$10,'Carcass Dist'!$C$11),0) -> 0 | C4: =B4*$G$2 -> 0 | D4: 0 | F4: Total Dead Wt (kg) | G4: =SUM(D2:D282) -> 13708.26021 | I4: =Calculator!O32 -> 60 | J4: =Calculator!P32 -> 65 | M4: =SUM(IF(I4-0.0001<$A$2:$A$282,1,0)*IF($A$2:$A$282<J4,1,0)*$D$2:$D$282) -> 0 | N4: 0 | O4: =Calculator!Q32 -> -15 | P4: =Calculator!R32 -> -15 | Q4: 145 | R4: 145 | S4: =((M4*Q4*0.5)+(M4*R4*0.5))/100 -> 0
A5: 63 | B5: =IFERROR(_xlfn.BETA.DIST(A5,'Carcass Dist'!$B$2,'Carcass Dist'!$B$3,1,'Carcass Dist'!$C$10,'Carcass Dist'!$C$11)-_xlfn.BETA.DIST(A4,'Carcass Dist'!$B$2,'Carcass Dist'!$B$3,1,'Carcass Dist'!$C$10,'Carcass Dist'!$C$11),0) -> 0 | C5: =B5*$G$2 -> 0 | D5: 0 | F5: Total Value (£) | G5: =S22 -> 21933.21634 | I5: =Calculator!O34 -> 65 | J5: =Calculator!P34 -> 70 | M5: =SUM(IF(I5-0.0001<$A$2:$A$282,1,0)*IF($A$2:$A$282<J5,1,0)*$D$2:$D$282) -> 0 | N5: 0 | O5: =Calculator!Q34 -> -15 | P5: =Calculator!R34 -> -15 | Q5: 145 | R5: 145 | S5: 0
A6: 64 | B6: =IFERROR(_xlfn.BETA.DIST(A6,'Carcass Dist'!$B$2,'Carcass Dist'!$B$3,1,'Carcass Dist'!$C$10,'Carcass Dist'!$C$11)-_xlfn.BETA.DIST(A5,'Carcass Dist'!$B$2,'Carcass Dist'!$B$3,1,'Carcass Dist'!$C$10,'Carcass Dist'!$C$11),0) -> 0 | C6: 0 | D6: 0 | I6: =Calculator!O36 -> 70 | J6: =Calculator!P36 -> 75 | M6: =SUM(IF(I6-0.0001<$A$2:$A$282,1,0)*IF($A$2:$A$282<J6,1,0)*$D$2:$D$282) -> 4397.338986 | N6: 32.07802389 | O6: =Calculator!Q36 -> 0 | P6: =Calculator!R36 -> 0 | Q6: 160 | R6: 160 | S6: 7035.742378
A7: 65 | B7: =IFERROR(_xlfn.BETA.DIST(A7,'Carcass Dist'!$B$2,'Carcass Dist'!$B$3,1,'Carcass Dist'!$C$10,'Carcass Dist'!$C$11)-_xlfn.BETA.DIST(A6,'Carcass Dist'!$B$2,'Carcass Dist'!$B$3,1,'Carcass Dist'!$C$10,'Carcass Dist'!$C$11),0) -> 0 | C7: 0 | D7: 0 | F7: Slaughter Weight (kg) | G7: =Calculator!E42 -> 100 | I7: =Calculator!O38 -> 75 | J7: =Calculator!P38 -> 80 | M7: =SUM(IF(I7-0.0001<$A$2:$A$282,1,0)*IF($A$2:$A$282<J7,1,0)*$D$2:$D$282) -> 7175.058105 | N7: 52.34112858 | O7: =Calculator!Q38 -> 0 | P7: =Calculator!R38 -> 0 | Q7: 160 | R7: 160 | S7: 11480.09297
A8: 66 | B8: =IFERROR(_xlfn.BETA.DIST(A8,'Carcass Dist'!$B$2,'Carcass Dist'!$B$3,1,'Carcass Dist'!$C$10,'Carcass Dist'!$C$11)-_xlfn.BETA.DIST(A7,'Carcass Dist'!$B$2,'Carcass Dist'!$B$3,1,'Carcass Dist'!$C$10,'Carcass Dist'!$C$11),0) -> 0 | C8: 0 | D8: 0 | F8: Killing Out (%) | G8: =Calculator!O11 -> 75.65714286 | I8: =Calculator!O40 -> 80 | J8: =Calculator!P40 -> 85 | M8: =SUM(IF(I8-0.0001<$A$2:$A$282,1,0)*IF($A$2:$A$282<J8,1,0)*$D$2:$D$282) -> 2030.625699 | N8: 14.81315402 | O8: =Calculator!Q40 -> 0 | P8: =Calculator!R40 -> 0 | Q8: 160 | R8: 160 | S8: 3249.001119
A9: 67 | B9: =IFERROR(_xlfn.BETA.DIST(A9,'Carcass Dist'!$B$2,'Carcass Dist'!$B$3,1,'Carcass Dist'!$C$10,'Carcass Dist'!$C$11)-_xlfn.BETA.DIST(A8,'Carcass Dist'!$B$2,'Carcass Dist'!$B$3,1,'Carcass Dist'!$C$10,'Carcass Dist'!$C$11),0) -> 0 | C9: 0 | D9: 0 | F9: Ave. Carcass Weight (kg) | G9: ='Carcass Plot'!D7 -> 75.65714286 | I9: =Calculator!O42 -> 85 | J9: =Calculator!P42 -> 90 | M9: =SUM(IF(I9-0.0001<$A$2:$A$282,1,0)*IF($A$2:$A$282<J9,1,0)*$D$2:$D$282) -> 105.2323006 | N9: 0.7676561356 | O9: =Calculator!Q42 -> 0 | P9: =Calculator!R42 -> 0 | Q9: 160 | R9: 160 | S9: 168.371681
A10: 68 | B10: =IFERROR(_xlfn.BETA.DIST(A10,'Carcass Dist'!$B$2,'Carcass Dist'!$B$3,1,'Carcass Dist'!$C$10,'Carcass Dist'!$C$11)-_xlfn.BETA.DIST(A9,'Carcass Dist'!$B$2,'Carcass Dist'!$B$3,1,'Carcass Dist'!$C$10,'Carcass Dist'!$C$11),0) -> 0 | C10: 0 | D10: 0 | I10: =Calculator!O44 -> 90 | J10: =Calculator!P44 -> 95 | M10: =SUM(IF(I10-0.0001<$A$2:$A$282,1,0)*IF($A$2:$A$282<J10,1,0)*$D$2:$D$282) -> 0.005124250474 | N10: 3.738074996e-05 | O10: =Calculator!Q44 -> 0 | P10: =Calculator!R44 -> 0 | Q10: 160 | R10: 160 | S10: 0.008198800759
A11: 69 | B11: =IFERROR(_xlfn.BETA.DIST(A11,'Carcass Dist'!$B$2,'Carcass Dist'!$B$3,1,'Carcass Dist'!$C$10,'Carcass Dist'!$C$11)-_xlfn.BETA.DIST(A10,'Carcass Dist'!$B$2,'Carcass Dist'!$B$3,1,'Carcass Dist'!$C$10,'Carcass Dist'!$C$11),0) -> 0 | C11: 0 | D11: 0 | F11: Check total value against total dead wt and grade price | G11: =G4*(G3/100) -> 21933.21634 | I11: =Calculator!O46 -> 95 | J11: =Calculator!P46 -> 100 | M11: =SUM(IF(I11-0.0001<$A$2:$A$282,1,0)*IF($A$2:$A$282<J11,1,0)*$D$2:$D$282) -> 0 | N11: 0 | O11: =Calculator!Q46 -> -3 | P11: =Calculator!R46 -> 0 | Q11: 157 | R11: 160 | S11: 0
A12: 70 | B12: =IFERROR(_xlfn.BETA.DIST(A12,'Carcass Dist'!$B$2,'Carcass Dist'!$B$3,1,'Carcass Dist'!$C$10,'Carcass Dist'!$C$11)-_xlfn.BETA.DIST(A11,'Carcass Dist'!$B$2,'Carcass Dist'!$B$3,1,'Carcass Dist'!$C$10,'Carcass Dist'!$C$11),0) -> 0 | C12: 0 | D12: 0 | F12: Difference (£) | G12: =G5-G11 -> 0 | I12: =Calculator!O48 -> 100 | J12: =Calculator!P48 -> 105 | M12: =SUM(IF(I12-0.0001<$A$2:$A$282,1,0)*IF($A$2:$A$282<J12,1,0)*$D$2:$D$282) -> 0 | N12: 0 | O12: =Calculator!Q48 -> -9 | P12: =Calculator!R48 -> -50 | Q12: 151 | R12: 110 | S12: 0
A13: 71 | B13: =IFERROR(_xlfn.BETA.DIST(A13,'Carcass Dist'!$B$2,'Carcass Dist'!$B$3,1,'Carcass Dist'!$C$10,'Carcass Dist'!$C$11)-_xlfn.BETA.DIST(A12,'Carcass Dist'!$B$2,'Carcass Dist'!$B$3,1,'Carcass Dist'!$C$10,'Carcass Dist'!$C$11),0) -> 0.02425030948 | C13: 4.365055707 | D13: 309.9189552 | I13: =Calculator!O50 -> 105 | J13: =Calculator!P50 -> 110 | M13: =SUM(IF(I13-0.0001<$A$2:$A$282,1,0)*IF($A$2:$A$282<J13,1,0)*$D$2:$D$282) -> 0 | N13: 0 | O13: =Calculator!Q50 -> -74 | P13: =Calculator!R50 -> -74 | Q13: 86 | R13: 86 | S13: 0
A14: 72 | B14: =IFERROR(_xlfn.BETA.DIST(A14,'Carcass Dist'!$B$2,'Carcass Dist'!$B$3,1,'Carcass Dist'!$C$10,'Carcass Dist'!$C$11)-_xlfn.BETA.DIST(A13,'Carcass Dist'!$B$2,'Carcass Dist'!$B$3,1,'Carcass Dist'!$C$10,'Carcass Dist'!$C$11),0) -> 0.07425715813 | C14: 13.36628846 | D14: 962.3727694 | I14: =Calculator!O52 -> 110 | J14: =Calculator!P52 -> 115 | M14: =SUM(IF(I14-0.0001<$A$2:$A$282,1,0)*IF($A$2:$A$282<J14,1,0)*$D$2:$D$282) -> 0 | N14: 0 | O14: =Calculator!Q52 -> -76 | P14: =Calculator!R52 -> -76 | Q14: 84 | R14: 84 | S14: 0
A15: 73 | B15: =IFERROR(_xlfn.BETA.DIST(A15,'Carcass Dist'!$B$2,'Carcass Dist'!$B$3,1,'Carcass Dist'!$C$10,'Carcass Dist'!$C$11)-_xlfn.BETA.DIST(A14,'Carcass Dist'!$B$2,'Carcass Dist'!$B$3,1,'Carcass Dist'!$C$10,'Carcass Dist'!$C$11),0) -> 0.109268167 | C15: 19.66827006 | D15: 1435.783714 | F15: Minimum Q Carcass Weight (kg) | G15: =Calculator!O68 -> 70 | I15: =Calculator!O54 -> 115 | J15: =Calculator!P54 -> 120 | M15: =SUM(IF(I15-0.0001<$A$2:$A$282,1,0)*IF($A$2:$A$282<J15,1,0)*$D$2:$D$282) -> 0 | N15: 0 | O15: =Calculator!Q54 -> -78 | P15: =Calculator!R54 -> -78 | Q15: 82 | R15: 82 | S15: 0
A16: 74 | B16: =IFERROR(_xlfn.BETA.DIST(A16,'Carcass Dist'!$B$2,'Carcass Dist'!$B$3,1,'Carcass Dist'!$C$10,'Carcass Dist'!$C$11)-_xlfn.BETA.DIST(A15,'Carcass Dist'!$B$2,'Carcass Dist'!$B$3,1,'Carcass Dist'!$C$10,'Carcass Dist'!$C$11),0) -> 0.1268215877 | C16: 22.82788578 | D16: 1689.263548 | F16: Maximum Q Carcass Weight (kg) | G16: =Calculator!O70 -> 90 | I16: =Calculator!O56 -> 120 | J16: =Calculator!P56 -> 125 | M16: =SUM(IF(I16-0.0001<$A$2:$A$282,1,0)*IF($A$2:$A$282<J16,1,0)*$D$2:$D$282) -> 0 | N16: 0 | O16: =Calculator!Q56 -> -80 | P16: =Calculator!R56 -> -80 | Q16: 80 | R16: 80 | S16: 0
A17: 75 | B17: =IFERROR(_xlfn.BETA.DIST(A17,'Carcass Dist'!$B$2,'Carcass Dist'!$B$3,1,'Carcass Dist'!$C$10,'Carcass Dist'!$C$11)-_xlfn.BETA.DIST(A16,'Carcass Dist'!$B$2,'Carcass Dist'!$B$3,1,'Carcass Dist'!$C$10,'Carcass Dist'!$C$11),0) -> 0.1297744953 | C17: 23.35940915 | D17: 1751.955686 | F17: Maximum Weight For Q Premium Q (kg) | G17: =Calculator!O78 -> 90 | I17: =Calculator!O58 -> 125 | J17: =Calculator!P58 -> 130 | M17: =SUM(IF(I17-0.0001<$A$2:$A$282,1,0)*IF($A$2:$A$282<J17,1,0)*$D$2:$D$282) -> 0 | N17: 0 | O17: =Calculator!Q58 -> -82 | P17: =Calculator!R58 -> -82 | Q17: 78 | R17: 78 | S17: 0
A18: 76 | B18: =IFERROR(_xlfn.BETA.DIST(A18,'Carcass Dist'!$B$2,'Carcass Dist'!$B$3,1,'Carcass Dist'!$C$10,'Carcass Dist'!$C$11)-_xlfn.BETA.DIST(A17,'Carcass Dist'!$B$2,'Carcass Dist'!$B$3,1,'Carcass Dist'!$C$10,'Carcass Dist'!$C$11),0) -> 0.1220635367 | C18: 21.97143661 | D18: 1669.829182 | I18: =Calculator!O60 -> 130 | J18: =Calculator!P60 -> 135 | M18: =SUM(IF(I18-0.0001<$A$2:$A$282,1,0)*IF($A$2:$A$282<J18,1,0)*$D$2:$D$282) -> 0 | N18: 0 | O18: =Calculator!Q60 -> -83 | P18: =Calculator!R60 -> -83 | Q18: 77 | R18: 77 | S18: 0
A19: 77 | B19: =IFERROR(_xlfn.BETA.DIST(A19,'Carcass Dist'!$B$2,'Carcass Dist'!$B$3,1,'Carcass Dist'!$C$10,'Carcass Dist'!$C$11)-_xlfn.BETA.DIST(A18,'Carcass Dist'!$B$2,'Carcass Dist'!$B$3,1,'Carcass Dist'!$C$10,'Carcass Dist'!$C$11),0) -> 0.1075458476 | C19: 19.35825256 | D19: 1490.585447 | F19: Percentage of pigs below Minimum Q Carcass Weight | G19: =SUMIF(A:A,"<"&G15,B:B) -> 0 | I19: =Calculator!O62 -> 135 | J19: =Calculator!P62 -> 140 | M19: =SUM(IF(I19-0.0001<$A$2:$A$282,1,0)*IF($A$2:$A$282<J19,1,0)*$D$2:$D$282) -> 0 | N19: 0 | O19: =Calculator!Q62 -> -84 | P19: =Calculator!R62 -> -84 | Q19: 76 | R19: 76 | S19: 0
A20: 78 | B20: =IFERROR(_xlfn.BETA.DIST(A20,'Carcass Dist'!$B$2,'Carcass Dist'!$B$3,1,'Carcass Dist'!$C$10,'Carcass Dist'!$C$11)-_xlfn.BETA.DIST(A19,'Carcass Dist'!$B$2,'Carcass Dist'!$B$3,1,'Carcass Dist'!$C$10,'Carcass Dist'!$C$11),0) -> 0.08954928564 | C20: 16.11887141 | D20: 1257.27197 | F20: Percentage of pigs above Maximum Q Carcass Weight | G20: =SUMIF(A:A,">"&G16,B:B) -> 0 | I20: =J19 -> 140 | J20: =MAX(I20,'Carcass Dist'!C11) -> 140 | M20: =SUM(IF(I20-0.0001<$A$2:$A$282,1,0)*IF($A$2:$A$282<J20,1,0)*$D$2:$D$282) -> 0 | N20: 0 | O20: =Calculator!Q64 -> -86 | P20: =Calculator!R64 -> -86 | Q20: 74 | R20: 74 | S20: 0
A21: 79 | B21: =IFERROR(_xlfn.BETA.DIST(A21,'Carcass Dist'!$B$2,'Carcass Dist'!$B$3,1,'Carcass Dist'!$C$10,'Carcass Dist'!$C$11)-_xlfn.BETA.DIST(A20,'Carcass Dist'!$B$2,'Carcass Dist'!$B$3,1,'Carcass Dist'!$C$10,'Carcass Dist'!$C$11),0) -> 0.07070434728 | C21: 12.72678251 | D21: 1005.415818 | F21: Percentage of pigs in Q grade by Carcass Weight | G21: =1-(G19+G20) -> 1
A22: 80 | B22: =IFERROR(_xlfn.BETA.DIST(A22,'Carcass Dist'!$B$2,'Carcass Dist'!$B$3,1,'Carcass Dist'!$C$10,'Carcass Dist'!$C$11)-_xlfn.BETA.DIST(A21,'Carcass Dist'!$B$2,'Carcass Dist'!$B$3,1,'Carcass Dist'!$C$10,'Carcass Dist'!$C$11),0) -> 0.05291460885 | C22: 9.524629592 | D22: 761.9703674 | F22: Check Total | G22: =G19+G20+G21 -> 1 | M22: =SUM(M3:M21) -> 13708.26021 | N22: =SUM(N3:N21) -> 100 | S22: =SUM(S3:S21) -> 21933.21634
A23: 81 | B23: =IFERROR(_xlfn.BETA.DIST(A23,'Carcass Dist'!$B$2,'Carcass Dist'!$B$3,1,'Carcass Dist'!$C$10,'Carcass Dist'!$C$11)-_xlfn.BETA.DIST(A22,'Carcass Dist'!$B$2,'Carcass Dist'!$B$3,1,'Carcass Dist'!$C$10,'Carcass Dist'!$C$11),0) -> 0.03740275596 | C23: 6.732496073 | D23: 545.3321819 | M23: =IF(ABS(SUM(D2:D282)-M22)<1,"OK","Error") -> OK
A24: 82 | B24: =IFERROR(_xlfn.BETA.DIST(A24,'Carcass Dist'!$B$2,'Carcass Dist'!$B$3,1,'Carcass Dist'!$C$10,'Carcass Dist'!$C$11)-_xlfn.BETA.DIST(A23,'Carcass Dist'!$B$2,'Carcass Dist'!$B$3,1,'Carcass Dist'!$C$10,'Carcass Dist'!$C$11),0) -> 0.02479923793 | C24: 4.463862827 | D24: 366.0367518 | F24: Percentage of pigs above maximum weight for Q Premium | G24: =SUMIF(A:A,">"&G17,B:B) -> 0
A25: 83 | B25: =IFERROR(_xlfn.BETA.DIST(A25,'Carcass Dist'!$B$2,'Carcass Dist'!$B$3,1,'Carcass Dist'!$C$10,'Carcass Dist'!$C$11)-_xlfn.BETA.DIST(A24,'Carcass Dist'!$B$2,'Carcass Dist'!$B$3,1,'Carcass Dist'!$C$10,'Carcass Dist'!$C$11),0) -> 0.01525391428 | C25: 2.745704571 | D25: 227.8934794
A26: 84 | B26: =IFERROR(_xlfn.BETA.DIST(A26,'Carcass Dist'!$B$2,'Carcass Dist'!$B$3,1,'Carcass Dist'!$C$10,'Carcass Dist'!$C$11)-_xlfn.BETA.DIST(A25,'Carcass Dist'!$B$2,'Carcass Dist'!$B$3,1,'Carcass Dist'!$C$10,'Carcass Dist'!$C$11),0) -> 0.008557732714 | C26: 1.540391888 | D26: 129.3929186 | F26: Total Dead Weight below Minimum Q Carcass weight (kg) | G26: =SUMIF(A:A,"<"&G15,D:D) -> 0
A27: 85 | B27: =IFERROR(_xlfn.BETA.DIST(A27,'Carcass Dist'!$B$2,'Carcass Dist'!$B$3,1,'Carcass Dist'!$C$10,'Carcass Dist'!$C$11)-_xlfn.BETA.DIST(A26,'Carcass Dist'!$B$2,'Carcass Dist'!$B$3,1,'Carcass Dist'!$C$10,'Carcass Dist'!$C$11),0) -> 0.00426509245 | C27: 0.7677166411 | D27: 65.25591449 | F27: Total Dead Weight above Maximum weight For Q Premium (kg) | G27: =SUMIF(A:A,">"&G17,D:D) -> 0
A28: 86 | B28: =IFERROR(_xlfn.BETA.DIST(A28,'Carcass Dist'!$B$2,'Carcass Dist'!$B$3,1,'Carcass Dist'!$C$10,'Carcass Dist'!$C$11)-_xlfn.BETA.DIST(A27,'Carcass Dist'!$B$2,'Carcass Dist'!$B$3,1,'Carcass Dist'!$C$10,'Carcass Dist'!$C$11),0) -> 0.001809585284 | C28: 0.3257253511 | D28: 28.0123802
A29: 87 | B29: =IFERROR(_xlfn.BETA.DIST(A29,'Carcass Dist'!$B$2,'Carcass Dist'!$B$3,1,'Carcass Dist'!$C$10,'Carcass Dist'!$C$11)-_xlfn.BETA.DIST(A28,'Carcass Dist'!$B$2,'Carcass Dist'!$B$3,1,'Carcass Dist'!$C$10,'Carcass Dist'!$C$11),0) -> 0.0006069257513 | C29: 0.1092466352 | D29: 9.504457265
A30: 88 | B30: =IFERROR(_xlfn.BETA.DIST(A30,'Carcass Dist'!$B$2,'Carcass Dist'!$B$3,1,'Carcass Dist'!$C$10,'Carcass Dist'!$C$11)-_xlfn.BETA.DIST(A29,'Carcass Dist'!$B$2,'Carcass Dist'!$B$3,1,'Carcass Dist'!$C$10,'Carcass Dist'!$C$11),0) -> 0.0001393617714 | C30: 0.02508511886 | D30: 2.20749046 | F30: Total Dead Weight Within Q Carcass Weight Range (kg) | G30: =D286-(G26+G27) -> 13708.26021
A31: 89 | B31: =IFERROR(_xlfn.BETA.DIST(A31,'Carcass Dist'!$B$2,'Carcass Dist'!$B$3,1,'Carcass Dist'!$C$10,'Carcass Dist'!$C$11)-_xlfn.BETA.DIST(A30,'Carcass Dist'!$B$2,'Carcass Dist'!$B$3,1,'Carcass Dist'!$C$10,'Carcass Dist'!$C$11),0) -> 1.573397068e-05 | C31: 0.002832114722 | D31: 0.2520582102 | F31: Total Dead Weight Outside Q Carcass Weight Range (kg) | G31: =G26+G27 -> 0
A32: 90 | B32: =IFERROR(_xlfn.BETA.DIST(A32,'Carcass Dist'!$B$2,'Carcass Dist'!$B$3,1,'Carcass Dist'!$C$10,'Carcass Dist'!$C$11)-_xlfn.BETA.DIST(A31,'Carcass Dist'!$B$2,'Carcass Dist'!$B$3,1,'Carcass Dist'!$C$10,'Carcass Dist'!$C$11),0) -> 3.163117577e-07 | C32: 5.693611638e-05 | D32: 0.005124250474 | F32: Total Dead Weight (kg) | G32: =G30+G31 -> 13708.26021
A33: 91 | B33: =IFERROR(_xlfn.BETA.DIST(A33,'Carcass Dist'!$B$2,'Carcass Dist'!$B$3,1,'Carcass Dist'!$C$10,'Carcass Dist'!$C$11)-_xlfn.BETA.DIST(A32,'Carcass Dist'!$B$2,'Carcass Dist'!$B$3,1,'Carcass Dist'!$C$10,'Carcass Dist'!$C$11),0) -> 0 | C33: 0 | D33: 0 | F33: Check Total Dead Weight (kg) | G33: =D286 -> 13708.26021
A34: 92 | B34: =IFERROR(_xlfn.BETA.DIST(A34,'Carcass Dist'!$B$2,'Carcass Dist'!$B$3,1,'Carcass Dist'!$C$10,'Carcass Dist'!$C$11)-_xlfn.BETA.DIST(A33,'Carcass Dist'!$B$2,'Carcass Dist'!$B$3,1,'Carcass Dist'!$C$10,'Carcass Dist'!$C$11),0) -> 0 | C34: 0 | D34: 0
A35: 93 | B35: =IFERROR(_xlfn.BETA.DIST(A35,'Carcass Dist'!$B$2,'Carcass Dist'!$B$3,1,'Carcass Dist'!$C$10,'Carcass Dist'!$C$11)-_xlfn.BETA.DIST(A34,'Carcass Dist'!$B$2,'Carcass Dist'!$B$3,1,'Carcass Dist'!$C$10,'Carcass Dist'!$C$11),0) -> 0 | C35: 0 | D35: 0
A36: 94 | B36: =IFERROR(_xlfn.BETA.DIST(A36,'Carcass Dist'!$B$2,'Carcass Dist'!$B$3,1,'Carcass Dist'!$C$10,'Carcass Dist'!$C$11)-_xlfn.BETA.DIST(A35,'Carcass Dist'!$B$2,'Carcass Dist'!$B$3,1,'Carcass Dist'!$C$10,'Carcass Dist'!$C$11),0) -> 0 | C36: 0 | D36: 0
A37: 95 | B37: =IFERROR(_xlfn.BETA.DIST(A37,'Carcass Dist'!$B$2,'Carcass Dist'!$B$3,1,'Carcass Dist'!$C$10,'Carcass Dist'!$C$11)-_xlfn.BETA.DIST(A36,'Carcass Dist'!$B$2,'Carcass Dist'!$B$3,1,'Carcass Dist'!$C$10,'Carcass Dist'!$C$11),0) -> 0 | C37: 0 | D37: 0
A38: 96 | B38: =IFERROR(_xlfn.BETA.DIST(A38,'Carcass Dist'!$B$2,'Carcass Dist'!$B$3,1,'Carcass Dist'!$C$10,'Carcass Dist'!$C$11)-_xlfn.BETA.DIST(A37,'Carcass Dist'!$B$2,'Carcass Dist'!$B$3,1,'Carcass Dist'!$C$10,'Carcass Dist'!$C$11),0) -> 0 | C38: 0 | D38: 0
A39: 97 | B39: =IFERROR(_xlfn.BETA.DIST(A39,'Carcass Dist'!$B$2,'Carcass Dist'!$B$3,1,'Carcass Dist'!$C$10,'Carcass Dist'!$C$11)-_xlfn.BETA.DIST(A38,'Carcass Dist'!$B$2,'Carcass Dist'!$B$3,1,'Carcass Dist'!$C$10,'Carcass Dist'!$C$11),0) -> 0 | C39: 0 | D39: 0
A40: 98 | B40: =IFERROR(_xlfn.BETA.DIST(A40,'Carcass Dist'!$B$2,'Carcass Dist'!$B$3,1,'Carcass Dist'!$C$10,'Carcass Dist'!$C$11)-_xlfn.BETA.DIST(A39,'Carcass Dist'!$B$2,'Carcass Dist'!$B$3,1,'Carcass Dist'!$C$10,'Carcass Dist'!$C$11),0) -> 0 | C40: 0 | D40: 0
A41: 99 | B41: =IFERROR(_xlfn.BETA.DIST(A41,'Carcass Dist'!$B$2,'Carcass Dist'!$B$3,1,'Carcass Dist'!$C$10,'Carcass Dist'!$C$11)-_xlfn.BETA.DIST(A40,'Carcass Dist'!$B$2,'Carcass Dist'!$B$3,1,'Carcass Dist'!$C$10,'Carcass Dist'!$C$11),0) -> 0 | C41: 0 | D41: 0
A42: 100 | B42: =IFERROR(_xlfn.BETA.DIST(A42,'Carcass Dist'!$B$2,'Carcass Dist'!$B$3,1,'Carcass Dist'!$C$10,'Carcass Dist'!$C$11)-_xlfn.BETA.DIST(A41,'Carcass Dist'!$B$2,'Carcass Dist'!$B$3,1,'Carcass Dist'!$C$10,'Carcass Dist'!$C$11),0) -> 0 | C42: 0 | D42: 0
A43: 101 | B43: =IFERROR(_xlfn.BETA.DIST(A43,'Carcass Dist'!$B$2,'Carcass Dist'!$B$3,1,'Carcass Dist'!$C$10,'Carcass Dist'!$C$11)-_xlfn.BETA.DIST(A42,'Carcass Dist'!$B$2,'Carcass Dist'!$B$3,1,'Carcass Dist'!$C$10,'Carcass Dist'!$C$11),0) -> 0 | C43: 0 | D43: 0
A44: 102 | B44: =IFERROR(_xlfn.BETA.DIST(A44,'Carcass Dist'!$B$2,'Carcass Dist'!$B$3,1,'Carcass Dist'!$C$10,'Carcass Dist'!$C$11)-_xlfn.BETA.DIST(A43,'Carcass Dist'!$B$2,'Carcass Dist'!$B$3,1,'Carcass Dist'!$C$10,'Carcass Dist'!$C$11),0) -> 0 | C44: 0 | D44: 0
A45: 103 | B45: =IFERROR(_xlfn.BETA.DIST(A45,'Carcass Dist'!$B$2,'Carcass Dist'!$B$3,1,'Carcass Dist'!$C$10,'Carcass Dist'!$C$11)-_xlfn.BETA.DIST(A44,'Carcass Dist'!$B$2,'Carcass Dist'!$B$3,1,'Carcass Dist'!$C$10,'Carcass Dist'!$C$11),0) -> 0 | C45: 0 | D45: 0
A46: 104 | B46: =IFERROR(_xlfn.BETA.DIST(A46,'Carcass Dist'!$B$2,'Carcass Dist'!$B$3,1,'Carcass Dist'!$C$10,'Carcass Dist'!$C$11)-_xlfn.BETA.DIST(A45,'Carcass Dist'!$B$2,'Carcass Dist'!$B$3,1,'Carcass Dist'!$C$10,'Carcass Dist'!$C$11),0) -> 0 | C46: 0 | D46: 0
A47: 105 | B47: =IFERROR(_xlfn.BETA.DIST(A47,'Carcass Dist'!$B$2,'Carcass Dist'!$B$3,1,'Carcass Dist'!$C$10,'Carcass Dist'!$C$11)-_xlfn.BETA.DIST(A46,'Carcass Dist'!$B$2,'Carcass Dist'!$B$3,1,'Carcass Dist'!$C$10,'Carcass Dist'!$C$11),0) -> 0 | C47: 0 | D47: 0
A48: 106 | B48: =IFERROR(_xlfn.BETA.DIST(A48,'Carcass Dist'!$B$2,'Carcass Dist'!$B$3,1,'Carcass Dist'!$C$10,'Carcass Dist'!$C$11)-_xlfn.BETA.DIST(A47,'Carcass Dist'!$B$2,'Carcass Dist'!$B$3,1,'Carcass Dist'!$C$10,'Carcass Dist'!$C$11),0) -> 0 | C48: 0 | D48: 0
A49: 107 | B49: =IFERROR(_xlfn.BETA.DIST(A49,'Carcass Dist'!$B$2,'Carcass Dist'!$B$3,1,'Carcass Dist'!$C$10,'Carcass Dist'!$C$11)-_xlfn.BETA.DIST(A48,'Carcass Dist'!$B$2,'Carcass Dist'!$B$3,1,'Carcass Dist'!$C$10,'Carcass Dist'!$C$11),0) -> 0 | C49: 0 | D49: 0
A50: 108 | B50: =IFERROR(_xlfn.BETA.DIST(A50,'Carcass Dist'!$B$2,'Carcass Dist'!$B$3,1,'Carcass Dist'!$C$10,'Carcass Dist'!$C$11)-_xlfn.BETA.DIST(A49,'Carcass Dist'!$B$2,'Carcass Dist'!$B$3,1,'Carcass Dist'!$C$10,'Carcass Dist'!$C$11),0) -> 0 | C50: 0 | D50: 0
A51: 109 | B51: =IFERROR(_xlfn.BETA.DIST(A51,'Carcass Dist'!$B$2,'Carcass Dist'!$B$3,1,'Carcass Dist'!$C$10,'Carcass Dist'!$C$11)-_xlfn.BETA.DIST(A50,'Carcass Dist'!$B$2,'Carcass Dist'!$B$3,1,'Carcass Dist'!$C$10,'Carcass Dist'!$C$11),0) -> 0 | C51: 0 | D51: 0
A52: 110 | B52: =IFERROR(_xlfn.BETA.DIST(A52,'Carcass Dist'!$B$2,'Carcass Dist'!$B$3,1,'Carcass Dist'!$C$10,'Carcass Dist'!$C$11)-_xlfn.BETA.DIST(A51,'Carcass Dist'!$B$2,'Carcass Dist'!$B$3,1,'Carcass Dist'!$C$10,'Carcass Dist'!$C$11),0) -> 0 | C52: 0 | D52: 0
A53: 111 | B53: =IFERROR(_xlfn.BETA.DIST(A53,'Carcass Dist'!$B$2,'Carcass Dist'!$B$3,1,'Carcass Dist'!$C$10,'Carcass Dist'!$C$11)-_xlfn.BETA.DIST(A52,'Carcass Dist'!$B$2,'Carcass Dist'!$B$3,1,'Carcass Dist'!$C$10,'Carcass Dist'!$C$11),0) -> 0 | C53: 0 | D53: 0
A54: 112 | B54: =IFERROR(_xlfn.BETA.DIST(A54,'Carcass Dist'!$B$2,'Carcass Dist'!$B$3,1,'Carcass Dist'!$C$10,'Carcass Dist'!$C$11)-_xlfn.BETA.DIST(A53,'Carcass Dist'!$B$2,'Carcass Dist'!$B$3,1,'Carcass Dist'!$C$10,'Carcass Dist'!$C$11),0) -> 0 | C54: 0 | D54: 0
A55: 113 | B55: =IFERROR(_xlfn.BETA.DIST(A55,'Carcass Dist'!$B$2,'Carcass Dist'!$B$3,1,'Carcass Dist'!$C$10,'Carcass Dist'!$C$11)-_xlfn.BETA.DIST(A54,'Carcass Dist'!$B$2,'Carcass Dist'!$B$3,1,'Carcass Dist'!$C$10,'Carcass Dist'!$C$11),0) -> 0 | C55: 0 | D55: 0
A56: 114 | B56: =IFERROR(_xlfn.BETA.DIST(A56,'Carcass Dist'!$B$2,'Carcass Dist'!$B$3,1,'Carcass Dist'!$C$10,'Carcass Dist'!$C$11)-_xlfn.BETA.DIST(A55,'Carcass Dist'!$B$2,'Carcass Dist'!$B$3,1,'Carcass Dist'!$C$10,'Carcass Dist'!$C$11),0) -> 0 | C56: 0 | D56: 0
A57: 115 | B57: =IFERROR(_xlfn.BETA.DIST(A57,'Carcass Dist'!$B$2,'Carcass Dist'!$B$3,1,'Carcass Dist'!$C$10,'Carcass Dist'!$C$11)-_xlfn.BETA.DIST(A56,'Carcass Dist'!$B$2,'Carcass Dist'!$B$3,1,'Carcass Dist'!$C$10,'Carcass Dist'!$C$11),0) -> 0 | C57: 0 | D57: 0
A58: 116 | B58: =IFERROR(_xlfn.BETA.DIST(A58,'Carcass Dist'!$B$2,'Carcass Dist'!$B$3,1,'Carcass Dist'!$C$10,'Carcass Dist'!$C$11)-_xlfn.BETA.DIST(A57,'Carcass Dist'!$B$2,'Carcass Dist'!$B$3,1,'Carcass Dist'!$C$10,'Carcass Dist'!$C$11),0) -> 0 | C58: 0 | D58: 0
A59: 117 | B59: =IFERROR(_xlfn.BETA.DIST(A59,'Carcass Dist'!$B$2,'Carcass Dist'!$B$3,1,'Carcass Dist'!$C$10,'Carcass Dist'!$C$11)-_xlfn.BETA.DIST(A58,'Carcass Dist'!$B$2,'Carcass Dist'!$B$3,1,'Carcass Dist'!$C$10,'Carcass Dist'!$C$11),0) -> 0 | C59: 0 | D59: 0
A60: 118 | B60: =IFERROR(_xlfn.BETA.DIST(A60,'Carcass Dist'!$B$2,'Carcass Dist'!$B$3,1,'Carcass Dist'!$C$10,'Carcass Dist'!$C$11)-_xlfn.BETA.DIST(A59,'Carcass Dist'!$B$2,'Carcass Dist'!$B$3,1,'Carcass Dist'!$C$10,'Carcass Dist'!$C$11),0) -> 0 | C60: 0 | D60: 0
A61: 119 | B61: =IFERROR(_xlfn.BETA.DIST(A61,'Carcass Dist'!$B$2,'Carcass Dist'!$B$3,1,'Carcass Dist'!$C$10,'Carcass Dist'!$C$11)-_xlfn.BETA.DIST(A60,'Carcass Dist'!$B$2,'Carcass Dist'!$B$3,1,'Carcass Dist'!$C$10,'Carcass Dist'!$C$11),0) -> 0 | C61: 0 | D61: 0
A62: 120 | B62: =IFERROR(_xlfn.BETA.DIST(A62,'Carcass Dist'!$B$2,'Carcass Dist'!$B$3,1,'Carcass Dist'!$C$10,'Carcass Dist'!$C$11)-_xlfn.BETA.DIST(A61,'Carcass Dist'!$B$2,'Carcass Dist'!$B$3,1,'Carcass Dist'!$C$10,'Carcass Dist'!$C$11),0) -> 0 | C62: 0 | D62: 0
A63: 121 | B63: =IFERROR(_xlfn.BETA.DIST(A63,'Carcass Dist'!$B$2,'Carcass Dist'!$B$3,1,'Carcass Dist'!$C$10,'Carcass Dist'!$C$11)-_xlfn.BETA.DIST(A62,'Carcass Dist'!$B$2,'Carcass Dist'!$B$3,1,'Carcass Dist'!$C$10,'Carcass Dist'!$C$11),0) -> 0 | C63: 0 | D63: 0
A64: 122 | B64: =IFERROR(_xlfn.BETA.DIST(A64,'Carcass Dist'!$B$2,'Carcass Dist'!$B$3,1,'Carcass Dist'!$C$10,'Carcass Dist'!$C$11)-_xlfn.BETA.DIST(A63,'Carcass Dist'!$B$2,'Carcass Dist'!$B$3,1,'Carcass Dist'!$C$10,'Carcass Dist'!$C$11),0) -> 0 | C64: 0 | D64: 0
A65: 123 | B65: =IFERROR(_xlfn.BETA.DIST(A65,'Carcass Dist'!$B$2,'Carcass Dist'!$B$3,1,'Carcass Dist'!$C$10,'Carcass Dist'!$C$11)-_xlfn.BETA.DIST(A64,'Carcass Dist'!$B$2,'Carcass Dist'!$B$3,1,'Carcass Dist'!$C$10,'Carcass Dist'!$C$11),0) -> 0 | C65: 0 | D65: 0
A66: 124 | B66: =IFERROR(_xlfn.BETA.DIST(A66,'Carcass Dist'!$B$2,'Carcass Dist'!$B$3,1,'Carcass Dist'!$C$10,'Carcass Dist'!$C$11)-_xlfn.BETA.DIST(A65,'Carcass Dist'!$B$2,'Carcass Dist'!$B$3,1,'Carcass Dist'!$C$10,'Carcass Dist'!$C$11),0) -> 0 | C66: 0 | D66: =IF(B66="",0,C66*A66) -> 0
A67: 125 | B67: =IFERROR(_xlfn.BETA.DIST(A67,'Carcass Dist'!$B$2,'Carcass Dist'!$B$3,1,'Carcass Dist'!$C$10,'Carcass Dist'!$C$11)-_xlfn.BETA.DIST(A66,'Carcass Dist'!$B$2,'Carcass Dist'!$B$3,1,'Carcass Dist'!$C$10,'Carcass Dist'!$C$11),0) -> 0 | C67: 0 | D67: 0
A68: =A67+1 -> 126 | B68: =IFERROR(_xlfn.BETA.DIST(A68,'Carcass Dist'!$B$2,'Carcass Dist'!$B$3,1,'Carcass Dist'!$C$10,'Carcass Dist'!$C$11)-_xlfn.BETA.DIST(A67,'Carcass Dist'!$B$2,'Carcass Dist'!$B$3,1,'Carcass Dist'!$C$10,'Carcass Dist'!$C$11),0) -> 0 | C68: =B68*$G$2 -> 0 | D68: 0
A69: 127 | B69: =IFERROR(_xlfn.BETA.DIST(A69,'Carcass Dist'!$B$2,'Carcass Dist'!$B$3,1,'Carcass Dist'!$C$10,'Carcass Dist'!$C$11)-_xlfn.BETA.DIST(A68,'Carcass Dist'!$B$2,'Carcass Dist'!$B$3,1,'Carcass Dist'!$C$10,'Carcass Dist'!$C$11),0) -> 0 | C69: 0 | D69: 0
A70: 128 | B70: =IFERROR(_xlfn.BETA.DIST(A70,'Carcass Dist'!$B$2,'Carcass Dist'!$B$3,1,'Carcass Dist'!$C$10,'Carcass Dist'!$C$11)-_xlfn.BETA.DIST(A69,'Carcass Dist'!$B$2,'Carcass Dist'!$B$3,1,'Carcass Dist'!$C$10,'Carcass Dist'!$C$11),0) -> 0 | C70: 0 | D70: 0
A71: 129 | B71: =IFERROR(_xlfn.BETA.DIST(A71,'Carcass Dist'!$B$2,'Carcass Dist'!$B$3,1,'Carcass Dist'!$C$10,'Carcass Dist'!$C$11)-_xlfn.BETA.DIST(A70,'Carcass Dist'!$B$2,'Carcass Dist'!$B$3,1,'Carcass Dist'!$C$10,'Carcass Dist'!$C$11),0) -> 0 | C71: 0 | D71: 0
A72: 130 | B72: =IFERROR(_xlfn.BETA.DIST(A72,'Carcass Dist'!$B$2,'Carcass Dist'!$B$3,1,'Carcass Dist'!$C$10,'Carcass Dist'!$C$11)-_xlfn.BETA.DIST(A71,'Carcass Dist'!$B$2,'Carcass Dist'!$B$3,1,'Carcass Dist'!$C$10,'Carcass Dist'!$C$11),0) -> 0 | C72: 0 | D72: 0
A73: 131 | B73: =IFERROR(_xlfn.BETA.DIST(A73,'Carcass Dist'!$B$2,'Carcass Dist'!$B$3,1,'Carcass Dist'!$C$10,'Carcass Dist'!$C$11)-_xlfn.BETA.DIST(A72,'Carcass Dist'!$B$2,'Carcass Dist'!$B$3,1,'Carcass Dist'!$C$10,'Carcass Dist'!$C$11),0) -> 0 | C73: 0 | D73: 0
A74: 132 | B74: =IFERROR(_xlfn.BETA.DIST(A74,'Carcass Dist'!$B$2,'Carcass Dist'!$B$3,1,'Carcass Dist'!$C$10,'Carcass Dist'!$C$11)-_xlfn.BETA.DIST(A73,'Carcass Dist'!$B$2,'Carcass Dist'!$B$3,1,'Carcass Dist'!$C$10,'Carcass Dist'!$C$11),0) -> 0 | C74: 0 | D74: 0
A75: 133 | B75: =IFERROR(_xlfn.BETA.DIST(A75,'Carcass Dist'!$B$2,'Carcass Dist'!$B$3,1,'Carcass Dist'!$C$10,'Carcass Dist'!$C$11)-_xlfn.BETA.DIST(A74,'Carcass Dist'!$B$2,'Carcass Dist'!$B$3,1,'Carcass Dist'!$C$10,'Carcass Dist'!$C$11),0) -> 0 | C75: 0 | D75: 0
A76: 134 | B76: =IFERROR(_xlfn.BETA.DIST(A76,'Carcass Dist'!$B$2,'Carcass Dist'!$B$3,1,'Carcass Dist'!$C$10,'Carcass Dist'!$C$11)-_xlfn.BETA.DIST(A75,'Carcass Dist'!$B$2,'Carcass Dist'!$B$3,1,'Carcass Dist'!$C$10,'Carcass Dist'!$C$11),0) -> 0 | C76: 0 | D76: 0
A77: 135 | B77: =IFERROR(_xlfn.BETA.DIST(A77,'Carcass Dist'!$B$2,'Carcass Dist'!$B$3,1,'Carcass Dist'!$C$10,'Carcass Dist'!$C$11)-_xlfn.BETA.DIST(A76,'Carcass Dist'!$B$2,'Carcass Dist'!$B$3,1,'Carcass Dist'!$C$10,'Carcass Dist'!$C$11),0) -> 0 | C77: 0 | D77: 0
A78: 136 | B78: =IFERROR(_xlfn.BETA.DIST(A78,'Carcass Dist'!$B$2,'Carcass Dist'!$B$3,1,'Carcass Dist'!$C$10,'Carcass Dist'!$C$11)-_xlfn.BETA.DIST(A77,'Carcass Dist'!$B$2,'Carcass Dist'!$B$3,1,'Carcass Dist'!$C$10,'Carcass Dist'!$C$11),0) -> 0 | C78: 0 | D78: 0
A79: 137 | B79: =IFERROR(_xlfn.BETA.DIST(A79,'Carcass Dist'!$B$2,'Carcass Dist'!$B$3,1,'Carcass Dist'!$C$10,'Carcass Dist'!$C$11)-_xlfn.BETA.DIST(A78,'Carcass Dist'!$B$2,'Carcass Dist'!$B$3,1,'Carcass Dist'!$C$10,'Carcass Dist'!$C$11),0) -> 0 | C79: 0 | D79: 0
A80: 138 | B80: =IFERROR(_xlfn.BETA.DIST(A80,'Carcass Dist'!$B$2,'Carcass Dist'!$B$3,1,'Carcass Dist'!$C$10,'Carcass Dist'!$C$11)-_xlfn.BETA.DIST(A79,'Carcass Dist'!$B$2,'Carcass Dist'!$B$3,1,'Carcass Dist'!$C$10,'Carcass Dist'!$C$11),0) -> 0 | C80: 0 | D80: 0
A81: 139 | B81: =IFERROR(_xlfn.BETA.DIST(A81,'Carcass Dist'!$B$2,'Carcass Dist'!$B$3,1,'Carcass Dist'!$C$10,'Carcass Dist'!$C$11)-_xlfn.BETA.DIST(A80,'Carcass Dist'!$B$2,'Carcass Dist'!$B$3,1,'Carcass Dist'!$C$10,'Carcass Dist'!$C$11),0) -> 0 | C81: 0 | D81: 0
A82: 140 | B82: =IFERROR(_xlfn.BETA.DIST(A82,'Carcass Dist'!$B$2,'Carcass Dist'!$B$3,1,'Carcass Dist'!$C$10,'Carcass Dist'!$C$11)-_xlfn.BETA.DIST(A81,'Carcass Dist'!$B$2,'Carcass Dist'!$B$3,1,'Carcass Dist'!$C$10,'Carcass Dist'!$C$11),0) -> 0 | C82: 0 | D82: 0
A83: 141 | B83: =IFERROR(_xlfn.BETA.DIST(A83,'Carcass Dist'!$B$2,'Carcass Dist'!$B$3,1,'Carcass Dist'!$C$10,'Carcass Dist'!$C$11)-_xlfn.BETA.DIST(A82,'Carcass Dist'!$B$2,'Carcass Dist'!$B$3,1,'Carcass Dist'!$C$10,'Carcass Dist'!$C$11),0) -> 0 | C83: 0 | D83: 0
A84: 142 | B84: =IFERROR(_xlfn.BETA.DIST(A84,'Carcass Dist'!$B$2,'Carcass Dist'!$B$3,1,'Carcass Dist'!$C$10,'Carcass Dist'!$C$11)-_xlfn.BETA.DIST(A83,'Carcass Dist'!$B$2,'Carcass Dist'!$B$3,1,'Carcass Dist'!$C$10,'Carcass Dist'!$C$11),0) -> 0 | C84: 0 | D84: 0
A85: 143 | B85: =IFERROR(_xlfn.BETA.DIST(A85,'Carcass Dist'!$B$2,'Carcass Dist'!$B$3,1,'Carcass Dist'!$C$10,'Carcass Dist'!$C$11)-_xlfn.BETA.DIST(A84,'Carcass Dist'!$B$2,'Carcass Dist'!$B$3,1,'Carcass Dist'!$C$10,'Carcass Dist'!$C$11),0) -> 0 | C85: 0 | D85: 0
A86: 144 | B86: =IFERROR(_xlfn.BETA.DIST(A86,'Carcass Dist'!$B$2,'Carcass Dist'!$B$3,1,'Carcass Dist'!$C$10,'Carcass Dist'!$C$11)-_xlfn.BETA.DIST(A85,'Carcass Dist'!$B$2,'Carcass Dist'!$B$3,1,'Carcass Dist'!$C$10,'Carcass Dist'!$C$11),0) -> 0 | C86: 0 | D86: 0
A87: 145 | B87: =IFERROR(_xlfn.BETA.DIST(A87,'Carcass Dist'!$B$2,'Carcass Dist'!$B$3,1,'Carcass Dist'!$C$10,'Carcass Dist'!$C$11)-_xlfn.BETA.DIST(A86,'Carcass Dist'!$B$2,'Carcass Dist'!$B$3,1,'Carcass Dist'!$C$10,'Carcass Dist'!$C$11),0) -> 0 | C87: 0 | D87: 0
A88: 146 | B88: =IFERROR(_xlfn.BETA.DIST(A88,'Carcass Dist'!$B$2,'Carcass Dist'!$B$3,1,'Carcass Dist'!$C$10,'Carcass Dist'!$C$11)-_xlfn.BETA.DIST(A87,'Carcass Dist'!$B$2,'Carcass Dist'!$B$3,1,'Carcass Dist'!$C$10,'Carcass Dist'!$C$11),0) -> 0 | C88: 0 | D88: 0
A89: 147 | B89: =IFERROR(_xlfn.BETA.DIST(A89,'Carcass Dist'!$B$2,'Carcass Dist'!$B$3,1,'Carcass Dist'!$C$10,'Carcass Dist'!$C$11)-_xlfn.BETA.DIST(A88,'Carcass Dist'!$B$2,'Carcass Dist'!$B$3,1,'Carcass Dist'!$C$10,'Carcass Dist'!$C$11),0) -> 0 | C89: 0 | D89: 0
A90: 148 | B90: =IFERROR(_xlfn.BETA.DIST(A90,'Carcass Dist'!$B$2,'Carcass Dist'!$B$3,1,'Carcass Dist'!$C$10,'Carcass Dist'!$C$11)-_xlfn.BETA.DIST(A89,'Carcass Dist'!$B$2,'Carcass Dist'!$B$3,1,'Carcass Dist'!$C$10,'Carcass Dist'!$C$11),0) -> 0 | C90: 0 | D90: 0
A91: 149 | B91: =IFERROR(_xlfn.BETA.DIST(A91,'Carcass Dist'!$B$2,'Carcass Dist'!$B$3,1,'Carcass Dist'!$C$10,'Carcass Dist'!$C$11)-_xlfn.BETA.DIST(A90,'Carcass Dist'!$B$2,'Carcass Dist'!$B$3,1,'Carcass Dist'!$C$10,'Carcass Dist'!$C$11),0) -> 0 | C91: 0 | D91: 0
A92: 150 | B92: =IFERROR(_xlfn.BETA.DIST(A92,'Carcass Dist'!$B$2,'Carcass Dist'!$B$3,1,'Carcass Dist'!$C$10,'Carcass Dist'!$C$11)-_xlfn.BETA.DIST(A91,'Carcass Dist'!$B$2,'Carcass Dist'!$B$3,1,'Carcass Dist'!$C$10,'Carcass Dist'!$C$11),0) -> 0 | C92: 0 | D92: 0
A93: 151 | B93: =IFERROR(_xlfn.BETA.DIST(A93,'Carcass Dist'!$B$2,'Carcass Dist'!$B$3,1,'Carcass Dist'!$C$10,'Carcass Dist'!$C$11)-_xlfn.BETA.DIST(A92,'Carcass Dist'!$B$2,'Carcass Dist'!$B$3,1,'Carcass Dist'!$C$10,'Carcass Dist'!$C$11),0) -> 0 | C93: 0 | D93: 0
A94: 152 | B94: =IFERROR(_xlfn.BETA.DIST(A94,'Carcass Dist'!$B$2,'Carcass Dist'!$B$3,1,'Carcass Dist'!$C$10,'Carcass Dist'!$C$11)-_xlfn.BETA.DIST(A93,'Carcass Dist'!$B$2,'Carcass Dist'!$B$3,1,'Carcass Dist'!$C$10,'Carcass Dist'!$C$11),0) -> 0 | C94: 0 | D94: 0
A95: 153 | B95: =IFERROR(_xlfn.BETA.DIST(A95,'Carcass Dist'!$B$2,'Carcass Dist'!$B$3,1,'Carcass Dist'!$C$10,'Carcass Dist'!$C$11)-_xlfn.BETA.DIST(A94,'Carcass Dist'!$B$2,'Carcass Dist'!$B$3,1,'Carcass Dist'!$C$10,'Carcass Dist'!$C$11),0) -> 0 | C95: 0 | D95: 0
A96: 154 | B96: =IFERROR(_xlfn.BETA.DIST(A96,'Carcass Dist'!$B$2,'Carcass Dist'!$B$3,1,'Carcass Dist'!$C$10,'Carcass Dist'!$C$11)-_xlfn.BETA.DIST(A95,'Carcass Dist'!$B$2,'Carcass Dist'!$B$3,1,'Carcass Dist'!$C$10,'Carcass Dist'!$C$11),0) -> 0 | C96: 0 | D96: 0
A97: 155 | B97: =IFERROR(_xlfn.BETA.DIST(A97,'Carcass Dist'!$B$2,'Carcass Dist'!$B$3,1,'Carcass Dist'!$C$10,'Carcass Dist'!$C$11)-_xlfn.BETA.DIST(A96,'Carcass Dist'!$B$2,'Carcass Dist'!$B$3,1,'Carcass Dist'!$C$10,'Carcass Dist'!$C$11),0) -> 0 | C97: 0 | D97: 0
A98: 156 | B98: =IFERROR(_xlfn.BETA.DIST(A98,'Carcass Dist'!$B$2,'Carcass Dist'!$B$3,1,'Carcass Dist'!$C$10,'Carcass Dist'!$C$11)-_xlfn.BETA.DIST(A97,'Carcass Dist'!$B$2,'Carcass Dist'!$B$3,1,'Carcass Dist'!$C$10,'Carcass Dist'!$C$11),0) -> 0 | C98: 0 | D98: 0
A99: 157 | B99: =IFERROR(_xlfn.BETA.DIST(A99,'Carcass Dist'!$B$2,'Carcass Dist'!$B$3,1,'Carcass Dist'!$C$10,'Carcass Dist'!$C$11)-_xlfn.BETA.DIST(A98,'Carcass Dist'!$B$2,'Carcass Dist'!$B$3,1,'Carcass Dist'!$C$10,'Carcass Dist'!$C$11),0) -> 0 | C99: 0 | D99: 0
A100: 158 | B100: =IFERROR(_xlfn.BETA.DIST(A100,'Carcass Dist'!$B$2,'Carcass Dist'!$B$3,1,'Carcass Dist'!$C$10,'Carcass Dist'!$C$11)-_xlfn.BETA.DIST(A99,'Carcass Dist'!$B$2,'Carcass Dist'!$B$3,1,'Carcass Dist'!$C$10,'Carcass Dist'!$C$11),0) -> 0 | C100: 0 | D100: 0
A101: 159 | B101: =IFERROR(_xlfn.BETA.DIST(A101,'Carcass Dist'!$B$2,'Carcass Dist'!$B$3,1,'Carcass Dist'!$C$10,'Carcass Dist'!$C$11)-_xlfn.BETA.DIST(A100,'Carcass Dist'!$B$2,'Carcass Dist'!$B$3,1,'Carcass Dist'!$C$10,'Carcass Dist'!$C$11),0) -> 0 | C101: 0 | D101: 0
A102: 160 | B102: =IFERROR(_xlfn.BETA.DIST(A102,'Carcass Dist'!$B$2,'Carcass Dist'!$B$3,1,'Carcass Dist'!$C$10,'Carcass Dist'!$C$11)-_xlfn.BETA.DIST(A101,'Carcass Dist'!$B$2,'Carcass Dist'!$B$3,1,'Carcass Dist'!$C$10,'Carcass Dist'!$C$11),0) -> 0 | C102: 0 | D102: 0
A103: 161 | B103: =IFERROR(_xlfn.BETA.DIST(A103,'Carcass Dist'!$B$2,'Carcass Dist'!$B$3,1,'Carcass Dist'!$C$10,'Carcass Dist'!$C$11)-_xlfn.BETA.DIST(A102,'Carcass Dist'!$B$2,'Carcass Dist'!$B$3,1,'Carcass Dist'!$C$10,'Carcass Dist'!$C$11),0) -> 0 | C103: 0 | D103: 0
A104: 162 | B104: =IFERROR(_xlfn.BETA.DIST(A104,'Carcass Dist'!$B$2,'Carcass Dist'!$B$3,1,'Carcass Dist'!$C$10,'Carcass Dist'!$C$11)-_xlfn.BETA.DIST(A103,'Carcass Dist'!$B$2,'Carcass Dist'!$B$3,1,'Carcass Dist'!$C$10,'Carcass Dist'!$C$11),0) -> 0 | C104: 0 | D104: 0
A105: 163 | B105: =IFERROR(_xlfn.BETA.DIST(A105,'Carcass Dist'!$B$2,'Carcass Dist'!$B$3,1,'Carcass Dist'!$C$10,'Carcass Dist'!$C$11)-_xlfn.BETA.DIST(A104,'Carcass Dist'!$B$2,'Carcass Dist'!$B$3,1,'Carcass Dist'!$C$10,'Carcass Dist'!$C$11),0) -> 0 | C105: 0 | D105: 0
A106: 164 | B106: =IFERROR(_xlfn.BETA.DIST(A106,'Carcass Dist'!$B$2,'Carcass Dist'!$B$3,1,'Carcass Dist'!$C$10,'Carcass Dist'!$C$11)-_xlfn.BETA.DIST(A105,'Carcass Dist'!$B$2,'Carcass Dist'!$B$3,1,'Carcass Dist'!$C$10,'Carcass Dist'!$C$11),0) -> 0 | C106: 0 | D106: 0
A107: 165 | B107: =IFERROR(_xlfn.BETA.DIST(A107,'Carcass Dist'!$B$2,'Carcass Dist'!$B$3,1,'Carcass Dist'!$C$10,'Carcass Dist'!$C$11)-_xlfn.BETA.DIST(A106,'Carcass Dist'!$B$2,'Carcass Dist'!$B$3,1,'Carcass Dist'!$C$10,'Carcass Dist'!$C$11),0) -> 0 | C107: 0 | D107: 0
A108: 166 | B108: =IFERROR(_xlfn.BETA.DIST(A108,'Carcass Dist'!$B$2,'Carcass Dist'!$B$3,1,'Carcass Dist'!$C$10,'Carcass Dist'!$C$11)-_xlfn.BETA.DIST(A107,'Carcass Dist'!$B$2,'Carcass Dist'!$B$3,1,'Carcass Dist'!$C$10,'Carcass Dist'!$C$11),0) -> 0 | C108: 0 | D108: 0
A109: 167 | B109: =IFERROR(_xlfn.BETA.DIST(A109,'Carcass Dist'!$B$2,'Carcass Dist'!$B$3,1,'Carcass Dist'!$C$10,'Carcass Dist'!$C$11)-_xlfn.BETA.DIST(A108,'Carcass Dist'!$B$2,'Carcass Dist'!$B$3,1,'Carcass Dist'!$C$10,'Carcass Dist'!$C$11),0) -> 0 | C109: 0 | D109: 0
A110: 168 | B110: =IFERROR(_xlfn.BETA.DIST(A110,'Carcass Dist'!$B$2,'Carcass Dist'!$B$3,1,'Carcass Dist'!$C$10,'Carcass Dist'!$C$11)-_xlfn.BETA.DIST(A109,'Carcass Dist'!$B$2,'Carcass Dist'!$B$3,1,'Carcass Dist'!$C$10,'Carcass Dist'!$C$11),0) -> 0 | C110: 0 | D110: 0
A111: 169 | B111: =IFERROR(_xlfn.BETA.DIST(A111,'Carcass Dist'!$B$2,'Carcass Dist'!$B$3,1,'Carcass Dist'!$C$10,'Carcass Dist'!$C$11)-_xlfn.BETA.DIST(A110,'Carcass Dist'!$B$2,'Carcass Dist'!$B$3,1,'Carcass Dist'!$C$10,'Carcass Dist'!$C$11),0) -> 0 | C111: 0 | D111: 0
A112: 170 | B112: =IFERROR(_xlfn.BETA.DIST(A112,'Carcass Dist'!$B$2,'Carcass Dist'!$B$3,1,'Carcass Dist'!$C$10,'Carcass Dist'!$C$11)-_xlfn.BETA.DIST(A111,'Carcass Dist'!$B$2,'Carcass Dist'!$B$3,1,'Carcass Dist'!$C$10,'Carcass Dist'!$C$11),0) -> 0 | C112: 0 | D112: 0
A113: 171 | B113: =IFERROR(_xlfn.BETA.DIST(A113,'Carcass Dist'!$B$2,'Carcass Dist'!$B$3,1,'Carcass Dist'!$C$10,'Carcass Dist'!$C$11)-_xlfn.BETA.DIST(A112,'Carcass Dist'!$B$2,'Carcass Dist'!$B$3,1,'Carcass Dist'!$C$10,'Carcass Dist'!$C$11),0) -> 0 | C113: 0 | D113: 0
A114: 172 | B114: =IFERROR(_xlfn.BETA.DIST(A114,'Carcass Dist'!$B$2,'Carcass Dist'!$B$3,1,'Carcass Dist'!$C$10,'Carcass Dist'!$C$11)-_xlfn.BETA.DIST(A113,'Carcass Dist'!$B$2,'Carcass Dist'!$B$3,1,'Carcass Dist'!$C$10,'Carcass Dist'!$C$11),0) -> 0 | C114: 0 | D114: 0
A115: 173 | B115: =IFERROR(_xlfn.BETA.DIST(A115,'Carcass Dist'!$B$2,'Carcass Dist'!$B$3,1,'Carcass Dist'!$C$10,'Carcass Dist'!$C$11)-_xlfn.BETA.DIST(A114,'Carcass Dist'!$B$2,'Carcass Dist'!$B$3,1,'Carcass Dist'!$C$10,'Carcass Dist'!$C$11),0) -> 0 | C115: 0 | D115: 0
A116: 174 | B116: =IFERROR(_xlfn.BETA.DIST(A116,'Carcass Dist'!$B$2,'Carcass Dist'!$B$3,1,'Carcass Dist'!$C$10,'Carcass Dist'!$C$11)-_xlfn.BETA.DIST(A115,'Carcass Dist'!$B$2,'Carcass Dist'!$B$3,1,'Carcass Dist'!$C$10,'Carcass Dist'!$C$11),0) -> 0 | C116: 0 | D116: 0
A117: 175 | B117: =IFERROR(_xlfn.BETA.DIST(A117,'Carcass Dist'!$B$2,'Carcass Dist'!$B$3,1,'Carcass Dist'!$C$10,'Carcass Dist'!$C$11)-_xlfn.BETA.DIST(A116,'Carcass Dist'!$B$2,'Carcass Dist'!$B$3,1,'Carcass Dist'!$C$10,'Carcass Dist'!$C$11),0) -> 0 | C117: 0 | D117: 0
A118: 176 | B118: =IFERROR(_xlfn.BETA.DIST(A118,'Carcass Dist'!$B$2,'Carcass Dist'!$B$3,1,'Carcass Dist'!$C$10,'Carcass Dist'!$C$11)-_xlfn.BETA.DIST(A117,'Carcass Dist'!$B$2,'Carcass Dist'!$B$3,1,'Carcass Dist'!$C$10,'Carcass Dist'!$C$11),0) -> 0 | C118: 0 | D118: 0
A119: 177 | B119: =IFERROR(_xlfn.BETA.DIST(A119,'Carcass Dist'!$B$2,'Carcass Dist'!$B$3,1,'Carcass Dist'!$C$10,'Carcass Dist'!$C$11)-_xlfn.BETA.DIST(A118,'Carcass Dist'!$B$2,'Carcass Dist'!$B$3,1,'Carcass Dist'!$C$10,'Carcass Dist'!$C$11),0) -> 0 | C119: 0 | D119: 0
A120: 178 | B120: =IFERROR(_xlfn.BETA.DIST(A120,'Carcass Dist'!$B$2,'Carcass Dist'!$B$3,1,'Carcass Dist'!$C$10,'Carcass Dist'!$C$11)-_xlfn.BETA.DIST(A119,'Carcass Dist'!$B$2,'Carcass Dist'!$B$3,1,'Carcass Dist'!$C$10,'Carcass Dist'!$C$11),0) -> 0 | C120: 0 | D120: 0
A121: 179 | B121: =IFERROR(_xlfn.BETA.DIST(A121,'Carcass Dist'!$B$2,'Carcass Dist'!$B$3,1,'Carcass Dist'!$C$10,'Carcass Dist'!$C$11)-_xlfn.BETA.DIST(A120,'Carcass Dist'!$B$2,'Carcass Dist'!$B$3,1,'Carcass Dist'!$C$10,'Carcass Dist'!$C$11),0) -> 0 | C121: 0 | D121: 0
A122: 180 | B122: =IFERROR(_xlfn.BETA.DIST(A122,'Carcass Dist'!$B$2,'Carcass Dist'!$B$3,1,'Carcass Dist'!$C$10,'Carcass Dist'!$C$11)-_xlfn.BETA.DIST(A121,'Carcass Dist'!$B$2,'Carcass Dist'!$B$3,1,'Carcass Dist'!$C$10,'Carcass Dist'!$C$11),0) -> 0 | C122: 0 | D122: 0
A123: 181 | B123: =IFERROR(_xlfn.BETA.DIST(A123,'Carcass Dist'!$B$2,'Carcass Dist'!$B$3,1,'Carcass Dist'!$C$10,'Carcass Dist'!$C$11)-_xlfn.BETA.DIST(A122,'Carcass Dist'!$B$2,'Carcass Dist'!$B$3,1,'Carcass Dist'!$C$10,'Carcass Dist'!$C$11),0) -> 0 | C123: 0 | D123: 0
A124: 182 | B124: =IFERROR(_xlfn.BETA.DIST(A124,'Carcass Dist'!$B$2,'Carcass Dist'!$B$3,1,'Carcass Dist'!$C$10,'Carcass Dist'!$C$11)-_xlfn.BETA.DIST(A123,'Carcass Dist'!$B$2,'Carcass Dist'!$B$3,1,'Carcass Dist'!$C$10,'Carcass Dist'!$C$11),0) -> 0 | C124: 0 | D124: 0
A125: 183 | B125: =IFERROR(_xlfn.BETA.DIST(A125,'Carcass Dist'!$B$2,'Carcass Dist'!$B$3,1,'Carcass Dist'!$C$10,'Carcass Dist'!$C$11)-_xlfn.BETA.DIST(A124,'Carcass Dist'!$B$2,'Carcass Dist'!$B$3,1,'Carcass Dist'!$C$10,'Carcass Dist'!$C$11),0) -> 0 | C125: 0 | D125: 0
A126: 184 | B126: =IFERROR(_xlfn.BETA.DIST(A126,'Carcass Dist'!$B$2,'Carcass Dist'!$B$3,1,'Carcass Dist'!$C$10,'Carcass Dist'!$C$11)-_xlfn.BETA.DIST(A125,'Carcass Dist'!$B$2,'Carcass Dist'!$B$3,1,'Carcass Dist'!$C$10,'Carcass Dist'!$C$11),0) -> 0 | C126: 0 | D126: 0
A127: 185 | B127: =IFERROR(_xlfn.BETA.DIST(A127,'Carcass Dist'!$B$2,'Carcass Dist'!$B$3,1,'Carcass Dist'!$C$10,'Carcass Dist'!$C$11)-_xlfn.BETA.DIST(A126,'Carcass Dist'!$B$2,'Carcass Dist'!$B$3,1,'Carcass Dist'!$C$10,'Carcass Dist'!$C$11),0) -> 0 | C127: 0 | D127: 0
A128: 186 | B128: =IFERROR(_xlfn.BETA.DIST(A128,'Carcass Dist'!$B$2,'Carcass Dist'!$B$3,1,'Carcass Dist'!$C$10,'Carcass Dist'!$C$11)-_xlfn.BETA.DIST(A127,'Carcass Dist'!$B$2,'Carcass Dist'!$B$3,1,'Carcass Dist'!$C$10,'Carcass Dist'!$C$11),0) -> 0 | C128: 0 | D128: 0
A129: 187 | B129: =IFERROR(_xlfn.BETA.DIST(A129,'Carcass Dist'!$B$2,'Carcass Dist'!$B$3,1,'Carcass Dist'!$C$10,'Carcass Dist'!$C$11)-_xlfn.BETA.DIST(A128,'Carcass Dist'!$B$2,'Carcass Dist'!$B$3,1,'Carcass Dist'!$C$10,'Carcass Dist'!$C$11),0) -> 0 | C129: 0 | D129: 0
A130: 188 | B130: =IFERROR(_xlfn.BETA.DIST(A130,'Carcass Dist'!$B$2,'Carcass Dist'!$B$3,1,'Carcass Dist'!$C$10,'Carcass Dist'!$C$11)-_xlfn.BETA.DIST(A129,'Carcass Dist'!$B$2,'Carcass Dist'!$B$3,1,'Carcass Dist'!$C$10,'Carcass Dist'!$C$11),0) -> 0 | C130: 0 | D130: =IF(B130="",0,C130*A130) -> 0
A131: 189 | B131: =IFERROR(_xlfn.BETA.DIST(A131,'Carcass Dist'!$B$2,'Carcass Dist'!$B$3,1,'Carcass Dist'!$C$10,'Carcass Dist'!$C$11)-_xlfn.BETA.DIST(A130,'Carcass Dist'!$B$2,'Carcass Dist'!$B$3,1,'Carcass Dist'!$C$10,'Carcass Dist'!$C$11),0) -> 0 | C131: 0 | D131: 0
A132: =A131+1 -> 190 | B132: =IFERROR(_xlfn.BETA.DIST(A132,'Carcass Dist'!$B$2,'Carcass Dist'!$B$3,1,'Carcass Dist'!$C$10,'Carcass Dist'!$C$11)-_xlfn.BETA.DIST(A131,'Carcass Dist'!$B$2,'Carcass Dist'!$B$3,1,'Carcass Dist'!$C$10,'Carcass Dist'!$C$11),0) -> 0 | C132: =B132*$G$2 -> 0 | D132: 0
A133: 191 | B133: =IFERROR(_xlfn.BETA.DIST(A133,'Carcass Dist'!$B$2,'Carcass Dist'!$B$3,1,'Carcass Dist'!$C$10,'Carcass Dist'!$C$11)-_xlfn.BETA.DIST(A132,'Carcass Dist'!$B$2,'Carcass Dist'!$B$3,1,'Carcass Dist'!$C$10,'Carcass Dist'!$C$11),0) -> 0 | C133: 0 | D133: 0
A134: 192 | B134: =IFERROR(_xlfn.BETA.DIST(A134,'Carcass Dist'!$B$2,'Carcass Dist'!$B$3,1,'Carcass Dist'!$C$10,'Carcass Dist'!$C$11)-_xlfn.BETA.DIST(A133,'Carcass Dist'!$B$2,'Carcass Dist'!$B$3,1,'Carcass Dist'!$C$10,'Carcass Dist'!$C$11),0) -> 0 | C134: 0 | D134: 0
A135: 193 | B135: =IFERROR(_xlfn.BETA.DIST(A135,'Carcass Dist'!$B$2,'Carcass Dist'!$B$3,1,'Carcass Dist'!$C$10,'Carcass Dist'!$C$11)-_xlfn.BETA.DIST(A134,'Carcass Dist'!$B$2,'Carcass Dist'!$B$3,1,'Carcass Dist'!$C$10,'Carcass Dist'!$C$11),0) -> 0 | C135: 0 | D135: 0
A136: 194 | B136: =IFERROR(_xlfn.BETA.DIST(A136,'Carcass Dist'!$B$2,'Carcass Dist'!$B$3,1,'Carcass Dist'!$C$10,'Carcass Dist'!$C$11)-_xlfn.BETA.DIST(A135,'Carcass Dist'!$B$2,'Carcass Dist'!$B$3,1,'Carcass Dist'!$C$10,'Carcass Dist'!$C$11),0) -> 0 | C136: 0 | D136: 0
A137: 195 | B137: =IFERROR(_xlfn.BETA.DIST(A137,'Carcass Dist'!$B$2,'Carcass Dist'!$B$3,1,'Carcass Dist'!$C$10,'Carcass Dist'!$C$11)-_xlfn.BETA.DIST(A136,'Carcass Dist'!$B$2,'Carcass Dist'!$B$3,1,'Carcass Dist'!$C$10,'Carcass Dist'!$C$11),0) -> 0 | C137: 0 | D137: 0
A138: 196 | B138: =IFERROR(_xlfn.BETA.DIST(A138,'Carcass Dist'!$B$2,'Carcass Dist'!$B$3,1,'Carcass Dist'!$C$10,'Carcass Dist'!$C$11)-_xlfn.BETA.DIST(A137,'Carcass Dist'!$B$2,'Carcass Dist'!$B$3,1,'Carcass Dist'!$C$10,'Carcass Dist'!$C$11),0) -> 0 | C138: 0 | D138: 0
A139: 197 | B139: =IFERROR(_xlfn.BETA.DIST(A139,'Carcass Dist'!$B$2,'Carcass Dist'!$B$3,1,'Carcass Dist'!$C$10,'Carcass Dist'!$C$11)-_xlfn.BETA.DIST(A138,'Carcass Dist'!$B$2,'Carcass Dist'!$B$3,1,'Carcass Dist'!$C$10,'Carcass Dist'!$C$11),0) -> 0 | C139: 0 | D139: 0
A140: 198 | B140: =IFERROR(_xlfn.BETA.DIST(A140,'Carcass Dist'!$B$2,'Carcass Dist'!$B$3,1,'Carcass Dist'!$C$10,'Carcass Dist'!$C$11)-_xlfn.BETA.DIST(A139,'Carcass Dist'!$B$2,'Carcass Dist'!$B$3,1,'Carcass Dist'!$C$10,'Carcass Dist'!$C$11),0) -> 0 | C140: 0 | D140: 0
A141: 199 | B141: =IFERROR(_xlfn.BETA.DIST(A141,'Carcass Dist'!$B$2,'Carcass Dist'!$B$3,1,'Carcass Dist'!$C$10,'Carcass Dist'!$C$11)-_xlfn.BETA.DIST(A140,'Carcass Dist'!$B$2,'Carcass Dist'!$B$3,1,'Carcass Dist'!$C$10,'Carcass Dist'!$C$11),0) -> 0 | C141: 0 | D141: 0
A142: 200 | B142: =IFERROR(_xlfn.BETA.DIST(A142,'Carcass Dist'!$B$2,'Carcass Dist'!$B$3,1,'Carcass Dist'!$C$10,'Carcass Dist'!$C$11)-_xlfn.BETA.DIST(A141,'Carcass Dist'!$B$2,'Carcass Dist'!$B$3,1,'Carcass Dist'!$C$10,'Carcass Dist'!$C$11),0) -> 0 | C142: 0 | D142: 0
A143: 201 | B143: =IFERROR(_xlfn.BETA.DIST(A143,'Carcass Dist'!$B$2,'Carcass Dist'!$B$3,1,'Carcass Dist'!$C$10,'Carcass Dist'!$C$11)-_xlfn.BETA.DIST(A142,'Carcass Dist'!$B$2,'Carcass Dist'!$B$3,1,'Carcass Dist'!$C$10,'Carcass Dist'!$C$11),0) -> 0 | C143: 0 | D143: 0
A144: 202 | B144: =IFERROR(_xlfn.BETA.DIST(A144,'Carcass Dist'!$B$2,'Carcass Dist'!$B$3,1,'Carcass Dist'!$C$10,'Carcass Dist'!$C$11)-_xlfn.BETA.DIST(A143,'Carcass Dist'!$B$2,'Carcass Dist'!$B$3,1,'Carcass Dist'!$C$10,'Carcass Dist'!$C$11),0) -> 0 | C144: 0 | D144: 0
A145: 203 | B145: =IFERROR(_xlfn.BETA.DIST(A145,'Carcass Dist'!$B$2,'Carcass Dist'!$B$3,1,'Carcass Dist'!$C$10,'Carcass Dist'!$C$11)-_xlfn.BETA.DIST(A144,'Carcass Dist'!$B$2,'Carcass Dist'!$B$3,1,'Carcass Dist'!$C$10,'Carcass Dist'!$C$11),0) -> 0 | C145: 0 | D145: 0
A146: 204 | B146: =IFERROR(_xlfn.BETA.DIST(A146,'Carcass Dist'!$B$2,'Carcass Dist'!$B$3,1,'Carcass Dist'!$C$10,'Carcass Dist'!$C$11)-_xlfn.BETA.DIST(A145,'Carcass Dist'!$B$2,'Carcass Dist'!$B$3,1,'Carcass Dist'!$C$10,'Carcass Dist'!$C$11),0) -> 0 | C146: 0 | D146: 0
A147: 205 | B147: =IFERROR(_xlfn.BETA.DIST(A147,'Carcass Dist'!$B$2,'Carcass Dist'!$B$3,1,'Carcass Dist'!$C$10,'Carcass Dist'!$C$11)-_xlfn.BETA.DIST(A146,'Carcass Dist'!$B$2,'Carcass Dist'!$B$3,1,'Carcass Dist'!$C$10,'Carcass Dist'!$C$11),0) -> 0 | C147: 0 | D147: 0
A148: 206 | B148: =IFERROR(_xlfn.BETA.DIST(A148,'Carcass Dist'!$B$2,'Carcass Dist'!$B$3,1,'Carcass Dist'!$C$10,'Carcass Dist'!$C$11)-_xlfn.BETA.DIST(A147,'Carcass Dist'!$B$2,'Carcass Dist'!$B$3,1,'Carcass Dist'!$C$10,'Carcass Dist'!$C$11),0) -> 0 | C148: 0 | D148: 0
A149: 207 | B149: =IFERROR(_xlfn.BETA.DIST(A149,'Carcass Dist'!$B$2,'Carcass Dist'!$B$3,1,'Carcass Dist'!$C$10,'Carcass Dist'!$C$11)-_xlfn.BETA.DIST(A148,'Carcass Dist'!$B$2,'Carcass Dist'!$B$3,1,'Carcass Dist'!$C$10,'Carcass Dist'!$C$11),0) -> 0 | C149: 0 | D149: 0
A150: 208 | B150: =IFERROR(_xlfn.BETA.DIST(A150,'Carcass Dist'!$B$2,'Carcass Dist'!$B$3,1,'Carcass Dist'!$C$10,'Carcass Dist'!$C$11)-_xlfn.BETA.DIST(A149,'Carcass Dist'!$B$2,'Carcass Dist'!$B$3,1,'Carcass Dist'!$C$10,'Carcass Dist'!$C$11),0) -> 0 | C150: 0 | D150: 0
A151: 209 | B151: =IFERROR(_xlfn.BETA.DIST(A151,'Carcass Dist'!$B$2,'Carcass Dist'!$B$3,1,'Carcass Dist'!$C$10,'Carcass Dist'!$C$11)-_xlfn.BETA.DIST(A150,'Carcass Dist'!$B$2,'Carcass Dist'!$B$3,1,'Carcass Dist'!$C$10,'Carcass Dist'!$C$11),0) -> 0 | C151: 0 | D151: 0
A152: 210 | B152: =IFERROR(_xlfn.BETA.DIST(A152,'Carcass Dist'!$B$2,'Carcass Dist'!$B$3,1,'Carcass Dist'!$C$10,'Carcass Dist'!$C$11)-_xlfn.BETA.DIST(A151,'Carcass Dist'!$B$2,'Carcass Dist'!$B$3,1,'Carcass Dist'!$C$10,'Carcass Dist'!$C$11),0) -> 0 | C152: 0 | D152: 0
A153: 211 | B153: =IFERROR(_xlfn.BETA.DIST(A153,'Carcass Dist'!$B$2,'Carcass Dist'!$B$3,1,'Carcass Dist'!$C$10,'Carcass Dist'!$C$11)-_xlfn.BETA.DIST(A152,'Carcass Dist'!$B$2,'Carcass Dist'!$B$3,1,'Carcass Dist'!$C$10,'Carcass Dist'!$C$11),0) -> 0 | C153: 0 | D153: 0
A154: 212 | B154: =IFERROR(_xlfn.BETA.DIST(A154,'Carcass Dist'!$B$2,'Carcass Dist'!$B$3,1,'Carcass Dist'!$C$10,'Carcass Dist'!$C$11)-_xlfn.BETA.DIST(A153,'Carcass Dist'!$B$2,'Carcass Dist'!$B$3,1,'Carcass Dist'!$C$10,'Carcass Dist'!$C$11),0) -> 0 | C154: 0 | D154: 0
A155: 213 | B155: =IFERROR(_xlfn.BETA.DIST(A155,'Carcass Dist'!$B$2,'Carcass Dist'!$B$3,1,'Carcass Dist'!$C$10,'Carcass Dist'!$C$11)-_xlfn.BETA.DIST(A154,'Carcass Dist'!$B$2,'Carcass Dist'!$B$3,1,'Carcass Dist'!$C$10,'Carcass Dist'!$C$11),0) -> 0 | C155: 0 | D155: 0
A156: 214 | B156: =IFERROR(_xlfn.BETA.DIST(A156,'Carcass Dist'!$B$2,'Carcass Dist'!$B$3,1,'Carcass Dist'!$C$10,'Carcass Dist'!$C$11)-_xlfn.BETA.DIST(A155,'Carcass Dist'!$B$2,'Carcass Dist'!$B$3,1,'Carcass Dist'!$C$10,'Carcass Dist'!$C$11),0) -> 0 | C156: 0 | D156: 0
A157: 215 | B157: =IFERROR(_xlfn.BETA.DIST(A157,'Carcass Dist'!$B$2,'Carcass Dist'!$B$3,1,'Carcass Dist'!$C$10,'Carcass Dist'!$C$11)-_xlfn.BETA.DIST(A156,'Carcass Dist'!$B$2,'Carcass Dist'!$B$3,1,'Carcass Dist'!$C$10,'Carcass Dist'!$C$11),0) -> 0 | C157: 0 | D157: 0
A158: 216 | B158: =IFERROR(_xlfn.BETA.DIST(A158,'Carcass Dist'!$B$2,'Carcass Dist'!$B$3,1,'Carcass Dist'!$C$10,'Carcass Dist'!$C$11)-_xlfn.BETA.DIST(A157,'Carcass Dist'!$B$2,'Carcass Dist'!$B$3,1,'Carcass Dist'!$C$10,'Carcass Dist'!$C$11),0) -> 0 | C158: 0 | D158: =IF(B158="",0,C158*A158) -> 0
A159: 217 | B159: =IFERROR(_xlfn.BETA.DIST(A159,'Carcass Dist'!$B$2,'Carcass Dist'!$B$3,1,'Carcass Dist'!$C$10,'Carcass Dist'!$C$11)-_xlfn.BETA.DIST(A158,'Carcass Dist'!$B$2,'Carcass Dist'!$B$3,1,'Carcass Dist'!$C$10,'Carcass Dist'!$C$11),0) -> 0 | C159: 0 | D159: 0
A160: 218 | B160: =IFERROR(_xlfn.BETA.DIST(A160,'Carcass Dist'!$B$2,'Carcass Dist'!$B$3,1,'Carcass Dist'!$C$10,'Carcass Dist'!$C$11)-_xlfn.BETA.DIST(A159,'Carcass Dist'!$B$2,'Carcass Dist'!$B$3,1,'Carcass Dist'!$C$10,'Carcass Dist'!$C$11),0) -> 0 | C160: 0 | D160: 0
A161: 219 | B161: =IFERROR(_xlfn.BETA.DIST(A161,'Carcass Dist'!$B$2,'Carcass Dist'!$B$3,1,'Carcass Dist'!$C$10,'Carcass Dist'!$C$11)-_xlfn.BETA.DIST(A160,'Carcass Dist'!$B$2,'Carcass Dist'!$B$3,1,'Carcass Dist'!$C$10,'Carcass Dist'!$C$11),0) -> 0 | C161: 0 | D161: 0
A162: 220 | B162: =IFERROR(_xlfn.BETA.DIST(A162,'Carcass Dist'!$B$2,'Carcass Dist'!$B$3,1,'Carcass Dist'!$C$10,'Carcass Dist'!$C$11)-_xlfn.BETA.DIST(A161,'Carcass Dist'!$B$2,'Carcass Dist'!$B$3,1,'Carcass Dist'!$C$10,'Carcass Dist'!$C$11),0) -> 0 | C162: 0 | D162: 0
A163: 221 | B163: =IFERROR(_xlfn.BETA.DIST(A163,'Carcass Dist'!$B$2,'Carcass Dist'!$B$3,1,'Carcass Dist'!$C$10,'Carcass Dist'!$C$11)-_xlfn.BETA.DIST(A162,'Carcass Dist'!$B$2,'Carcass Dist'!$B$3,1,'Carcass Dist'!$C$10,'Carcass Dist'!$C$11),0) -> 0 | C163: 0 | D163: 0
A164: 222 | B164: =IFERROR(_xlfn.BETA.DIST(A164,'Carcass Dist'!$B$2,'Carcass Dist'!$B$3,1,'Carcass Dist'!$C$10,'Carcass Dist'!$C$11)-_xlfn.BETA.DIST(A163,'Carcass Dist'!$B$2,'Carcass Dist'!$B$3,1,'Carcass Dist'!$C$10,'Carcass Dist'!$C$11),0) -> 0 | C164: 0 | D164: 0
A165: 223 | B165: =IFERROR(_xlfn.BETA.DIST(A165,'Carcass Dist'!$B$2,'Carcass Dist'!$B$3,1,'Carcass Dist'!$C$10,'Carcass Dist'!$C$11)-_xlfn.BETA.DIST(A164,'Carcass Dist'!$B$2,'Carcass Dist'!$B$3,1,'Carcass Dist'!$C$10,'Carcass Dist'!$C$11),0) -> 0 | C165: 0 | D165: 0
A166: 224 | B166: =IFERROR(_xlfn.BETA.DIST(A166,'Carcass Dist'!$B$2,'Carcass Dist'!$B$3,1,'Carcass Dist'!$C$10,'Carcass Dist'!$C$11)-_xlfn.BETA.DIST(A165,'Carcass Dist'!$B$2,'Carcass Dist'!$B$3,1,'Carcass Dist'!$C$10,'Carcass Dist'!$C$11),0) -> 0 | C166: 0 | D166: 0
A167: 225 | B167: =IFERROR(_xlfn.BETA.DIST(A167,'Carcass Dist'!$B$2,'Carcass Dist'!$B$3,1,'Carcass Dist'!$C$10,'Carcass Dist'!$C$11)-_xlfn.BETA.DIST(A166,'Carcass Dist'!$B$2,'Carcass Dist'!$B$3,1,'Carcass Dist'!$C$10,'Carcass Dist'!$C$11),0) -> 0 | C167: 0 | D167: 0
A168: 226 | B168: =IFERROR(_xlfn.BETA.DIST(A168,'Carcass Dist'!$B$2,'Carcass Dist'!$B$3,1,'Carcass Dist'!$C$10,'Carcass Dist'!$C$11)-_xlfn.BETA.DIST(A167,'Carcass Dist'!$B$2,'Carcass Dist'!$B$3,1,'Carcass Dist'!$C$10,'Carcass Dist'!$C$11),0) -> 0 | C168: 0 | D168: 0
A169: 227 | B169: =IFERROR(_xlfn.BETA.DIST(A169,'Carcass Dist'!$B$2,'Carcass Dist'!$B$3,1,'Carcass Dist'!$C$10,'Carcass Dist'!$C$11)-_xlfn.BETA.DIST(A168,'Carcass Dist'!$B$2,'Carcass Dist'!$B$3,1,'Carcass Dist'!$C$10,'Carcass Dist'!$C$11),0) -> 0 | C169: 0 | D169: 0
A170: 228 | B170: =IFERROR(_xlfn.BETA.DIST(A170,'Carcass Dist'!$B$2,'Carcass Dist'!$B$3,1,'Carcass Dist'!$C$10,'Carcass Dist'!$C$11)-_xlfn.BETA.DIST(A169,'Carcass Dist'!$B$2,'Carcass Dist'!$B$3,1,'Carcass Dist'!$C$10,'Carcass Dist'!$C$11),0) -> 0 | C170: 0 | D170: 0
A171: 229 | B171: =IFERROR(_xlfn.BETA.DIST(A171,'Carcass Dist'!$B$2,'Carcass Dist'!$B$3,1,'Carcass Dist'!$C$10,'Carcass Dist'!$C$11)-_xlfn.BETA.DIST(A170,'Carcass Dist'!$B$2,'Carcass Dist'!$B$3,1,'Carcass Dist'!$C$10,'Carcass Dist'!$C$11),0) -> 0 | C171: 0 | D171: 0
A172: 230 | B172: =IFERROR(_xlfn.BETA.DIST(A172,'Carcass Dist'!$B$2,'Carcass Dist'!$B$3,1,'Carcass Dist'!$C$10,'Carcass Dist'!$C$11)-_xlfn.BETA.DIST(A171,'Carcass Dist'!$B$2,'Carcass Dist'!$B$3,1,'Carcass Dist'!$C$10,'Carcass Dist'!$C$11),0) -> 0 | C172: 0 | D172: 0
A173: 231 | B173: =IFERROR(_xlfn.BETA.DIST(A173,'Carcass Dist'!$B$2,'Carcass Dist'!$B$3,1,'Carcass Dist'!$C$10,'Carcass Dist'!$C$11)-_xlfn.BETA.DIST(A172,'Carcass Dist'!$B$2,'Carcass Dist'!$B$3,1,'Carcass Dist'!$C$10,'Carcass Dist'!$C$11),0) -> 0 | C173: 0 | D173: 0
A174: 232 | B174: =IFERROR(_xlfn.BETA.DIST(A174,'Carcass Dist'!$B$2,'Carcass Dist'!$B$3,1,'Carcass Dist'!$C$10,'Carcass Dist'!$C$11)-_xlfn.BETA.DIST(A173,'Carcass Dist'!$B$2,'Carcass Dist'!$B$3,1,'Carcass Dist'!$C$10,'Carcass Dist'!$C$11),0) -> 0 | C174: 0 | D174: 0
A175: 233 | B175: =IFERROR(_xlfn.BETA.DIST(A175,'Carcass Dist'!$B$2,'Carcass Dist'!$B$3,1,'Carcass Dist'!$C$10,'Carcass Dist'!$C$11)-_xlfn.BETA.DIST(A174,'Carcass Dist'!$B$2,'Carcass Dist'!$B$3,1,'Carcass Dist'!$C$10,'Carcass Dist'!$C$11),0) -> 0 | C175: 0 | D175: 0
A176: 234 | B176: =IFERROR(_xlfn.BETA.DIST(A176,'Carcass Dist'!$B$2,'Carcass Dist'!$B$3,1,'Carcass Dist'!$C$10,'Carcass Dist'!$C$11)-_xlfn.BETA.DIST(A175,'Carcass Dist'!$B$2,'Carcass Dist'!$B$3,1,'Carcass Dist'!$C$10,'Carcass Dist'!$C$11),0) -> 0 | C176: 0 | D176: 0
A177: 235 | B177: =IFERROR(_xlfn.BETA.DIST(A177,'Carcass Dist'!$B$2,'Carcass Dist'!$B$3,1,'Carcass Dist'!$C$10,'Carcass Dist'!$C$11)-_xlfn.BETA.DIST(A176,'Carcass Dist'!$B$2,'Carcass Dist'!$B$3,1,'Carcass Dist'!$C$10,'Carcass Dist'!$C$11),0) -> 0 | C177: 0 | D177: 0
A178: 236 | B178: =IFERROR(_xlfn.BETA.DIST(A178,'Carcass Dist'!$B$2,'Carcass Dist'!$B$3,1,'Carcass Dist'!$C$10,'Carcass Dist'!$C$11)-_xlfn.BETA.DIST(A177,'Carcass Dist'!$B$2,'Carcass Dist'!$B$3,1,'Carcass Dist'!$C$10,'Carcass Dist'!$C$11),0) -> 0 | C178: 0 | D178: 0
A179: 237 | B179: =IFERROR(_xlfn.BETA.DIST(A179,'Carcass Dist'!$B$2,'Carcass Dist'!$B$3,1,'Carcass Dist'!$C$10,'Carcass Dist'!$C$11)-_xlfn.BETA.DIST(A178,'Carcass Dist'!$B$2,'Carcass Dist'!$B$3,1,'Carcass Dist'!$C$10,'Carcass Dist'!$C$11),0) -> 0 | C179: 0 | D179: 0
A180: 238 | B180: =IFERROR(_xlfn.BETA.DIST(A180,'Carcass Dist'!$B$2,'Carcass Dist'!$B$3,1,'Carcass Dist'!$C$10,'Carcass Dist'!$C$11)-_xlfn.BETA.DIST(A179,'Carcass Dist'!$B$2,'Carcass Dist'!$B$3,1,'Carcass Dist'!$C$10,'Carcass Dist'!$C$11),0) -> 0 | C180: 0 | D180: 0
A181: 239 | B181: =IFERROR(_xlfn.BETA.DIST(A181,'Carcass Dist'!$B$2,'Carcass Dist'!$B$3,1,'Carcass Dist'!$C$10,'Carcass Dist'!$C$11)-_xlfn.BETA.DIST(A180,'Carcass Dist'!$B$2,'Carcass Dist'!$B$3,1,'Carcass Dist'!$C$10,'Carcass Dist'!$C$11),0) -> 0 | C181: 0 | D181: 0
A182: 240 | B182: =IFERROR(_xlfn.BETA.DIST(A182,'Carcass Dist'!$B$2,'Carcass Dist'!$B$3,1,'Carcass Dist'!$C$10,'Carcass Dist'!$C$11)-_xlfn.BETA.DIST(A181,'Carcass Dist'!$B$2,'Carcass Dist'!$B$3,1,'Carcass Dist'!$C$10,'Carcass Dist'!$C$11),0) -> 0 | C182: 0 | D182: 0
A183: 241 | B183: =IFERROR(_xlfn.BETA.DIST(A183,'Carcass Dist'!$B$2,'Carcass Dist'!$B$3,1,'Carcass Dist'!$C$10,'Carcass Dist'!$C$11)-_xlfn.BETA.DIST(A182,'Carcass Dist'!$B$2,'Carcass Dist'!$B$3,1,'Carcass Dist'!$C$10,'Carcass Dist'!$C$11),0) -> 0 | C183: 0 | D183: 0
A184: 242 | B184: =IFERROR(_xlfn.BETA.DIST(A184,'Carcass Dist'!$B$2,'Carcass Dist'!$B$3,1,'Carcass Dist'!$C$10,'Carcass Dist'!$C$11)-_xlfn.BETA.DIST(A183,'Carcass Dist'!$B$2,'Carcass Dist'!$B$3,1,'Carcass Dist'!$C$10,'Carcass Dist'!$C$11),0) -> 0 | C184: 0 | D184: 0
A185: 243 | B185: =IFERROR(_xlfn.BETA.DIST(A185,'Carcass Dist'!$B$2,'Carcass Dist'!$B$3,1,'Carcass Dist'!$C$10,'Carcass Dist'!$C$11)-_xlfn.BETA.DIST(A184,'Carcass Dist'!$B$2,'Carcass Dist'!$B$3,1,'Carcass Dist'!$C$10,'Carcass Dist'!$C$11),0) -> 0 | C185: 0 | D185: 0
A186: 244 | B186: =IFERROR(_xlfn.BETA.DIST(A186,'Carcass Dist'!$B$2,'Carcass Dist'!$B$3,1,'Carcass Dist'!$C$10,'Carcass Dist'!$C$11)-_xlfn.BETA.DIST(A185,'Carcass Dist'!$B$2,'Carcass Dist'!$B$3,1,'Carcass Dist'!$C$10,'Carcass Dist'!$C$11),0) -> 0 | C186: 0 | D186: 0
A187: 245 | B187: =IFERROR(_xlfn.BETA.DIST(A187,'Carcass Dist'!$B$2,'Carcass Dist'!$B$3,1,'Carcass Dist'!$C$10,'Carcass Dist'!$C$11)-_xlfn.BETA.DIST(A186,'Carcass Dist'!$B$2,'Carcass Dist'!$B$3,1,'Carcass Dist'!$C$10,'Carcass Dist'!$C$11),0) -> 0 | C187: 0 | D187: 0
A188: 246 | B188: =IFERROR(_xlfn.BETA.DIST(A188,'Carcass Dist'!$B$2,'Carcass Dist'!$B$3,1,'Carcass Dist'!$C$10,'Carcass Dist'!$C$11)-_xlfn.BETA.DIST(A187,'Carcass Dist'!$B$2,'Carcass Dist'!$B$3,1,'Carcass Dist'!$C$10,'Carcass Dist'!$C$11),0) -> 0 | C188: 0 | D188: 0
A189: 247 | B189: =IFERROR(_xlfn.BETA.DIST(A189,'Carcass Dist'!$B$2,'Carcass Dist'!$B$3,1,'Carcass Dist'!$C$10,'Carcass Dist'!$C$11)-_xlfn.BETA.DIST(A188,'Carcass Dist'!$B$2,'Carcass Dist'!$B$3,1,'Carcass Dist'!$C$10,'Carcass Dist'!$C$11),0) -> 0 | C189: 0 | D189: 0
A190: 248 | B190: =IFERROR(_xlfn.BETA.DIST(A190,'Carcass Dist'!$B$2,'Carcass Dist'!$B$3,1,'Carcass Dist'!$C$10,'Carcass Dist'!$C$11)-_xlfn.BETA.DIST(A189,'Carcass Dist'!$B$2,'Carcass Dist'!$B$3,1,'Carcass Dist'!$C$10,'Carcass Dist'!$C$11),0) -> 0 | C190: 0 | D190: 0
A191: 249 | B191: =IFERROR(_xlfn.BETA.DIST(A191,'Carcass Dist'!$B$2,'Carcass Dist'!$B$3,1,'Carcass Dist'!$C$10,'Carcass Dist'!$C$11)-_xlfn.BETA.DIST(A190,'Carcass Dist'!$B$2,'Carcass Dist'!$B$3,1,'Carcass Dist'!$C$10,'Carcass Dist'!$C$11),0) -> 0 | C191: 0 | D191: 0
A192: 250 | B192: =IFERROR(_xlfn.BETA.DIST(A192,'Carcass Dist'!$B$2,'Carcass Dist'!$B$3,1,'Carcass Dist'!$C$10,'Carcass Dist'!$C$11)-_xlfn.BETA.DIST(A191,'Carcass Dist'!$B$2,'Carcass Dist'!$B$3,1,'Carcass Dist'!$C$10,'Carcass Dist'!$C$11),0) -> 0 | C192: 0 | D192: 0
A193: 251 | B193: =IFERROR(_xlfn.BETA.DIST(A193,'Carcass Dist'!$B$2,'Carcass Dist'!$B$3,1,'Carcass Dist'!$C$10,'Carcass Dist'!$C$11)-_xlfn.BETA.DIST(A192,'Carcass Dist'!$B$2,'Carcass Dist'!$B$3,1,'Carcass Dist'!$C$10,'Carcass Dist'!$C$11),0) -> 0 | C193: 0 | D193: 0
A194: 252 | B194: =IFERROR(_xlfn.BETA.DIST(A194,'Carcass Dist'!$B$2,'Carcass Dist'!$B$3,1,'Carcass Dist'!$C$10,'Carcass Dist'!$C$11)-_xlfn.BETA.DIST(A193,'Carcass Dist'!$B$2,'Carcass Dist'!$B$3,1,'Carcass Dist'!$C$10,'Carcass Dist'!$C$11),0) -> 0 | C194: 0 | D194: 0
A195: 253 | B195: =IFERROR(_xlfn.BETA.DIST(A195,'Carcass Dist'!$B$2,'Carcass Dist'!$B$3,1,'Carcass Dist'!$C$10,'Carcass Dist'!$C$11)-_xlfn.BETA.DIST(A194,'Carcass Dist'!$B$2,'Carcass Dist'!$B$3,1,'Carcass Dist'!$C$10,'Carcass Dist'!$C$11),0) -> 0 | C195: 0 | D195: 0
A196: =A195+1 -> 254 | B196: =IFERROR(_xlfn.BETA.DIST(A196,'Carcass Dist'!$B$2,'Carcass Dist'!$B$3,1,'Carcass Dist'!$C$10,'Carcass Dist'!$C$11)-_xlfn.BETA.DIST(A195,'Carcass Dist'!$B$2,'Carcass Dist'!$B$3,1,'Carcass Dist'!$C$10,'Carcass Dist'!$C$11),0) -> 0 | C196: 0 | D196: 0
A197: 255 | B197: =IFERROR(_xlfn.BETA.DIST(A197,'Carcass Dist'!$B$2,'Carcass Dist'!$B$3,1,'Carcass Dist'!$C$10,'Carcass Dist'!$C$11)-_xlfn.BETA.DIST(A196,'Carcass Dist'!$B$2,'Carcass Dist'!$B$3,1,'Carcass Dist'!$C$10,'Carcass Dist'!$C$11),0) -> 0 | C197: 0 | D197: 0
A198: 256 | B198: =IFERROR(_xlfn.BETA.DIST(A198,'Carcass Dist'!$B$2,'Carcass Dist'!$B$3,1,'Carcass Dist'!$C$10,'Carcass Dist'!$C$11)-_xlfn.BETA.DIST(A197,'Carcass Dist'!$B$2,'Carcass Dist'!$B$3,1,'Carcass Dist'!$C$10,'Carcass Dist'!$C$11),0) -> 0 | C198: 0 | D198: 0
A199: 257 | B199: =IFERROR(_xlfn.BETA.DIST(A199,'Carcass Dist'!$B$2,'Carcass Dist'!$B$3,1,'Carcass Dist'!$C$10,'Carcass Dist'!$C$11)-_xlfn.BETA.DIST(A198,'Carcass Dist'!$B$2,'Carcass Dist'!$B$3,1,'Carcass Dist'!$C$10,'Carcass Dist'!$C$11),0) -> 0 | C199: 0 | D199: 0
A200: 258 | B200: =IFERROR(_xlfn.BETA.DIST(A200,'Carcass Dist'!$B$2,'Carcass Dist'!$B$3,1,'Carcass Dist'!$C$10,'Carcass Dist'!$C$11)-_xlfn.BETA.DIST(A199,'Carcass Dist'!$B$2,'Carcass Dist'!$B$3,1,'Carcass Dist'!$C$10,'Carcass Dist'!$C$11),0) -> 0 | C200: 0 | D200: 0
... 83 more rows

Sheet P2 Grader (hidden)
A1: P2 (mm) | B1: % pigs | C1: Number of pigs | D1: Dead Weight (kg) | I1: =Calculator!T28 -> 0 | J1: =Calculator!U28 -> (mm) | M1: Total (%) | O1: Adjustment (p/kg) | Q1: Adjusted value (p/kg) | R1: Dead Wt (kg) | S1: Value(£)
A2: ='P2 Dist'!B14 -> 5 | B2: ='P2 Dist'!C14 -> 0 | C2: =(B2*$F$2) -> 0 | D2: =B2*$R$18 -> 0 | E2: Batch Size | F2: =Calculator!T11 -> 180
A3: ='P2 Dist'!B15 -> 5.07 | B3: ='P2 Dist'!C15 -> 3.904665062e-10 | C3: 7.028397112e-08 | D3: =B3*$R$18 -> 5.352616473e-06 | E3: Grade Price (p/kg) | F3: =Calculator!O24 -> 160 | I3: =MIN('P2 Dist'!$C$10,J3) -> 5 | J3: =Calculator!U30 -> 8 | K3: =IFERROR(_xlfn.BETA.DIST(J3,'P2 Dist'!$B$2,'P2 Dist'!$B$3,1,'P2 Dist'!$C$10,'P2 Dist'!$C$11)-_xlfn.BETA.DIST(I3,'P2 Dist'!$B$2,'P2 Dist'!$B$3,1,'P2 Dist'!$C$10,'P2 Dist'!$C$11),0) -> 0.04161981455 | M3: =K3 -> 0.04161981455 | O3: =Calculator!V30 -> 2 | Q3: =$F$3+O3 -> 162 | R3: =$F$4*M3 -> 570.535248 | S3: =R3*Q3/100 -> 924.2671017 | U3: =R3*$F$3/100 -> 912.8563968
A4: ='P2 Dist'!B16 -> 5.14 | B4: ='P2 Dist'!C16 -> 1.205802348e-08 | C4: 2.170444226e-06 | D4: 0.0001652945235 | E4: Total Dead Wt (kg) | F4: ='Carcass Grader'!G4 -> 13708.26021 | I4: =J3 -> 8 | J4: =Calculator!U32 -> 9 | K4: =IFERROR(_xlfn.BETA.DIST(J4,'P2 Dist'!$B$2,'P2 Dist'!$B$3,1,'P2 Dist'!$C$10,'P2 Dist'!$C$11)-_xlfn.BETA.DIST(I4,'P2 Dist'!$B$2,'P2 Dist'!$B$3,1,'P2 Dist'!$C$10,'P2 Dist'!$C$11),0) -> 0.1092948035 | M4: =K4 -> 0.1092948035 | O4: =Calculator!V32 -> 2 | Q4: =$F$3+O4 -> 162 | R4: =$F$4*M4 -> 1498.241606 | S4: =R4*Q4/100 -> 2427.151402 | U4: =R4*$F$3/100 -> 2397.18657
A5: ='P2 Dist'!B17 -> 5.21 | B5: ='P2 Dist'!C17 -> 8.162999895e-08 | C5: 1.469339981e-05 | D5: 0.001119005267 | E5: Total Value (£) | F5: =S18 -> 22207.38155 | I5: =J4 -> 9 | J5: =Calculator!U34 -> 10 | K5: =IFERROR(_xlfn.BETA.DIST(J5,'P2 Dist'!$B$2,'P2 Dist'!$B$3,1,'P2 Dist'!$C$10,'P2 Dist'!$C$11)-_xlfn.BETA.DIST(I5,'P2 Dist'!$B$2,'P2 Dist'!$B$3,1,'P2 Dist'!$C$10,'P2 Dist'!$C$11),0) -> 0.2294136465 | M5: 0.2294136465 | O5: =Calculator!V34 -> 2 | Q5: 162 | R5: 3144.861963 | S5: 5094.67638 | U5: 5031.779141
A6: ='P2 Dist'!B18 -> 5.28 | B6: ='P2 Dist'!C18 -> 3.002850704e-07 | C6: 5.405131267e-05 | D6: 0.004116385884 | I6: 10 | J6: =Calculator!U36 -> 11 | K6: =IFERROR(_xlfn.BETA.DIST(J6,'P2 Dist'!$B$2,'P2 Dist'!$B$3,1,'P2 Dist'!$C$10,'P2 Dist'!$C$11)-_xlfn.BETA.DIST(I6,'P2 Dist'!$B$2,'P2 Dist'!$B$3,1,'P2 Dist'!$C$10,'P2 Dist'!$C$11),0) -> 0.3459382403 | M6: 0.3459382403 | O6: =Calculator!V36 -> 2 | Q6: 162 | R6: 4742.211416 | S6: 7682.382493 | U6: 7587.538265
A7: ='P2 Dist'!B19 -> 5.35 | B7: ='P2 Dist'!C19 -> 8.024775342e-07 | C7: 0.0001444459562 | D7: 0.01100057086 | E7: Slaughter Weight (kg) | F7: =Calculator!E42 -> 100 | I7: 11 | J7: =Calculator!U38 -> 12 | K7: =IFERROR(_xlfn.BETA.DIST(J7,'P2 Dist'!$B$2,'P2 Dist'!$B$3,1,'P2 Dist'!$C$10,'P2 Dist'!$C$11)-_xlfn.BETA.DIST(I7,'P2 Dist'!$B$2,'P2 Dist'!$B$3,1,'P2 Dist'!$C$10,'P2 Dist'!$C$11),0) -> 0.2737334952 | M7: 0.2737334952 | O7: =Calculator!V38 -> 2 | Q7: 162 | R7: 3752.409982 | S7: 6078.904171 | U7: 6003.855971
A8: ='P2 Dist'!B20 -> 5.42 | B8: ='P2 Dist'!C20 -> 1.764206029e-06 | C8: 0.0003175570852 | D8: 0.02418419532 | E8: Killing Out (%) | F8: =Calculator!O11 -> 75.65714286 | I8: 12 | J8: =Calculator!U40 -> 13 | K8: =IFERROR(_xlfn.BETA.DIST(J8,'P2 Dist'!$B$2,'P2 Dist'!$B$3,1,'P2 Dist'!$C$10,'P2 Dist'!$C$11)-_xlfn.BETA.DIST(I8,'P2 Dist'!$B$2,'P2 Dist'!$B$3,1,'P2 Dist'!$C$10,'P2 Dist'!$C$11),0) -> 0 | M8: 0 | O8: =Calculator!V40 -> -10 | Q8: 150 | R8: 0 | S8: 0 | U8: 0
A9: ='P2 Dist'!B21 -> 5.49 | B9: ='P2 Dist'!C21 -> 3.401248376e-06 | C9: 0.0006122247076 | D9: 0.04662519779 | E9: Ave. Carcass Weight (kg) | F9: ='Carcass Plot'!D7 -> 75.65714286 | I9: 13 | J9: =Calculator!U42 -> 14 | K9: =IFERROR(_xlfn.BETA.DIST(J9,'P2 Dist'!$B$2,'P2 Dist'!$B$3,1,'P2 Dist'!$C$10,'P2 Dist'!$C$11)-_xlfn.BETA.DIST(I9,'P2 Dist'!$B$2,'P2 Dist'!$B$3,1,'P2 Dist'!$C$10,'P2 Dist'!$C$11),0) -> 0 | M9: 0 | O9: =Calculator!V42 -> -15 | Q9: 145 | R9: 0 | S9: 0 | U9: 0
A10: ='P2 Dist'!B22 -> 5.56 | B10: ='P2 Dist'!C22 -> 5.967369672e-06 | C10: 0.001074126541 | D10: 0.08180225626 | E10: P2 (mm) | F10: =Calculator!O18 -> 10.2 | I10: 14 | J10: =Calculator!U44 -> 15 | K10: =IFERROR(_xlfn.BETA.DIST(J10,'P2 Dist'!$B$2,'P2 Dist'!$B$3,1,'P2 Dist'!$C$10,'P2 Dist'!$C$11)-_xlfn.BETA.DIST(I10,'P2 Dist'!$B$2,'P2 Dist'!$B$3,1,'P2 Dist'!$C$10,'P2 Dist'!$C$11),0) -> 0 | M10: 0 | O10: =Calculator!V44 -> -15 | Q10: 145 | R10: 0 | S10: 0 | U10: 0
A11: ='P2 Dist'!B23 -> 5.63 | B11: ='P2 Dist'!C23 -> 9.752506597e-06 | C11: 0.001755451188 | D11: 0.1336898982 | I11: 15 | J11: =Calculator!U46 -> 16 | K11: =IFERROR(_xlfn.BETA.DIST(J11,'P2 Dist'!$B$2,'P2 Dist'!$B$3,1,'P2 Dist'!$C$10,'P2 Dist'!$C$11)-_xlfn.BETA.DIST(I11,'P2 Dist'!$B$2,'P2 Dist'!$B$3,1,'P2 Dist'!$C$10,'P2 Dist'!$C$11),0) -> 0 | M11: 0 | O11: =Calculator!V46 -> -40 | Q11: 120 | R11: 0 | S11: 0 | U11: 0
A12: ='P2 Dist'!B24 -> 5.7 | B12: ='P2 Dist'!C24 -> 1.508092932e-05 | C12: 0.002714567278 | D12: 0.2067333034 | E12: Check total value against total dead wt and grade price | F12: =F4*(F3/100) -> 21933.21634 | I12: 16 | J12: =Calculator!U48 -> 17 | K12: =IFERROR(_xlfn.BETA.DIST(J12,'P2 Dist'!$B$2,'P2 Dist'!$B$3,1,'P2 Dist'!$C$10,'P2 Dist'!$C$11)-_xlfn.BETA.DIST(I12,'P2 Dist'!$B$2,'P2 Dist'!$B$3,1,'P2 Dist'!$C$10,'P2 Dist'!$C$11),0) -> 0 | M12: 0 | O12: =Calculator!V48 -> -40 | Q12: 120 | R12: 0 | S12: 0 | U12: 0
A13: ='P2 Dist'!B25 -> 5.77 | B13: ='P2 Dist'!C25 -> 2.230938161e-05 | C13: 0.00401568869 | D13: 0.3058228084 | E13: Difference (£) | F13: =F5-F12 -> 274.1652043 | I13: 17 | J13: =Calculator!U50 -> 18 | K13: =IFERROR(_xlfn.BETA.DIST(J13,'P2 Dist'!$B$2,'P2 Dist'!$B$3,1,'P2 Dist'!$C$10,'P2 Dist'!$C$11)-_xlfn.BETA.DIST(I13,'P2 Dist'!$B$2,'P2 Dist'!$B$3,1,'P2 Dist'!$C$10,'P2 Dist'!$C$11),0) -> 0 | M13: 0 | O13: =Calculator!V50 -> -40 | Q13: 120 | R13: 0 | S13: 0 | U13: 0
A14: ='P2 Dist'!B26 -> 5.84 | B14: ='P2 Dist'!C26 -> 3.182519935e-05 | C14: 0.005728535883 | D14: 0.4362681141 | I14: 18 | J14: =Calculator!U52 -> 19 | K14: =IFERROR(_xlfn.BETA.DIST(J14,'P2 Dist'!$B$2,'P2 Dist'!$B$3,1,'P2 Dist'!$C$10,'P2 Dist'!$C$11)-_xlfn.BETA.DIST(I14,'P2 Dist'!$B$2,'P2 Dist'!$B$3,1,'P2 Dist'!$C$10,'P2 Dist'!$C$11),0) -> 0 | M14: 0 | O14: =Calculator!V52 -> -50 | Q14: 110 | R14: 0 | S14: 0 | U14: 0
A15: ='P2 Dist'!B27 -> 5.91 | B15: ='P2 Dist'!C27 -> 4.404440733e-05 | C15: 0.007927993319 | D15: 0.6037721967 | I15: 19 | J15: =Calculator!U54 -> 20 | K15: =IFERROR(_xlfn.BETA.DIST(J15,'P2 Dist'!$B$2,'P2 Dist'!$B$3,1,'P2 Dist'!$C$10,'P2 Dist'!$C$11)-_xlfn.BETA.DIST(I15,'P2 Dist'!$B$2,'P2 Dist'!$B$3,1,'P2 Dist'!$C$10,'P2 Dist'!$C$11),0) -> 0 | M15: 0 | O15: =Calculator!V54 -> -50 | Q15: 110 | R15: 0 | S15: 0 | U15: 0
A16: ='P2 Dist'!B28 -> 5.98 | B16: ='P2 Dist'!C28 -> 5.940979413e-05 | C16: 0.01069376294 | D16: 0.8144049173 | E16: Max Q (mm) | F16: =Calculator!O72 -> 12 | I16: 20 | J16: =MAX('P2 Dist'!$C$11,I16) -> 20 | K16: =IFERROR(_xlfn.BETA.DIST(J16,'P2 Dist'!$B$2,'P2 Dist'!$B$3,1,'P2 Dist'!$C$10,'P2 Dist'!$C$11)-_xlfn.BETA.DIST(I16,'P2 Dist'!$B$2,'P2 Dist'!$B$3,1,'P2 Dist'!$C$10,'P2 Dist'!$C$11),0) -> 0 | M16: 0 | O16: =Calculator!V56 -> -50 | Q16: 110 | R16: 0 | S16: 0 | U16: 0
A17: ='P2 Dist'!B29 -> 6.05 | B17: ='P2 Dist'!C29 -> 7.838896459e-05 | C17: 0.01411001363 | D17: 1.074576325 | E17: Percentage of pigs above Max Q backfat | F17: =SUMIF(A:A,">"&F16,B:B) -> 0
A18: ='P2 Dist'!B30 -> 6.12 | B18: ='P2 Dist'!C30 -> 0.0001014723694 | C18: 0.01826502649 | D18: 1.391009645 | E18: Percentage of pigs below Max Q backfat | F18: =1-F17 -> 1 | K18: =IF(ABS(SUM(K3:K16)-1)<0.001,"OK","error; probabilities don’t sum to 100") -> OK | M18: =SUM(M3:M16) -> 1 | R18: =SUM(R3:R17) -> 13708.26021 | S18: =SUM(S3:S17) -> 22207.38155 | U18: =SUM(U3:U17) -> 21933.21634
A19: ='P2 Dist'!B31 -> 6.19 | B19: ='P2 Dist'!C31 -> 0.0001291713113 | C19: 0.02325083603 | D19: 1.770713947 | R19: =IF(ABS(R18-'Carcass Grader'!M22)<1,"OK","Error") -> OK
A20: ='P2 Dist'!B32 -> 6.26 | B20: ='P2 Dist'!C32 -> 0.0001620159268 | C20: 0.02916286682 | D20: 2.220956483 | E20: Total Dead Weight above Max Q backfat (kg) | F20: =SUMIF(A:A,">"&F16,D:D) -> 0 | U20: =U18-S18 -> -274.1652043
A21: ='P2 Dist'!B33 -> 6.33 | B21: ='P2 Dist'!C33 -> 0.0002005531433 | C21: 0.0360995658 | D21: 2.749234676 | E21: Total Dead Weight within Max Q backfat (kg) | F21: =F4-F20 -> 13708.26021
A22: ='P2 Dist'!B34 -> 6.4 | B22: ='P2 Dist'!C34 -> 0.0002453446105 | C22: 0.0441620299 | D22: 3.363247764 | E22: Check TotalDead Weight (kg) | F22: =F20+F21 -> 13708.26021
A23: ='P2 Dist'!B35 -> 6.47 | B23: ='P2 Dist'!C35 -> 0.0002969646046 | C23: 0.05345362882 | D23: 4.070868074
A24: ='P2 Dist'!B36 -> 6.54 | B24: ='P2 Dist'!C36 -> 0.000355997905 | C24: 0.06407962289 | D24: 4.880111917
A25: ='P2 Dist'!B37 -> 6.61 | B25: ='P2 Dist'!C37 -> 0.0004230376428 | C25: 0.0761467757 | D25: 5.799110087
A26: ='P2 Dist'!B38 -> 6.68 | B26: ='P2 Dist'!C38 -> 0.0004986831187 | C26: 0.08976296136 | D26: 6.836077956
A27: ='P2 Dist'!B39 -> 6.75 | B27: ='P2 Dist'!C39 -> 0.0005835375902 | C27: 0.1050367662 | D27: 7.999285132
A28: ='P2 Dist'!B40 -> 6.82 | B28: ='P2 Dist'!C40 -> 0.0006782060262 | C28: 0.1220770847 | D28: 9.297024687
A29: ='P2 Dist'!B41 -> 6.89 | B29: ='P2 Dist'!C41 -> 0.0007832928279 | C29: 0.140992709 | D29: 10.73758191
A30: ='P2 Dist'!B42 -> 6.96 | B30: ='P2 Dist'!C42 -> 0.0008993995141 | C30: 0.1618919125 | D30: 12.32920258
A31: ='P2 Dist'!B43 -> 7.03 | B31: ='P2 Dist'!C43 -> 0.00102712237 | C31: 0.1848820266 | D31: 14.08006072
A32: ='P2 Dist'!B44 -> 7.1 | B32: ='P2 Dist'!C44 -> 0.001167050057 | C32: 0.2100690103 | D32: 15.99822586
A33: ='P2 Dist'!B45 -> 7.17 | B33: ='P2 Dist'!C45 -> 0.001319761182 | C33: 0.2375570128 | D33: 18.09162971
A34: ='P2 Dist'!B46 -> 7.24 | B34: ='P2 Dist'!C46 -> 0.001485821825 | C34: =(B34*$F$2) -> 0.2674479284 | D34: 20.3680322
A35: ='P2 Dist'!B47 -> 7.31 | B35: ='P2 Dist'!C47 -> 0.001665783018 | C35: 0.2998409433 | D35: 22.83498708
A36: ='P2 Dist'!B48 -> 7.38 | B36: ='P2 Dist'!C48 -> 0.001860178187 | C36: 0.3348320736 | D36: 25.49980663
A37: ='P2 Dist'!B49 -> 7.45 | B37: ='P2 Dist'!C49 -> 0.002069520529 | C37: 0.3725136952 | D37: 28.36952593
A38: ='P2 Dist'!B50 -> 7.52 | B38: ='P2 Dist'!C50 -> 0.002294300352 | C38: 0.4129740634 | D38: 31.45086624
A39: ='P2 Dist'!B51 -> 7.59 | B39: ='P2 Dist'!C51 -> 0.002534982353 | C39: 0.4562968236 | D39: 34.75019774
A40: ='P2 Dist'!B52 -> 7.66 | B40: ='P2 Dist'!C52 -> 0.002792002834 | C40: 0.5025605102 | D40: 38.27350137
A41: ='P2 Dist'!B53 -> 7.73 | B41: ='P2 Dist'!C53 -> 0.003065766866 | C41: 0.5518380359 | D41: 42.02632996
A42: ='P2 Dist'!B54 -> 7.8 | B42: ='P2 Dist'!C54 -> 0.003356645379 | C42: 0.6041961683 | D42: 46.01376831
A43: ='P2 Dist'!B55 -> 7.87 | B43: ='P2 Dist'!C55 -> 0.00366497219 | C43: 0.6596949941 | D43: 50.24039245
A44: ='P2 Dist'!B56 -> 7.94 | B44: ='P2 Dist'!C56 -> 0.003991040949 | C44: 0.7183873708 | D44: 54.71022786
A45: ='P2 Dist'!B57 -> 8.01 | B45: ='P2 Dist'!C57 -> 0.004335102018 | C45: 0.7803183632 | D45: 59.42670652
A46: ='P2 Dist'!B58 -> 8.08 | B46: ='P2 Dist'!C58 -> 0.004697359256 | C46: 0.845524666 | D46: 64.392623
A47: ='P2 Dist'!B59 -> 8.15 | B47: ='P2 Dist'!C59 -> 0.00507796672 | C47: 0.9140340096 | D47: 69.61008916
A48: ='P2 Dist'!B60 -> 8.22 | B48: ='P2 Dist'!C60 -> 0.005477025273 | C48: 0.9858645491 | D48: 75.08048764
A49: ='P2 Dist'!B61 -> 8.29 | B49: ='P2 Dist'!C61 -> 0.005894579084 | C49: 1.061024235 | D49: 80.80442394
A50: ='P2 Dist'!B62 -> 8.36 | B50: ='P2 Dist'!C62 -> 0.006330612026 | C50: 1.139510165 | D50: 86.78167697
A51: ='P2 Dist'!B63 -> 8.43 | B51: ='P2 Dist'!C63 -> 0.00678504395 | C51: 1.221307911 | D51: 93.01114804
A52: ='P2 Dist'!B64 -> 8.5 | B52: ='P2 Dist'!C64 -> 0.007257726838 | C52: 1.306390831 | D52: 99.49080806
A53: ='P2 Dist'!B65 -> 8.57 | B53: ='P2 Dist'!C65 -> 0.007748440814 | C53: 1.394719347 | D53: 106.2176429
A54: ='P2 Dist'!B66 -> 8.64 | B54: ='P2 Dist'!C66 -> 0.008256890015 | C54: 1.486240203 | D54: 113.1875969
A55: ='P2 Dist'!B67 -> 8.71 | B55: ='P2 Dist'!C67 -> 0.008782698296 | C55: 1.580885693 | D55: 120.3955136
A56: ='P2 Dist'!B68 -> 8.78 | B56: ='P2 Dist'!C68 -> 0.009325404764 | C56: 1.678572857 | D56: 127.8350751
A57: ='P2 Dist'!B69 -> 8.85 | B57: ='P2 Dist'!C69 -> 0.009884459123 | C57: 1.779202642 | D57: 135.4987377
A58: ='P2 Dist'!B70 -> 8.92 | B58: ='P2 Dist'!C70 -> 0.01045921682 | C58: 1.882659027 | D58: 143.3776658
A59: ='P2 Dist'!B71 -> 8.99 | B59: ='P2 Dist'!C71 -> 0.01104893395 | C59: 1.98880811 | D59: 151.4616616
A60: ='P2 Dist'!B72 -> 9.06 | B60: ='P2 Dist'!C72 -> 0.01165276193 | C60: 2.097497147 | D60: 159.7390927
A61: ='P2 Dist'!B73 -> 9.13 | B61: ='P2 Dist'!C73 -> 0.0122697419 | C61: 2.208553543 | D61: 168.1968148
A62: ='P2 Dist'!B74 -> 9.2 | B62: ='P2 Dist'!C74 -> 0.01289879884 | C62: 2.321783792 | D62: 176.820091
A63: ='P2 Dist'!B75 -> 9.27 | B63: ='P2 Dist'!C75 -> 0.01353873531 | C63: 2.436972355 | D63: 185.5925065
A64: ='P2 Dist'!B76 -> 9.34 | B64: ='P2 Dist'!C76 -> 0.01418822485 | C64: 2.553880473 | D64: 194.4958782
A65: ='P2 Dist'!B77 -> 9.41 | B65: ='P2 Dist'!C77 -> 0.01484580504 | C65: 2.672244908 | D65: 203.5101586
A66: ='P2 Dist'!B78 -> 9.48 | B66: ='P2 Dist'!C78 -> 0.01550986999 | C66: =(B66*$F$2) -> 2.791776599 | D66: 212.6133338
A67: ='P2 Dist'!B79 -> 9.55 | B67: ='P2 Dist'!C79 -> 0.0161786624 | C67: 2.912159232 | D67: =B67*$R$18 -> 221.7813141
A68: ='P2 Dist'!B80 -> 9.62 | B68: ='P2 Dist'!C80 -> 0.01685026503 | C68: 3.033047705 | D68: 230.9878177
A69: ='P2 Dist'!B81 -> 9.69 | B69: ='P2 Dist'!C81 -> 0.01752259152 | C69: 3.154066473 | D69: 240.2042442
A70: ='P2 Dist'!B82 -> 9.76 | B70: ='P2 Dist'!C82 -> 0.0181933765 | C70: 3.27480777 | D70: 249.3995393
A71: ='P2 Dist'!B83 -> 9.83 | B71: ='P2 Dist'!C83 -> 0.01886016486 | C71: 3.394829675 | D71: 258.5400476
A72: ='P2 Dist'!B84 -> 9.9 | B72: ='P2 Dist'!C84 -> 0.01952030006 | C72: 3.513654012 | D72: 267.5893528
A73: ='P2 Dist'!B85 -> 9.97 | B73: ='P2 Dist'!C85 -> 0.02017091138 | C73: 3.630764048 | D73: 276.5081019
A74: ='P2 Dist'!B86 -> 10.04 | B74: ='P2 Dist'!C86 -> 0.02080889985 | C74: 3.745601973 | D74: 285.253814
A75: ='P2 Dist'!B87 -> 10.11 | B75: ='P2 Dist'!C87 -> 0.02143092285 | C75: 3.857566113 | D75: 293.7806671
A76: ='P2 Dist'!B88 -> 10.18 | B76: ='P2 Dist'!C88 -> 0.02203337684 | C76: 3.966007832 | D76: 302.0392632
A77: ='P2 Dist'!B89 -> 10.25 | B77: ='P2 Dist'!C89 -> 0.02261237823 | C77: 4.070228081 | D77: 309.9763648
A78: ='P2 Dist'!B90 -> 10.32 | B78: ='P2 Dist'!C90 -> 0.02316374176 | C78: 4.169473517 | D78: 317.5345996
A79: ='P2 Dist'!B91 -> 10.39 | B79: ='P2 Dist'!C91 -> 0.02368295618 | C79: 4.262932112 | D79: 324.6521259
A80: ='P2 Dist'!B92 -> 10.46 | B80: ='P2 Dist'!C92 -> 0.02416515641 | C80: 4.349728153 | D80: 331.2622522
A81: ='P2 Dist'!B93 -> 10.53 | B81: ='P2 Dist'!C93 -> 0.0246050917 | C81: 4.428916505 | D81: 337.2929996
A82: ='P2 Dist'!B94 -> 10.6 | B82: ='P2 Dist'!C94 -> 0.02499708868 | C82: 4.499475963 | D82: 342.6665963
A83: ='P2 Dist'!B95 -> 10.67 | B83: ='P2 Dist'!C95 -> 0.02533500829 | C83: 4.560301493 | D83: 347.2988862
A84: ='P2 Dist'!B96 -> 10.74 | B84: ='P2 Dist'!C96 -> 0.02561219489 | C84: 4.61019508 | D84: 351.0986322
A85: ='P2 Dist'!B97 -> 10.81 | B85: ='P2 Dist'!C97 -> 0.02582141563 | C85: 4.647854814 | D85: 353.9666846
A86: ='P2 Dist'!B98 -> 10.88 | B86: ='P2 Dist'!C98 -> 0.0259547874 | C86: 4.671861732 | D86: 355.7949795
A87: ='P2 Dist'!B99 -> 10.95 | B87: ='P2 Dist'!C99 -> 0.02600368739 | C87: 4.680663731 | D87: 356.4653133
A88: ='P2 Dist'!B100 -> 11.02 | B88: ='P2 Dist'!C100 -> 0.02595864241 | C88: 4.672555634 | D88: 355.847825
A89: ='P2 Dist'!B101 -> 11.09 | B89: ='P2 Dist'!C101 -> 0.02580918938 | C89: 4.645654088 | D89: 353.7990839
A90: ='P2 Dist'!B102 -> 11.16 | B90: ='P2 Dist'!C102 -> 0.02554369644 | C90: 4.59786536 | D90: 350.1596377
A91: ='P2 Dist'!B103 -> 11.23 | B91: ='P2 Dist'!C103 -> 0.02514912887 | C91: 4.526843197 | D91: 344.7508027
A92: ='P2 Dist'!B104 -> 11.3 | B92: ='P2 Dist'!C104 -> 0.02461073533 | C92: 4.429932359 | D92: 337.370364
A93: ='P2 Dist'!B105 -> 11.37 | B93: ='P2 Dist'!C105 -> 0.0239116159 | C93: 4.304090863 | D93: 327.786653
A94: ='P2 Dist'!B106 -> 11.44 | B94: ='P2 Dist'!C106 -> 0.02303210787 | C94: 4.145779417 | D94: 315.730128
A95: ='P2 Dist'!B107 -> 11.51 | B95: ='P2 Dist'!C107 -> 0.02194887802 | C95: 3.950798043 | D95: 300.8809313
A96: ='P2 Dist'!B108 -> 11.58 | B96: ='P2 Dist'!C108 -> 0.02063351651 | C96: 3.714032972 | D96: 282.8496135
A97: ='P2 Dist'!B109 -> 11.65 | B97: ='P2 Dist'!C109 -> 0.01905022561 | C97: 3.429040609 | D97: 261.1454498
A98: ='P2 Dist'!B110 -> 11.72 | B98: ='P2 Dist'!C110 -> 0.01715171487 | C98: =(B98*$F$2) -> 3.087308677 | D98: 235.1201706
A99: ='P2 Dist'!B111 -> 11.79 | B99: ='P2 Dist'!C111 -> 0.01487109754 | C99: 2.676797557 | D99: 203.8568748
A100: ='P2 Dist'!B112 -> 11.86 | B100: ='P2 Dist'!C112 -> 0.01210318554 | C100: 2.178573398 | D100: 165.9136168
A101: ='P2 Dist'!B113 -> 11.93 | B101: ='P2 Dist'!C113 -> 0.008648215055 | C101: 1.55667871 | D101: 118.5519824
A102: ='P2 Dist'!B114 -> 12 | B102: ='P2 Dist'!C114 -> 0.003863910455 | C102: 0.6955038818 | D102: 52.96748996
B105: =SUM(B2:B104) -> 1 | C105: =SUM(C2:C104) -> 180 | D105: =SUM(D2:D102) -> 13708.26021
F106: =SUM(B50:B102) -> 0.9365922021

Sheet Q Grader (hidden)
B3: =Calculator!S64 -> Pigs in Q Grade (%)
D4: (p/kg)
B5: more than | C5: =Calculator!U66 -> 85 | D5: =Calculator!V66 -> 4 | G5: =IF(G14>C5,D5,0) -> 4
B6: =Calculator!T68 -> 80 | C6: =Calculator!U68 -> 85 | D6: =Calculator!V68 -> 3 | G6: =IF($G$14<B6,0,IF($G$14<C6,D6,(0))) -> 0 | J6: Total Dead Weight Within or Outside Q Premium for either Backfat OR Carcass Weight Q Specification
B7: =Calculator!T70 -> 75 | C7: =Calculator!U70 -> 80 | D7: =Calculator!V70 -> 2 | G7: =IF($G$14<B7,0,IF($G$14<C7,D7,(0))) -> 0
B8: =Calculator!T72 -> 70 | C8: =Calculator!U72 -> 75 | D8: =Calculator!V72 -> 0 | G8: 0
B9: =Calculator!T74 -> 65 | C9: =Calculator!U74 -> 70 | D9: =Calculator!V74 -> -3 | G9: 0
B10: =Calculator!T76 -> 60 | C10: =Calculator!U76 -> 65 | D10: =Calculator!V76 -> -9 | G10: 0 | L10: Within | M10: Outside | N10: Total
B11: =Calculator!T78 -> up to | C11: =Calculator!U78 -> 60 | D11: =Calculator!V78 -> -11 | G11: =IF($G$14<C11,D11,0) -> 0 | J11: Backfat | L11: ='P2 Grader'!F21 -> 13708.26021 | M11: ='P2 Grader'!F20 -> 0 | N11: =L11+M11 -> 13708.26021
G12: =SUM(G5:G11) -> 4 | J12: Carcass Weight | L12: ='Carcass Grader'!G30 -> 13708.26021 | M12: ='Carcass Grader'!G31 -> 0 | N12: =L12+M12 -> 13708.26021
B14: % pig achieving Q Grade | G14: =(IF('P2 Grader'!F18<'Carcass Grader'!G21,'P2 Grader'!F18,'Carcass Grader'!G21))*100 -> 100 | J14: Lowest | L14: =IF(L12<L11,L12,L11) -> 13708.26021 | M14: =N14-L14 -> 0 | N14: ='Carcass Grader'!G4 -> 13708.26021
B16: Total Dead Weight Within Specification for Q Premium | G16: =IF(G18>0,L14,N14) -> 13708.26021
B18: Premium Paid or Penalty Imposed (p/kg) | G18: =G12 -> 4
B19: Total premium or penalty (£) | G19: =G16*G18/100 -> 548.3304086
B21: Total Grade Price (£) | G21: =IF('P2 Grader'!F5<'Carcass Grader'!G5,'P2 Grader'!F5,'Carcass Grader'!G5) -> 21933.21634
B22: Total Batch Value (£) | G22: =G19+G21 -> 22481.54675
B23: Total Batch Weight (kg) | G23: ='Carcass Grader'!M22 -> 13708.26021
B25: Value (p/kg) | G25: =(G22/G23)*100 -> 164

Sheet Carcass Dist (hidden)
B1: Orig beta | C1: Shifted beta | E1: How to use:
A2: Alpha | B2: =(((1-B4)/B7)-1/B4)*B4^2 -> 2.267244315 | E2: Adjust the values in the green boxes to change the distribution
A3: Beta | B3: =B2*((1/B4)-1) -> 5.748265889 | E3: If alpha is bigger than beta there will be a tail to the left
A4: Mean | B4: =(C4-C10)/(C11-C10) -> 0.2828571429 | C4: ='Carcass Plot'!D7 -> 75.65714286
A5: Median | C5: =INDEX(B14:B114,MATCH(0.5,D14:D113,1)) -> 75.2
A6: Mode | C6: =INDEX(B14:B114,MATCH(MAX(C14:C114),C14:C114,0)) -> 74.4
A7: Variance | B7: =C7/(C11-C10)^2 -> 0.0225 | C7: =C8^2 -> 9
A8: St Dev | B8: =SQRT(B7) -> 0.15 | C8: ='Carcass Plot'!D9 -> 3
A10: LB | B10: 0 | C10: ='Carcass Plot'!D11 -> 70
A11: UB | B11: 1 | C11: ='Carcass Plot'!D13 -> 90
A13: zero to 1 | B13: pig equivalent | C13: beta interval prob | D13: beta cum
A14: 0 | B14: =A14*($C$11-$C$10)+$C$10 -> 70 | C14: =_xlfn.BETA.DIST(A14,$B$2,$B$3,1) -> 0 | D14: =_xlfn.BETA.DIST(A14,$B$2,$B$3,1) -> 0
A15: =A14+0.01 -> 0.01 | B15: =A15*($C$11-$C$10)+$C$10 -> 70.2 | C15: =_xlfn.BETA.DIST(A15,$B$2,$B$3,1)-_xlfn.BETA.DIST(A14,$B$2,$B$3,1) -> 0.0007210111565 | D15: =_xlfn.BETA.DIST(A15,$B$2,$B$3,1) -> 0.0007210111565
A16: =A15+0.01 -> 0.02 | B16: 70.4 | C16: 0.002636750573 | D16: 0.00335776173
A17: 0.03 | B17: 70.6 | C17: 0.004786114166 | D17: 0.008143875895
A18: 0.04 | B18: 70.8 | C18: 0.006977025065 | D18: 0.01512090096
A19: 0.05 | B19: 71 | C19: 0.009129408525 | D19: 0.02425030948
A20: 0.06 | B20: 71.2 | C20: 0.01119861877 | D20: 0.03544892825
A21: 0.07 | B21: 71.4 | C21: 0.0131573908 | D21: 0.04860631905
A22: 0.08 | B22: 71.6 | C22: 0.01498861875 | D22: 0.0635949378
A23: 0.09 | B23: 71.8 | C23: 0.01668175689 | D23: 0.08027669469
A24: 0.1 | B24: 72 | C24: 0.01823077293 | D24: 0.09850746762
A25: 0.11 | B25: 72.2 | C25: 0.0196328746 | D25: 0.1181403422
A26: 0.12 | B26: 72.4 | C26: 0.02088766391 | D26: 0.1390280061
A27: 0.13 | B27: 72.6 | C27: 0.02199654691 | D27: 0.161024553
A28: 0.14 | B28: 72.8 | C28: 0.02296230535 | D28: 0.1839868584
A29: 0.15 | B29: 73 | C29: 0.0237887762 | D29: 0.2077756346
A30: 0.16 | B30: 73.2 | C30: 0.02448060575 | D30: 0.2322562403
A31: 0.17 | B31: 73.4 | C31: 0.02504305695 | D31: 0.2572992973
A32: 0.18 | B32: 73.6 | C32: 0.02548185611 | D32: 0.2827811534
A33: 0.19 | B33: 73.8 | C33: 0.02580306902 | D33: 0.3085842224
A34: 0.2 | B34: 74 | C34: 0.02601299984 | D34: 0.3345972222
A35: 0.21 | B35: 74.2 | C35: 0.02611810775 | D35: 0.36071533
A36: 0.22 | B36: 74.4 | C36: 0.02612493779 | D36: 0.3868402678
A37: 0.23 | B37: 74.6 | C37: 0.02604006311 | D37: 0.4128803309
A38: 0.24 | B38: 74.8 | C38: 0.02587003657 | D38: 0.4387503675
A39: 0.25 | B39: 75 | C39: 0.02562135005 | D39: 0.4643717175
A40: 0.26 | B40: 75.2 | C40: 0.02530040028 | D40: 0.4896721178
A41: 0.27 | B41: 75.4 | C41: 0.02491345999 | D41: 0.5145855778
A42: 0.28 | B42: 75.6 | C42: 0.02446665385 | D42: 0.5390522316
A43: 0.29 | B43: 75.8 | C43: 0.02396593822 | D43: 0.5630181699
A44: 0.3 | B44: 76 | C44: 0.02341708439 | D44: 0.5864352542
A45: 0.31 | B45: 76.2 | C45: 0.0228256648 | D45: 0.609260919
A46: 0.32 | B46: 76.4 | C46: 0.0221970418 | D46: 0.6314579608
A47: 0.33 | B47: 76.6 | C47: 0.02153635866 | D47: 0.6529943195
A48: 0.34 | B48: 76.8 | C48: 0.02084853262 | D48: 0.6738428521
A49: 0.35 | B49: 77 | C49: 0.02013824969 | D49: 0.6939811018
A50: 0.36 | B50: 77.2 | C50: 0.01940996094 | D50: 0.7133910627
A51: 0.37 | B51: 77.4 | C51: 0.01866788027 | D51: 0.732058943
A52: 0.38 | B52: 77.6 | C52: 0.01791598334 | D52: 0.7499749264
A53: 0.39 | B53: 77.8 | C53: 0.01715800762 | D53: 0.767132934
A54: 0.4 | B54: 78 | C54: 0.01639745347 | D54: 0.7835303874
A55: 0.41 | B55: 78.2 | C55: 0.015637586 | D55: 0.7991679734
A56: 0.42 | B56: 78.4 | C56: 0.01488143781 | D56: 0.8140494113
A57: 0.43 | B57: 78.6 | C57: 0.01413181237 | D57: 0.8281812236
A58: 0.44 | B58: 78.8 | C58: 0.01339128812 | D58: 0.8415725117
A59: 0.45 | B59: 79 | C59: 0.01266222299 | D59: 0.8542347347
A60: 0.46 | B60: 79.2 | C60: 0.01194675956 | D60: 0.8661814943
A61: 0.47 | B61: 79.4 | C61: 0.01124683062 | D61: 0.8774283249
A62: 0.48 | B62: 79.6 | C62: 0.01056416512 | D62: 0.88799249
A63: 0.49 | B63: 79.8 | C63: 0.009900294446 | D63: 0.8978927845
A64: 0.5 | B64: 80 | C64: 0.009256559097 | D64: 0.9071493436
A65: 0.51 | B65: 80.2 | C65: 0.008634115546 | D65: 0.9157834591
A66: 0.52 | B66: 80.4 | C66: 0.008033943383 | D66: 0.9238174025
A67: 0.53 | B67: 80.6 | C67: 0.007456852646 | D67: 0.9312742551
A68: 0.54 | B68: 80.8 | C68: 0.006903491333 | D68: 0.9381777465
A69: 0.55 | B69: 81 | C69: 0.006374353052 | D69: 0.9445520995
A70: 0.56 | B70: 81.2 | C70: 0.005869784792 | D70: 0.9504218843
A71: 0.57 | B71: 81.4 | C71: 0.005389994777 | D71: 0.9558118791
A72: 0.58 | B72: 81.6 | C72: 0.004935060398 | D72: 0.9607469395
A73: 0.59 | B73: 81.8 | C73: 0.004504936182 | D73: 0.9652518757
A74: 0.6 | B74: 82 | C74: 0.004099461781 | D74: 0.9693513375
A75: 0.61 | B75: 82.2 | C75: 0.003718369973 | D75: 0.9730697074
A76: 0.62 | B76: 82.4 | C76: 0.003361294633 | D76: 0.9764310021
A77: 0.63 | B77: 82.6 | C77: 0.003027778678 | D77: 0.9794587807
A78: 0.64 | B78: 82.8 | C78: 0.002717281954 | D78: 0.9821760627
A79: 0.65 | B79: =A79*($C$11-$C$10)+$C$10 -> 83 | C79: =_xlfn.BETA.DIST(A79,$B$2,$B$3,1)-_xlfn.BETA.DIST(A78,$B$2,$B$3,1) -> 0.002429189045 | D79: =_xlfn.BETA.DIST(A79,$B$2,$B$3,1) -> 0.9846052517
A80: =A79+0.01 -> 0.66 | B80: 83.2 | C80: 0.002162817005 | D80: 0.9867680688
A81: 0.67 | B81: 83.4 | C81: 0.001917422975 | D81: 0.9886854917
A82: 0.68 | B82: 83.6 | C82: 0.001692211685 | D82: 0.9903777034
A83: 0.69 | B83: 83.8 | C83: 0.001486342819 | D83: 0.9918640462
A84: 0.7 | B84: 84 | C84: 0.00129893823 | D84: 0.9931629845
A85: 0.71 | B85: 84.2 | C85: 0.001129088982 | D85: 0.9942920734
A86: 0.72 | B86: 84.4 | C86: 0.0009758622271 | D86: 0.9952679357
A87: 0.73 | B87: 84.6 | C87: 0.0008383078707 | D87: 0.9961062435
A88: 0.74 | B88: 84.8 | C88: 0.0007154650409 | D88: 0.9968217086
A89: 0.75 | B89: 85 | C89: 0.0006063683292 | D89: 0.9974280769
A90: 0.76 | B90: 85.2 | C90: 0.000510053796 | D90: 0.9979381307
A91: 0.77 | B91: 85.4 | C91: 0.0004255647248 | D91: 0.9983636954
A92: 0.78 | B92: 85.6 | C92: 0.0003519571119 | D92: 0.9987156525
A93: 0.79 | B93: 85.8 | C93: 0.0002883048761 | D93: 0.9990039574
A94: 0.8 | B94: 86 | C94: 0.0002337047751 | D94: 0.9992376622
A95: 0.81 | B95: 86.2 | C95: 0.0001872810127 | D95: 0.9994249432
A96: 0.82 | B96: 86.4 | C96: 0.0001481895219 | D96: 0.9995731327
A97: 0.83 | B97: 86.6 | C97: 0.0001156219094 | D97: 0.9996887546
A98: 0.84 | B98: 86.8 | C98: 8.880904254e-05 | D98: 0.9997775637
A99: 0.85 | B99: 87 | C99: 6.702426475e-05 | D99: 0.9998445879
A100: 0.86 | B100: 87.2 | C100: 4.958621963e-05 | D100: 0.9998941742
A101: 0.87 | B101: 87.4 | C101: 3.586126534e-05 | D101: 0.9999300354
A102: 0.88 | B102: 87.6 | C102: 2.52654592e-05 | D102: 0.9999553009
A103: 0.89 | B103: 87.8 | C103: 1.726609036e-05 | D103: 0.999972567
A104: 0.9 | B104: 88 | C104: 1.138273692e-05 | D104: 0.9999839497
A105: 0.91 | B105: 88.2 | C105: 7.187820885e-06 | D105: 0.9999911375
A106: 0.92 | B106: 88.4 | C106: 4.306631594e-06 | D106: 0.9999954442
A107: 0.93 | B107: 88.6 | C107: 2.416783653e-06 | D107: 0.999997861
A108: 0.94 | B108: 88.8 | C108: 1.247070179e-06 | D108: 0.999999108
A109: 0.95 | B109: 89 | C109: 5.756643658e-07 | D109: 0.9999996837
A110: 0.96 | B110: 89.2 | C110: 2.276115746e-07 | D110: 0.9999999113
A111: 0.97 | B111: 89.4 | C111: 7.153791703e-08 | D111: 0.9999999828
A112: 0.98 | B112: 89.6 | C112: 1.547515116e-08 | D112: 0.9999999983
A113: 0.99 | B113: 89.8 | C113: 1.655383275e-09 | D113: 1
A114: 1 | B114: 90 | C114: =1-SUM(C14:C113) -> 3.173161733e-11 | D114: 1

Sheet P2 Dist (hidden)
B1: Orig beta | C1: Shifted beta | E1: How to use:
A2: Alpha | B2: =(((1-B4)/B7)-1/B4)*B4^2 -> 5.003541913 | E2: Adjust the values in the green boxes to change the distribution
A3: Beta | B3: =B2*((1/B4)-1) -> 1.731995277 | E3: If alpha is bigger than beta there will be a tail to the left
A4: Mean | B4: =(C4-C10)/(C11-C10) -> 0.7428571429 | C4: ='P2 Plot'!$D$19 -> 10.2
A5: Median | C5: =INDEX(B14:B114,MATCH(0.5,D14:D113,1)) -> 10.32
A6: Mode | C6: =INDEX(B14:B114,MATCH(MAX(C14:C114),C14:C114,0)) -> 10.95
A7: Variance | B7: =C7/(C11-C10)^2 -> 0.02469387755 | C7: =C8^2 -> 1.21
A8: St Dev | B8: =SQRT(B7) -> 0.1571428571 | C8: ='P2 Plot'!D9 -> 1.1
A10: LB | B10: 0 | C10: ='P2 Plot'!D11 -> 5
A11: UB | B11: 1 | C11: ='P2 Plot'!D13 -> 12
A13: zero to 1 | B13: pig equivalent | C13: beta interval prob | D13: beta cum
A14: 0 | B14: =A14*($C$11-$C$10)+$C$10 -> 5 | C14: =_xlfn.BETA.DIST(A14,$B$2,$B$3,1) -> 0 | D14: =_xlfn.BETA.DIST(A14,$B$2,$B$3,1) -> 0
A15: =A14+0.01 -> 0.01 | B15: =A15*($C$11-$C$10)+$C$10 -> 5.07 | C15: =_xlfn.BETA.DIST(A15,$B$2,$B$3,1)-_xlfn.BETA.DIST(A14,$B$2,$B$3,1) -> 3.904665062e-10 | D15: =_xlfn.BETA.DIST(A15,$B$2,$B$3,1) -> 3.904665062e-10
A16: =A15+0.01 -> 0.02 | B16: 5.14 | C16: 1.205802348e-08 | D16: 1.244848998e-08
A17: 0.03 | B17: 5.21 | C17: 8.162999895e-08 | D17: 9.407848893e-08
A18: 0.04 | B18: 5.28 | C18: 3.002850704e-07 | D18: 3.943635593e-07
A19: 0.05 | B19: 5.35 | C19: 8.024775342e-07 | D19: 1.196841094e-06
A20: 0.06 | B20: 5.42 | C20: 1.764206029e-06 | D20: 2.961047123e-06
A21: 0.07 | B21: 5.49 | C21: 3.401248376e-06 | D21: 6.362295498e-06
A22: 0.08 | B22: 5.56 | C22: 5.967369672e-06 | D22: 1.232966517e-05
A23: 0.09 | B23: 5.63 | C23: 9.752506597e-06 | D23: 2.208217177e-05
A24: 0.1 | B24: 5.7 | C24: 1.508092932e-05 | D24: 3.716310109e-05
A25: 0.11 | B25: 5.77 | C25: 2.230938161e-05 | D25: 5.94724827e-05
A26: 0.12 | B26: 5.84 | C26: 3.182519935e-05 | D26: 9.129768205e-05
A27: 0.13 | B27: 5.91 | C27: 4.404440733e-05 | D27: 0.0001353420894
A28: 0.14 | B28: 5.98 | C28: 5.940979413e-05 | D28: 0.0001947518835
A29: 0.15 | B29: 6.05 | C29: 7.838896459e-05 | D29: 0.0002731408481
A30: 0.16 | B30: 6.12 | C30: 0.0001014723694 | D30: 0.0003746132175
A31: 0.17 | B31: 6.19 | C31: 0.0001291713113 | D31: 0.0005037845288
A32: 0.18 | B32: 6.26 | C32: 0.0001620159268 | D32: 0.0006658004555
A33: 0.19 | B33: 6.33 | C33: 0.0002005531433 | D33: 0.0008663535989
A34: 0.2 | B34: 6.4 | C34: 0.0002453446105 | D34: 0.001111698209
A35: 0.21 | B35: 6.47 | C35: 0.0002969646046 | D35: 0.001408662814
A36: 0.22 | B36: 6.54 | C36: 0.000355997905 | D36: 0.001764660719
A37: 0.23 | B37: 6.61 | C37: 0.0004230376428 | D37: 0.002187698362
A38: 0.24 | B38: 6.68 | C38: 0.0004986831187 | D38: 0.00268638148
A39: 0.25 | B39: 6.75 | C39: 0.0005835375902 | D39: 0.003269919071
A40: 0.26 | B40: 6.82 | C40: 0.0006782060262 | D40: 0.003948125097
A41: 0.27 | B41: 6.89 | C41: 0.0007832928279 | D41: 0.004731417925
A42: 0.28 | B42: 6.96 | C42: 0.0008993995141 | D42: 0.005630817439
A43: 0.29 | B43: 7.03 | C43: 0.00102712237 | D43: 0.006657939809
A44: 0.3 | B44: 7.1 | C44: 0.001167050057 | D44: 0.007824989866
A45: 0.31 | B45: 7.17 | C45: 0.001319761182 | D45: 0.009144751048
A46: 0.32 | B46: 7.24 | C46: 0.001485821825 | D46: 0.01063057287
A47: 0.33 | B47: 7.31 | C47: 0.001665783018 | D47: 0.01229635589
A48: 0.34 | B48: 7.38 | C48: 0.001860178187 | D48: 0.01415653408
A49: 0.35 | B49: 7.45 | C49: 0.002069520529 | D49: 0.01622605461
A50: 0.36 | B50: 7.52 | C50: 0.002294300352 | D50: 0.01852035496
A51: 0.37 | B51: 7.59 | C51: 0.002534982353 | D51: 0.02105533731
A52: 0.38 | B52: 7.66 | C52: 0.002792002834 | D52: 0.02384734015
A53: 0.39 | B53: 7.73 | C53: 0.003065766866 | D53: 0.02691310701
A54: 0.4 | B54: 7.8 | C54: 0.003356645379 | D54: 0.03026975239
A55: 0.41 | B55: 7.87 | C55: 0.00366497219 | D55: 0.03393472458
A56: 0.42 | B56: 7.94 | C56: 0.003991040949 | D56: 0.03792576553
A57: 0.43 | B57: 8.01 | C57: 0.004335102018 | D57: 0.04226086755
A58: 0.44 | B58: 8.08 | C58: 0.004697359256 | D58: 0.0469582268
A59: 0.45 | B59: 8.15 | C59: 0.00507796672 | D59: 0.05203619352
A60: 0.46 | B60: 8.22 | C60: 0.005477025273 | D60: 0.0575132188
A61: 0.47 | B61: 8.29 | C61: 0.005894579084 | D61: 0.06340779788
A62: 0.48 | B62: 8.36 | C62: 0.006330612026 | D62: 0.06973840991
A63: 0.49 | B63: 8.43 | C63: 0.00678504395 | D63: 0.07652345386
A64: 0.5 | B64: 8.5 | C64: 0.007257726838 | D64: 0.08378118069
A65: 0.51 | B65: 8.57 | C65: 0.007748440814 | D65: 0.09152962151
A66: 0.52 | B66: 8.64 | C66: 0.008256890015 | D66: 0.09978651152
A67: 0.53 | B67: 8.71 | C67: 0.008782698296 | D67: 0.1085692098
A68: 0.54 | B68: 8.78 | C68: 0.009325404764 | D68: 0.1178946146
A69: 0.55 | B69: 8.85 | C69: 0.009884459123 | D69: 0.1277790737
A70: 0.56 | B70: 8.92 | C70: 0.01045921682 | D70: 0.1382382905
A71: 0.57 | B71: 8.99 | C71: 0.01104893395 | D71: 0.1492872245
A72: 0.58 | B72: 9.06 | C72: 0.01165276193 | D72: 0.1609399864
A73: 0.59 | B73: 9.13 | C73: 0.0122697419 | D73: 0.1732097283
A74: 0.6 | B74: 9.2 | C74: 0.01289879884 | D74: 0.1861085271
A75: 0.61 | B75: 9.27 | C75: 0.01353873531 | D75: 0.1996472624
A76: 0.62 | B76: 9.34 | C76: 0.01418822485 | D76: 0.2138354873
A77: 0.63 | B77: 9.41 | C77: 0.01484580504 | D77: 0.2286812923
A78: 0.64 | B78: 9.48 | C78: 0.01550986999 | D78: 0.2441911623
A79: 0.65 | B79: =A79*($C$11-$C$10)+$C$10 -> 9.55 | C79: =_xlfn.BETA.DIST(A79,$B$2,$B$3,1)-_xlfn.BETA.DIST(A78,$B$2,$B$3,1) -> 0.0161786624 | D79: =_xlfn.BETA.DIST(A79,$B$2,$B$3,1) -> 0.2603698247
A80: =A79+0.01 -> 0.66 | B80: 9.62 | C80: 0.01685026503 | D80: 0.2772200898
A81: 0.67 | B81: 9.69 | C81: 0.01752259152 | D81: 0.2947426813
A82: 0.68 | B82: 9.76 | C82: 0.0181933765 | D82: 0.3129360578
A83: 0.69 | B83: 9.83 | C83: 0.01886016486 | D83: 0.3317962226
A84: 0.7 | B84: 9.9 | C84: 0.01952030006 | D84: 0.3513165227
A85: 0.71 | B85: 9.97 | C85: 0.02017091138 | D85: 0.3714874341
A86: 0.72 | B86: 10.04 | C86: 0.02080889985 | D86: 0.3922963339
A87: 0.73 | B87: 10.11 | C87: 0.02143092285 | D87: 0.4137272568
A88: 0.74 | B88: 10.18 | C88: 0.02203337684 | D88: 0.4357606336
A89: 0.75 | B89: 10.25 | C89: 0.02261237823 | D89: 0.4583730119
A90: 0.76 | B90: 10.32 | C90: 0.02316374176 | D90: 0.4815367536
A91: 0.77 | B91: 10.39 | C91: 0.02368295618 | D91: 0.5052197098
A92: 0.78 | B92: 10.46 | C92: 0.02416515641 | D92: 0.5293848662
A93: 0.79 | B93: 10.53 | C93: 0.0246050917 | D93: 0.5539899579
A94: 0.8 | B94: 10.6 | C94: 0.02499708868 | D94: 0.5789870466
A95: 0.81 | B95: 10.67 | C95: 0.02533500829 | D95: 0.6043220549
A96: 0.82 | B96: 10.74 | C96: 0.02561219489 | D96: 0.6299342498
A97: 0.83 | B97: 10.81 | C97: 0.02582141563 | D97: 0.6557556654
A98: 0.84 | B98: 10.88 | C98: 0.0259547874 | D98: 0.6817104528
A99: 0.85 | B99: 10.95 | C99: 0.02600368739 | D99: 0.7077141402
A100: 0.86 | B100: 11.02 | C100: 0.02595864241 | D100: 0.7336727826
A101: 0.87 | B101: 11.09 | C101: 0.02580918938 | D101: 0.759481972
A102: 0.88 | B102: 11.16 | C102: 0.02554369644 | D102: 0.7850256684
A103: 0.89 | B103: 11.23 | C103: 0.02514912887 | D103: 0.8101747973
A104: 0.9 | B104: 11.3 | C104: 0.02461073533 | D104: 0.8347855326
A105: 0.91 | B105: 11.37 | C105: 0.0239116159 | D105: 0.8586971485
A106: 0.92 | B106: 11.44 | C106: 0.02303210787 | D106: 0.8817292564
A107: 0.93 | B107: 11.51 | C107: 0.02194887802 | D107: 0.9036781344
A108: 0.94 | B108: 11.58 | C108: 0.02063351651 | D108: 0.9243116509
A109: 0.95 | B109: 11.65 | C109: 0.01905022561 | D109: 0.9433618765
A110: 0.96 | B110: 11.72 | C110: 0.01715171487 | D110: 0.9605135914
A111: 0.97 | B111: 11.79 | C111: 0.01487109754 | D111: 0.9753846889
A112: 0.98 | B112: 11.86 | C112: 0.01210318554 | D112: 0.9874878745
A113: 0.99 | B113: 11.93 | C113: 0.008648215055 | D113: 0.9961360895
A114: 1 | B114: 12 | C114: =1-SUM(C14:C113) -> 0.003863910455 | D114: 1

Sheet Ave Performance 2015 (hidden)
B1: Unit | C1: Value | F1: Values in Growth Model
A3: Weaning Age | B3: d | C3: 26.38 | F3: Age (day) | G3: Wt (kg)
A4: Weanng Weight | B4: kg | C4: 7.17 | F4: 26 | G4: =(F4/C3)*C4 -> 7.06671721
F5: =F4+((G5-G4)/(C9/1000)) -> 90.65071877 | G5: 37
A6: Rearing Herd | F6: =F5+((G6-G5)/(C17/1000)) -> 177.3092255 | G6: 107.8
A7: Weight at Start | B7: kg | C7: 7.57 | F7: P2 | G7: 11.3
A8: End Weight | B8: kg | C8: 36.85
A9: Daily Dain | B9: g | C9: 463
A10: FCR | C10: 1.89
A11: Total Feed per pig | B11: kg | C11: =(C8-C7)*C10 -> 55.3392
A12: Days | B12: d | C12: =(C8-C7)/(C9/1000) -> 63.23974082
A14: Finishing Herd
A15: Weight at Start | B15: kg | C15: 37.2
A16: End Weight | B16: kg | C16: 107.8
A17: Daily Dain | B17: g | C17: 817
A18: FCR | C18: 2.69
A19: Total Feed per pig | B19: kg | C19: =(C16-C15)*C18 -> 189.914
A20: Days | B20: d | C20: =(C16-C15)/(C17/1000) -> 86.41370869
A21: Carcase Weight | B21: kg | C21: 80.6
A22: Backfat thickness P2 | B22: mm | C22: 11.3

Sheet Growth Model Outputs (hidden)
A1: Age | B1: Weight (kg) | C1: VFI (kg/day) | D1: P2 (mm) | E1: Adjusted VFI | F1: FCR | G1: ADLWG | J1: FCR Adjuster (%)
A2: 81 | B2: 30.53156453 | C2: 1.039221946 | D2: 6.061695468 | E2: =C2*(1+($J$2/100)) -> 1.060872534 | F2: =E2/(B2-#REF!) ->  | G2: 615.4624429 | I2: Finishing Herd (37 to 108kg) | J2: =L27 -> 2.083345932
A3: 82 | B3: 31.15025046 | C3: 1.055327889 | D3: 6.123863588 | E3: =C3*(1+($J$2/100)) -> 1.07731402 | F3: =E3/(B3-B2) -> 1.741293869 | G3: 621.900615
A4: 83 | B4: 31.77534784 | C4: 1.071471724 | D4: 6.185969154 | E4: =C4*(1+($J$2/100)) -> 1.093794187 | F4: =E4/(B4-B3) -> 1.749798081 | G4: 628.2850173
A5: 84 | B5: 32.40680196 | C5: 1.087649586 | D5: 6.248008273 | E5: =C5*(1+($J$2/100)) -> 1.11030909 | F5: =E5/(B5-B4) -> 1.758336917 | G5: 634.6137995
A6: 85 | B6: 33.04455629 | C6: 1.103857607 | D6: 6.309977063 | E6: =C6*(1+($J$2/100)) -> 1.12685478 | F6: =E6/(B6-B5) -> 1.766910421 | G6: 640.8851485
A7: 86 | B7: 33.68855252 | C7: 1.120091916 | D7: 6.371871652 | E7: 1.143427305 | F7: =E7/(B7-B6) -> 1.775518644 | G7: 647.0972894 | J7: Entry Weight (kg) | K7: End Weight (kg)
A8: 87 | B8: 34.33873056 | C8: 1.136348643 | D8: 6.433688186 | E8: 1.160022716 | F8: =E8/(B8-B7) -> 1.784161643 | G8: 653.248486 | I8: Stage 1 | J8: =Calculator!D20 -> 30 | K8: =Calculator!E20 -> 55 | M8: =SUMIF(B2:B131,">="&J8,E2:E131) -> 270.5710046 | N8: =SUMIF(B2:B131,">"&K8,E2:E131) -> 222.3804799
A9: 88 | B9: 34.99502861 | C9: 1.152623922 | D9: 6.495422825 | E9: 1.176637065 | F9: 1.792839486 | G9: 659.3370418 | I9: Stage 2 | J9: =Calculator!D22 -> 55 | K9: =Calculator!E22 -> 80 | M9: =SUMIF(B:B,">="&J9,E:E) -> 360.5493743 | N9: =SUMIF(B:B,">"&K9,E:E) -> 301.4983325
A10: 89 | B10: 35.65738321 | C10: 1.168913893 | D10: 6.55707175 | E10: 1.193266413 | F10: 1.801552247 | G10: 665.3613004 | I10: Stage 3 | J10: =Calculator!D24 -> 80 | K10: =Calculator!E24 -> 100 | M10: =SUMIF(B:B,">="&J10,E:E) -> 301.4983325 | N10: =SUMIF(B:B,">"&K10,E:E) -> 250.2429305
A11: 90 | B11: 36.32572924 | C11: 1.185214705 | D11: 6.61863116 | E11: 1.209906827 | F11: 1.810300007 | G11: 671.319646
A12: 91 | B12: 37 | C12: 1.201522517 | D12: 6.680097279 | E12: 1.226554388 | F12: 1.819082858 | G12: 677.2105044 | I12: Stage 1 feed (kg/pig) | K12: =M8-N8 -> 48.1905247
A13: 92 | B13: 37.68012724 | C13: 1.261327559 | D13: 6.741466353 | E13: 1.287605375 | F13: 1.893183073 | G13: 683.0323432 | I13: Stage 2 feed (kg/pig) | K13: =M9-N9 -> 59.0510418
A14: 93 | B14: 38.36604118 | C14: 1.278220422 | D14: 6.802734655 | E14: 1.304850175 | F14: 1.9023526 | G14: 688.7836723 | I14: Stage 3 feed (kg/pig) | K14: =M10-N10 -> 51.25540199
A15: 94 | B15: 39.0576706 | C15: 1.2951087 | D15: 6.863898485 | E15: 1.322090294 | F15: 1.911558802 | G15: 694.4630443 | I15: Total feed (kg/pig) | K15: =SUM(K12:K14) -> 158.4969685
A16: 95 | B16: 39.75494282 | C16: 1.311988484 | D16: 6.924954171 | E16: 1.339321743 | F16: 1.92080181 | G16: 700.069055 | I16: FCR Stage 1 | K16: =K12/(K8-J8) -> 1.927620988
A17: 96 | B17: 40.4577838 | C17: 1.328855894 | D17: 6.985898072 | E17: 1.356540559 | F17: 1.93008176 | G17: 705.6003437 | I17: FCR Stage 2 | K17: =K13/(K9-J9) -> 2.362041672
A18: 97 | B18: 41.16611816 | C18: 1.345707071 | D18: 7.04672658 | E18: 1.373742804 | F18: 1.939398798 | G18: 711.0555936 | I18: FCR Stage 3 | K18: =K14/(K10-J10) -> 2.562770099
A19: 98 | B19: 41.87986922 | C19: 1.362538188 | D19: 7.107436118 | E19: 1.390924572 | F19: 1.948753081 | G19: 716.4335317 | I19: FCR Overall | K19: =K15/(K10-J8) -> 2.264242407
A20: 99 | B20: 42.59895904 | C20: 1.379345446 | D20: 7.168023144 | E20: 1.408081983 | F20: 1.958144773 | G20: 721.7329294
A21: 100 | B21: 43.3233085 | C21: 1.39612508 | D21: 7.228484152 | E21: 1.425211195 | F21: 1.967574049 | G21: 726.9526025
A22: 101 | B22: 44.05283729 | C22: 1.412873359 | D22: 7.288815673 | E22: 1.442308399 | F22: 1.977041091 | G22: 732.0914115 | K22: Adjuster | L22: FCR
A23: 102 | B23: 44.787464 | C23: 1.429586588 | D23: 7.349014275 | E23: 1.459369822 | F23: 1.986546093 | G23: 737.1482614 | K23: -3.54396 | L23: 2.29 | M23: =(L23-L24)/L24 -> -0.1486988848
A24: 103 | B24: 45.52710614 | C24: 1.446261111 | D24: 7.409076565 | E24: 1.476391733 | F24: 1.996089258 | G24: 742.1221018 | K24: 13.30426045 | L24: 2.69 | M24: =(L24-L24)/L24 -> 0
A25: 104 | B25: 46.2716802 | C25: 1.462893313 | D25: 7.468999191 | E25: 1.493370441 | F25: 2.005670796 | G25: 747.0119274 | K25: 30.15248 | L25: 3.09 | M25: =(L25-L24)/L24 -> 0.1486988848
A26: 105 | B26: 47.02110167 | C26: 1.479479618 | D26: 7.528778841 | E26: 1.510302297 | F26: 2.015290931 | G26: 751.8167773
A27: 106 | B27: 47.77528512 | C27: 1.496016499 | D27: 7.588412245 | E27: 1.527183698 | F27: 2.024949892 | G27: 756.5357355 | K27: =(K25-K23)/100 -> 0.3369644 | L27: =K24+(K27*M27*L30) -> 2.083345932 | M27: =20-N27 -> -10 | N27: 30
A28: 107 | B28: 48.53414422 | C28: 1.51250047 | D28: 7.647896175 | E28: 1.544011087 | F28: 2.034647922 | G28: 761.1679304
A29: 108 | B29: 49.29759179 | C29: 1.528928096 | D29: 7.707227448 | E29: 1.560780957 | F29: 2.04438527 | G29: 765.712535
A30: 109 | B30: 50.06553984 | C30: 1.545295986 | D30: 7.766402924 | E30: 1.577489847 | F30: 2.054162198 | G30: 770.1687666 | L30: 3.33
A31: 110 | B31: 50.83789962 | C31: 1.561600805 | D31: 7.825419507 | E31: 1.594134351 | F31: 2.063978975 | G31: 774.5358865 | I31: Feed cost of last kg LWG
A32: 111 | B32: 51.61458167 | C32: 1.577839265 | D32: 7.884274149 | E32: 1.610711115 | F32: 2.073835882 | G32: 778.8132001 | I32: Slaughter weight (kg) | J32: =Calculator!E24 -> 100 | K32: =J32 -> 100 | L32: lower weight | M32: =INDEX($B$2:$B$181,K33) -> 99.13816198
A33: 112 | B33: 52.39549586 | C33: 1.594008133 | D33: 7.942963846 | E33: 1.627216836 | F33: 2.08373321 | G33: 783.0000563 | I33: Difference from Upper Wt (kg) | J33: =J32-M32 -> 0.8618380236 | K33: =MATCH(K32,B2:B181,1) -> 87 | L33: upper weight | M33: =INDEX($B$2:$B$181,K33+1) -> 100.0089175
A34: 113 | B34: 53.18055143 | C34: 1.610104231 | D34: 8.001485642 | E34: 1.643648272 | F34: 2.093671258 | G34: 787.0958475 | I34: FCR (feed per kg gain) | J34: =M34+M41 -> 2.81657308 | L34: lower E | M34: =INDEX($F$2:$F$181,K33) -> 2.803289163
A35: 114 | B35: 53.96965702 | C35: 1.626124435 | D35: 8.059836627 | E35: 1.660002232 | F35: 2.103650336 | G35: 791.1000092 | L35: upper E | M35: =INDEX($F$2:$F$181,K33+1) -> 2.816710529
A36: 115 | B36: 54.76272073 | C36: 1.642065679 | D36: 8.11801394 | E36: 1.676275588 | F36: 2.113670765 | G36: 795.0120195
A37: 116 | B37: 55.55965018 | C37: 1.657924955 | D37: 8.176014768 | E37: 1.692465267 | F37: 2.123732875 | G37: 798.8313992
A38: 117 | B38: 56.36035251 | C38: 1.673699312 | D38: 8.233836345 | E38: =C38*(1+($J$2/100)) -> 1.708568259 | F38: 2.133837007 | G38: 802.5577108 | L38: Shift | M38: =M33-M32 -> 0.8707555167
A39: 118 | B39: 57.16473444 | C39: 1.689385862 | D39: 8.291475955 | E39: 1.724581613 | F39: 2.143983511 | G39: 806.1905587 | I39: Finisher feed cost (£/tonne) | J39: =Calculator!E15 -> 215 | L39: Change in FCR | M39: =M35-M34 -> 0.01342136601
A40: 119 | B40: 57.97270235 | C40: 1.704981774 | D40: 8.348930932 | E40: 1.740502443 | F40: 2.154172748 | G40: 809.7295883 | I40: Feed cost per kg (£) | J40: =J39/1000 -> 0.215
A41: 120 | B41: 58.78416224 | C41: 1.720484283 | D41: 8.406198658 | E41: 1.756327922 | F41: 2.164405088 | G41: 813.1744858 | I41: Feed cost last kg gain (p) | J41: =J40*J34*100 -> 60.55632122 | L41: Pro-rata | M41: =(M39/M38)*J33 -> 0.01328391648
A42: 121 | B42: 59.59901985 | C42: 1.735890682 | D42: 8.463276567 | E42: 1.772055289 | F42: 2.174680913 | G42: 816.5249778
A43: 122 | B43: 60.41718065 | C43: 1.783858862 | D43: 8.52016214 | E43: 1.821022813 | F43: 2.225751728 | G43: 819.7808305 | I43: Dead weight (kg) | J43: =1*Calculator!O11/100 -> 0.7565714286
A44: 123 | B44: 61.2385499 | C44: 1.831827043 | D44: 8.576852911 | E44: 1.869990337 | F44: 2.276674392 | G44: 822.9418494 | I44: Feed cost last kg dead wt gain (p) | J44: =J41/J43 -> 80.04045478
A45: 124 | B45: 62.06303269 | C45: 1.84748887 | D45: 8.633346462 | E45: 1.885978454 | F45: 2.287468565 | G45: 826.007879
A46: 125 | B46: 62.89053396 | C46: 1.86304047 | D46: 8.689640427 | E46: 1.901854047 | F46: 2.298309522 | G46: 828.9788015
A47: 126 | B47: 63.72095856 | C47: 1.878479369 | D47: 8.745732489 | E47: 1.917614593 | F47: 2.309197709 | G47: 831.8545373
A48: 127 | B48: 64.55421129 | C48: 1.893803166 | D48: 8.801620385 | E48: 1.933257638 | F48: 2.320133586 | G48: 834.6350436
A49: 128 | B49: 65.3901969 | C49: 1.909009526 | D49: 8.857301899 | E49: 1.948780798 | F49: 2.331117623 | G49: 837.320314
A50: 129 | B50: 66.22882018 | C50: 1.924096182 | D50: 8.912774866 | E50: 1.964181762 | F50: 2.3421503 | G50: 839.910378
A51: 130 | B51: 67.06998594 | C51: 1.939060939 | D51: 8.968037175 | E51: 1.979458286 | F51: 2.35323211 | G51: 842.4053005
A52: 131 | B52: 67.9135991 | C52: 1.953901669 | D52: 9.023086761 | E52: 1.9946082 | F52: 2.364363554 | G52: 844.805181
A53: 132 | B53: 68.75956467 | C53: 1.968616314 | D53: 9.077921612 | E53: 2.009629402 | F53: 2.375545146 | G53: 847.1101529
A54: 133 | B54: 69.60778782 | C54: 1.983202888 | D54: 9.132539768 | E54: 2.024519864 | F54: 2.386777408 | G54: 849.3203829
A55: 134 | B55: 70.45817392 | C55: 1.99765947 | D55: 9.186939315 | E55: 2.039277628 | F55: 2.398060878 | G55: 851.4360705
A56: 135 | B56: 71.31062853 | C56: 2.011984214 | D56: 9.241118392 | E56: 2.053900806 | F56: 2.409396098 | G56: 853.4574472
A57: 136 | B57: 72.16505747 | C57: 2.02617534 | D57: 9.295075189 | E57: 2.068387582 | F57: 2.420783627 | G57: 855.3847757
A58: 137 | B58: 73.02136683 | C58: 2.040231138 | D58: 9.348807944 | E58: 2.082736211 | F58: 2.432224032 | G58: 857.2183495
A59: 138 | B59: 73.87946302 | C59: 2.054149968 | D59: 9.402314944 | E59: 2.096945018 | F59: 2.443717891 | G59: 858.9584921
A60: 139 | B60: 74.73925279 | C60: 2.06793026 | D60: 9.455594526 | E60: 2.111012401 | F60: 2.455265794 | G60: 860.6055563
A61: 140 | B61: 75.60064323 | C61: 2.08157051 | D61: 9.508645079 | E61: 2.124936824 | F61: 2.46686834 | G61: 862.1599232
A62: 141 | B62: 76.46354187 | C62: 2.095069284 | D62: 9.561465036 | E62: 2.138716825 | F62: 2.478526141 | G62: 863.6220022
A63: 142 | B63: 77.32785662 | C63: 2.108425219 | D63: 9.614052882 | E63: 2.15235101 | F63: 2.490239819 | G63: 864.9922295
A64: 143 | B64: 78.19349586 | C64: 2.121637014 | D64: 9.66640715 | E64: 2.165838052 | F64: 2.502010007 | G64: 866.2710681
A65: 144 | B65: 79.06036846 | C65: 2.134703441 | D65: 9.718526419 | E65: 2.179176698 | F65: 2.51383735 | G65: 867.4590066
A66: 145 | B66: 79.92838375 | C66: 2.147623334 | D66: 9.770409318 | E66: 2.192365758 | F66: 2.525722503 | G66: 868.5565588
A67: 146 | B67: 80.79745162 | C67: 2.160395598 | D67: 9.822054523 | E67: 2.205404112 | F67: 2.537666131 | G67: 869.5642626
A68: 147 | B68: 81.66748251 | C68: 2.173019201 | D68: 9.873460755 | E68: 2.218290708 | F68: 2.549668914 | G68: 870.4826798
A69: 148 | B69: 82.53838742 | C69: 2.185493177 | D69: 9.924626785 | E69: 2.23102456 | F69: 2.561731538 | G69: 871.312395
A70: 149 | B70: 83.41007794 | C70: 2.197816624 | D70: 9.975551427 | E70: =C70*(1+($J$2/100)) -> 2.243604747 | F70: 2.573854705 | G70: 872.0540152
A71: 150 | B71: 84.28246629 | C71: 2.209988705 | D71: 10.02623354 | E71: 2.256030415 | F71: 2.586039124 | G71: 872.7081688
A72: 151 | B72: 85.15546533 | C72: 2.222008647 | D72: 10.07667204 | E72: 2.268300773 | F72: =E72/(B72-B71) -> 2.598285518 | G72: 873.275505
A73: 152 | B73: 86.02898858 | C73: 2.233875736 | D73: 10.12686587 | E73: 2.280415096 | F73: 2.610594619 | G73: 873.7566934
A74: 153 | B74: 86.90295023 | C74: 2.245589326 | D74: 10.17681403 | E74: 2.292372719 | F74: 2.622967173 | G74: 874.1524226
A75: 154 | B75: 87.77726518 | C75: 2.257148826 | D75: 10.22651556 | E75: 2.304173044 | F75: 2.635403935 | G75: 874.4634003
A76: 155 | B76: 88.65184903 | C76: 2.268553709 | D76: 10.27596955 | E76: 2.31581553 | F76: 2.647905671 | G76: 874.6903521
A77: 156 | B77: 89.52661812 | C77: 2.279803506 | D77: 10.32517512 | E77: 2.3272997 | F77: 2.66047316 | G77: 874.8340212
A78: 157 | B78: 90.40148956 | C78: 2.290897809 | D78: 10.37413144 | E78: 2.338625135 | F78: 2.673107192 | G78: 874.8951672
A79: 158 | B79: 91.27638121 | C79: 2.301836266 | D79: 10.42283773 | E79: 2.349791478 | F79: 2.685808566 | G79: 874.874566
A80: 159 | B80: 92.15121171 | C80: 2.312618581 | D80: 10.47129325 | E80: 2.360798426 | F80: 2.698578096 | G80: 874.7730086
A81: 160 | B81: 93.02590051 | C81: 2.323244517 | D81: 10.51949728 | E81: 2.371645737 | F81: 2.711416605 | G81: 874.591301
A82: 161 | B82: 93.90036787 | C82: 2.33371389 | D82: 10.56744918 | E82: 2.382333223 | F82: 2.724324928 | G82: 874.330263
A83: 162 | B83: 94.77453487 | C83: 2.344026571 | D83: 10.61514832 | E83: 2.392860753 | F83: 2.737303911 | G83: 873.990728
A84: 163 | B84: 95.64832344 | C84: 2.354182485 | D84: 10.66259411 | E84: 2.40322825 | F84: 2.750354413 | G84: 873.573542
A85: 164 | B85: 96.52165635 | C85: 2.364181609 | D85: 10.70978601 | E85: 2.41343569 | F85: 2.763477302 | G85: 873.0795634
A86: 165 | B86: 97.39445726 | C86: 2.374023971 | D86: 10.75672353 | E86: 2.423483103 | F86: 2.77667346 | G86: 872.5096619
A87: 166 | B87: 98.26665066 | C87: 2.383709651 | D87: 10.8034062 | E87: 2.433370569 | F87: 2.789943779 | G87: 871.8647181
A88: 167 | B88: 99.13816198 | C88: 2.393238776 | D88: 10.8498336 | E88: 2.443098218 | F88: 2.803289163 | G88: 871.1456231
A89: 168 | B89: 100.0089175 | C89: 2.402611523 | D89: 10.89600533 | E89: 2.452666233 | F89: 2.816710529 | G89: 870.3532775
A90: 169 | B90: 100.8788444 | C90: 2.411828118 | D90: 10.94192104 | E90: 2.462074841 | F90: 2.830208804 | G90: 869.4885911
A91: 170 | B91: 101.7478709 | C91: 2.420888831 | D91: 10.98758043 | E91: 2.47132432 | F91: 2.843784927 | G91: 868.5524822
A92: 171 | B92: 102.6159259 | C92: 2.429793979 | D92: 11.0329832 | E92: 2.480414993 | F92: 2.85743985 | G92: 867.5458771
A93: 172 | B93: 103.4829394 | C93: 2.438543923 | D93: 11.07812913 | E93: 2.489347228 | F93: 2.871174534 | G93: 866.4697095
A94: 173 | B94: 104.3488424 | C94: 2.447139066 | D94: 11.123018 | E94: 2.498121439 | F94: 2.884989955 | G94: 865.3249198
A95: 174 | B95: 105.2135667 | C95: 2.455579858 | D95: 11.16764963 | E95: 2.506738081 | F95: 2.898887099 | G95: 864.1124551
A96: 175 | B96: 106.0770451 | C96: 2.463866784 | D96: 11.2120239 | E96: 2.515197653 | F96: 2.912866964 | G96: 862.8332678
A97: 176 | B97: 106.9392113 | C97: 2.472000376 | D97: 11.25614069 | E97: 2.523500695 | F97: 2.926930563 | G97: 861.4883157
A98: 177 | B98: 107.8000001 | C98: 2.479981199 | D98: 11.29999993 | E98: 2.531647786 | F98: 2.941078916 | G98: 860.0785616
A99: 178 | B99: 108.6593472 | C99: 2.487809861 | D99: 11.34360158 | E99: 2.539639547 | F99: 2.955313058 | G99: 858.6049721
A100: 179 | B100: 109.5171891 | C100: 2.495487006 | D100: 11.38694563 | E100: 2.547476633 | F100: 2.969634037 | G100: 857.0685179
A101: 180 | B101: 110.3734636 | C101: 2.503013312 | D101: 11.43003211 | E101: 2.555159738 | F101: 2.98404291 | G101: 855.4701728
A102: 181 | B102: 111.2281092 | C102: 2.510389496 | D102: 11.47286106 | E102: =C102*(1+($J$2/100)) -> 2.562689594 | F102: 2.99854075 | G102: 853.8109133
A103: 182 | B103: 112.0810654 | C103: 2.517616307 | D103: 11.51543258 | E103: 2.570066964 | F103: 3.013128639 | G103: 852.0917183
A104: 183 | B104: 112.9322729 | C104: 2.524694527 | D104: 11.55774678 | E104: 2.577292647 | F104: 3.027807674 | G104: 850.3135687
A105: 184 | B105: 113.7816732 | C105: 2.53162497 | D105: 11.59980379 | E105: 2.584367476 | F105: 3.042578962 | G105: 848.4774465
A106: 185 | B106: 114.6292088 | C106: 2.538408483 | D106: 11.6416038 | E106: 2.591292313 | F106: 3.057443624 | G106: 846.584335
A107: 186 | B107: 115.4748232 | C107: 2.545045942 | D107: 11.683147 | E107: 2.598068053 | F107: 3.072402793 | G107: 844.6352179
A108: 187 | B108: 116.3184609 | C108: 2.551538251 | D108: 11.72443362 | E108: 2.604695619 | F108: 3.087457616 | G108: 842.6310792
A109: 188 | B109: 117.1600674 | C109: 2.557886344 | D109: 11.76546392 | E109: 2.611175965 | F109: 3.102609249 | G109: 840.5729024
A110: 189 | B110: 117.9995891 | C110: 2.564091181 | D110: 11.80623818 | E110: 2.61751007 | F110: 3.117858864 | G110: 838.4616705
A111: 190 | B111: 118.8369734 | C111: 2.570153749 | D111: 11.8467567 | E111: 2.623698943 | F111: 3.133207645 | G111: 836.2983656
A112: 191 | B112: 119.6721688 | C112: 2.57607506 | D112: 11.88701983 | E112: 2.629743615 | F112: 3.148656789 | G112: 834.0839682
A113: 192 | B113: 120.5051246 | C113: 2.58185615 | D113: 11.92702791 | E113: 2.635645145 | F113: 3.164207504 | G113: 831.8194573
A114: 193 | B114: 121.3357913 | C114: 2.587498079 | D114: 11.96678135 | E114: 2.641404615 | F114: 3.179861013 | G114: 829.5058094
A115: 194 | B115: 122.1641202 | C115: 2.593001927 | D115: 12.00628053 | E115: 2.647023128 | F115: 3.195618552 | G115: 827.143999
A116: 195 | B116: 122.9900636 | C116: 2.5983688 | D116: 12.04552591 | E116: 2.652501811 | F116: 3.21148137 | G116: 824.7349975
A117: 196 | B117: 123.8135748 | C117: 2.60359982 | D117: 12.08451792 | E117: 2.657841811 | F117: 3.227450727 | G117: 822.2797733
A118: 197 | B118: 124.634608 | C118: 2.608696132 | D118: 12.12325706 | E118: 2.663044296 | F118: 3.243527898 | G118: 819.7792915
A119: 198 | B119: 125.4531186 | C119: 2.613658897 | D119: 12.16174382 | E119: 2.668110453 | F119: 3.259714173 | G119: 817.2345133
A120: 199 | B120: 126.2690626 | C120: 2.618489296 | D120: 12.19997872 | E120: 2.673041486 | F120: 3.276010852 | G120: 814.6463961
A121: 200 | B121: 127.0823972 | C121: 2.623188525 | D121: 12.23796232 | E121: 2.677838617 | F121: 3.292419251 | G121: 812.0158928
A122: 201 | B122: 127.8930806 | C122: 2.6277578 | D122: 12.27569516 | E122: 2.682503085 | F122: 3.308940699 | G122: 809.3439518
A123: 202 | B123: 128.7010716 | C123: 2.632198347 | D123: 12.31317785 | E123: 2.687036144 | F123: 3.325576538 | G123: 806.6315169
A124: 203 | B124: 129.5063304 | C124: 2.63651141 | D124: 12.35041098 | E124: 2.691439063 | F124: 3.342328123 | G124: 803.8795264
A125: 204 | B125: 130.3088178 | C125: 2.640698246 | D125: 12.38739518 | E125: 2.695713126 | F125: 3.359196825 | G125: 801.0889137
A126: 205 | B126: 131.1084957 | C126: 2.644760125 | D126: 12.4241311 | E126: 2.699859628 | F126: 3.376184028 | G126: 798.2606063
A127: 206 | B127: 131.9053268 | C127: 2.648698328 | D127: 12.46061939 | E127: 2.703879877 | F127: 3.393291129 | G127: 795.3955262
A128: 207 | B128: 132.6992748 | C128: 2.652514148 | D128: 12.49686075 | E128: 2.707775194 | F128: 3.41051954 | G128: 792.4945891
A129: 208 | B129: 133.4903043 | C129: 2.656208889 | D129: 12.53285586 | E129: 2.711546909 | F129: 3.427870687 | G129: 789.5587046
A130: 209 | B130: 134.2783808 | C130: 2.659783864 | D130: 12.56860544 | E130: 2.715196363 | F130: 3.445346011 | G130: 786.588776
A131: 210 | B131: 135.0634708 | C131: 2.663240395 | D131: 12.60411023 | E131: 2.718724905 | F131: 3.462946966 | G131: 783.5856997
A132: 211 | B132: 135.8455415 | C132: 2.666579812 | D132: 12.63937098 | E132: =C132*(1+($J$2/100)) -> 2.722133894 | F132: =E132/(B132-B131) -> 3.480675021 | G132: 780.5503657
A133: 212 | B133: 136.6245611 | C133: 2.669803455 | D133: 12.67438845 | E133: 2.725424696 | F133: 3.49853166 | G133: 777.4836566
A134: 213 | B134: 137.4004986 | C134: 2.672912667 | D134: 12.70916342 | E134: 2.728598684 | F134: 3.516518381 | G134: 774.386448
A135: 214 | B135: 138.1733241 | C135: 2.6759088 | D135: 12.7436967 | E135: 2.731657237 | F135: 3.534636698 | G135: 771.2596083
A136: 215 | B136: 138.9430083 | C136: 2.678793211 | D136: 12.77798908 | E136: 2.73460174 | F136: 3.552888138 | G136: 768.1039984
A137: 216 | B137: 139.7095228 | C137: 2.681567261 | D137: 12.81204141 | E137: 2.737433584 | F137: 3.571274244 | G137: 764.9204714
A138: 217 | B138: 140.4728402 | C138: 2.684232318 | D138: 12.84585451 | E138: 2.740154162 | F138: 3.589796574 | G138: 761.7098728
A139: 218 | B139: 141.2329338 | C139: 2.686789749 | D139: 12.87942924 | E139: 2.742764874 | F139: 3.608456702 | G139: 758.4730402
A140: 219 | B140: 141.9897778 | C140: 2.689240927 | D140: 12.91276647 | E140: 2.745267119 | F140: 3.627256215 | G140: 755.2108032
A141: 220 | B141: 142.7433472 | C141: 2.691587229 | D141: 12.94586707 | E141: 2.747662302 | F141: 3.646196719 | G141: 751.9239831
A142: 221 | B142: 143.4936178 | C142: 2.693830029 | D142: 12.97873195 | E142: 2.749951828 | F142: 3.665279831 | G142: 748.6133932
A143: 222 | B143: 144.2405663 | C143: 2.695970708 | D143: 13.011362 | E143: 2.752137104 | F143: 3.684507189 | G143: 745.2798384
A144: 223 | B144: 144.9841701 | C144: 2.698010643 | D144: 13.04375814 | E144: 2.754219538 | F144: 3.703880441 | G144: 741.924115
A145: 224 | B145: 145.7244074 | C145: 2.699951214 | D145: 13.0759213 | E145: 2.756200537 | F145: 3.723401256 | G145: 738.547011
A146: 225 | B146: 146.4612573 | C146: 2.701793799 | D146: 13.10785241 | E146: 2.75808151 | F146: 3.743071315 | G146: 735.1493055
A147: 226 | B147: 147.1946994 | C147: 2.703539776 | D147: 13.13955243 | E147: 2.759863862 | F147: 3.762892318 | G147: 731.7317691
A148: 227 | B148: 147.9247145 | C148: 2.705190522 | D148: 13.17102231 | E148: 2.761548999 | F148: 3.78286598 | G148: 728.2951636
A149: 228 | B149: 148.6512837 | C149: 2.706747412 | D149: 13.20226303 | E149: 2.763138324 | F149: 3.802994032 | G149: 724.840242
A150: 229 | B150: 149.3743891 | C150: 2.708211817 | D150: 13.23327556 | E150: 2.764633238 | F150: 3.823278223 | G150: 721.3677482
A151: 230 | B151: 150.0940135 | C151: 2.709585109 | D151: 13.26406089 | E151: 2.76603514 | F151: 3.843720316 | G151: 717.8784174
A152: 231 | B152: 150.8101406 | C152: 2.710868652 | D152: 13.29462002 | E152: 2.767345424 | F152: 3.864322095 | G152: 714.3729756
A153: 232 | B153: 151.5227544 | C153: 2.712063811 | D153: 13.32495395 | E153: 2.768565482 | F153: 3.885085357 | G153: 710.8521399
A154: 233 | B154: 152.2318399 | C154: 2.713171943 | D154: 13.35506371 | E154: 2.769696701 | F154: 3.906011917 | G154: 707.3166182
A155: 234 | B155: 152.9373829 | C155: 2.714194404 | D155: 13.3849503 | E155: 2.770740463 | F155: 3.927103608 | G155: 703.7671093
A156: 235 | B156: 153.6393697 | C156: 2.715132543 | D156: 13.41461477 | E156: 2.771698146 | F156: 3.948362281 | G156: 700.2043028
A157: 236 | B157: 154.3377873 | C157: 2.715987704 | D157: 13.44405815 | E157: 2.772571123 | F157: 3.969789802 | G157: 696.6288794
A158: 237 | B158: 155.0326235 | C158: 2.716761226 | D158: 13.47328148 | E158: 2.77336076 | F158: 3.991388057 | G158: 693.0415101
A159: 238 | B159: 155.7238666 | C159: 2.717454442 | D159: 13.50228582 | E159: 2.774068419 | F159: 4.013158949 | G159: 689.4428571
A160: 239 | B160: 156.4115057 | C160: 2.718068679 | D160: 13.53107222 | E160: 2.774695452 | F160: 4.035104398 | G160: 685.8335732
A161: 240 | B161: 157.0955304 | C161: 2.718605256 | D161: 13.55964175 | E161: 2.775243208 | F161: 4.057226343 | G161: 682.2143021
A162: 241 | B162: 157.7759312 | C162: 2.719065487 | D162: 13.58799548 | E162: 2.775713028 | F162: 4.079526742 | G162: 678.585678
A163: 242 | B163: 158.4526989 | C163: 2.719450678 | D163: 13.61613448 | E163: 2.776106243 | F163: 4.10200757 | G163: 674.9483261
A164: 243 | B164: 159.1258251 | C164: 2.719762127 | D164: 13.64405984 | E164: 2.776424181 | F164: 4.124670821 | G164: 671.3028623
A165: 244 | B165: 159.7953021 | C165: 2.720001125 | D165: 13.67177265 | E165: 2.776668158 | F165: 4.147518508 | G165: 667.6498933
A166: 245 | B166: 160.4611226 | C166: 2.720168954 | D166: 13.69927398 | E166: 2.776839483 | F166: 4.170552662 | G166: 663.9900166
A167: 246 | B167: 161.12328 | C167: 2.720266889 | D167: 13.72656495 | E167: 2.776939459 | F167: 4.193775334 | G167: 660.3238203
A168: 247 | B168: 161.7817683 | C168: 2.720296195 | D168: 13.75364664 | E168: 2.776969375 | F168: 4.217188593 | G168: 656.6518837
A169: 248 | B169: 162.4365821 | C169: 2.720258129 | D169: 13.78052017 | E169: 2.776930516 | F169: 4.24079453 | G169: 652.9747766
A170: 249 | B170: 163.0877163 | C170: 2.720153939 | D170: 13.80718665 | E170: 2.776824156 | F170: 4.264595252 | G170: 649.2930599
A171: 250 | B171: 163.7351668 | C171: 2.719984864 | D171: 13.83364718 | E171: 2.776651558 | F171: 4.288592888 | G171: 645.6072853
A172: 251 | B172: 164.3789297 | C172: 2.719752133 | D172: 13.85990288 | E172: 2.776413978 | F172: 4.312789586 | G172: 641.9179955
A173: 252 | B173: 165.0190018 | C173: 2.719456965 | D173: 13.88595487 | E173: 2.776112661 | F173: 4.337187515 | G173: 638.225724
A174: 253 | B174: 165.6553804 | C174: 2.71910057 | D174: 13.91180427 | E174: 2.775748842 | F174: 4.361788863 | G174: 634.5309956
A175: 254 | B175: 166.2880632 | C175: 2.718684148 | D175: 13.93745221 | E175: 2.775323744 | F175: 4.386595839 | G175: 630.8343259
A176: 255 | B176: 166.9170485 | C176: 2.718208888 | D176: 13.9628998 | E176: 2.774838583 | F176: 4.411610673 | G176: 627.1362218
A177: 256 | B177: 167.5423353 | C177: 2.71767597 | D177: 13.98814819 | E177: 2.774294562 | F177: 4.436835615 | G177: 623.437181
A178: 257 | B178: 168.1639228 | C178: 2.717086561 | D178: 14.01319851 | E178: 2.773692874 | F178: 4.462272936 | G178: 619.7376928
A179: 258 | B179: 168.7818107 | C179: 2.716441821 | D179: 14.03805187 | E179: 2.773034701 | F179: 4.48792493 | G179: 616.0382374
A180: 259 | B180: 169.3959994 | C180: 2.715742896 | D180: 14.06270943 | E180: 2.772321215 | F180: 4.513793908 | G180: 612.3392865
A181: 260 | B181: 170.0064896 | C181: 2.714990922 | D181: 14.08717231 | E181: 2.771553575 | F181: 4.539882208 | G181: 608.6413031
